Workbook

Sheet Start here
B27: GENERAL INFORMATION
C28: Cells where instructions can be found.
C29: Under the tab "Diet Formulation" enter the feed entry number that you can find on the the tab "Feed Table" in order to enter that feed in the ration formulation program
C30: Cells where you should enter numbers
C31: Ration Cost --> Least-Cost Formulation
C32: Cells that show calculated values (Do not change)

Sheet Animal data (hidden)
A2: select animal Breed and Type
B3: Breed | C3: Holstein
B5: type | C5: Lactating cow
A7: Describe the Target Lactating cow | C7: ////// | D7: Animal Description
A9: current Information | D9: Units
B10: Cow stage | C10: mid lactation cow | F10: age
B12: lactation number | F12: days pregnant
B14: days in milk | F14: Condition score
B16: Body Weigh | C16: 600 | D16: kg | F16: Age at 1st calving
B18: Mature Body Weight | D18: kg | F18: Calving interval
A20: Production
B21: milk production | D21: kg/day | F21: milk fat | H21: %
B23: True protein | D23: % | F23: Lactose | H23: %

Sheet cow info
J2: Cells where instructions can be found.
J3: Cells where you should enter numbers
J4: Cells where calcuated values are displayed (Do not change)
I7: Use this converter to change lbs to kg
D8: Enter value here | F8: Do not change
I9: Instructions:
B10: COW CHARACTERISTICS: | D10: (Metric System) | F10: (Standard System) | I10: Change values in the blue cells ONLY
B11: Body Weight | C11: kg | D11: 600 | F11: =CONVERT(D11,"kg","lbm") -> 1322.773573 | G11: Lb | I11: CONVERSION: | J11: (lb to kg or kg to lb)
B12: Milk Yield | C12: kg | D12: 60 | F12: =CONVERT(D12,"kg","lbm") -> 132.2773573 | G12: Lb | I12: kg | K12: lb
B13: Week of Lactation | D13: 5 | I13: 1 | J13: = | K13: =I13*2.2046 -> 2.2046
B14: Milk fat | C14: % | D14: 3.5 | I14: =K14*0.4536 -> 0.4536 | J14: = | K14: 1
B16: Dry Matter Intake | C16: kg/d | D16: =(0.0968*D11^0.75+0.372*(0.4*D12+(15*D12*(D14/100))))*(1-EXP(-0.192*(D13+3.67))) -> 26.25273638
B17: Dry Matter Intake | C17: Lb/d | D17: =CONVERT(D16,"kg", "lbm") -> 57.8773765
B19: Intake Prediction Based on NRC 2001
B21: Empirical Equation
B22: (Equation that fits observed data best)
B24: Factors Used in Predicting DMI:
B25: 1- Cow Body Weight
B26: 2- Milk Yield
B27: 3- Week of Lactation
B28: 4- Milk Fat Percent

Sheet Feed Table
AC2: CONVERTER | AE2: $/ton | AG2: $/lb | AI2: $/lb | AJ2: $/lb | AK2: $/kg | AN2: Cells where instructions can be found.
AE3: as fed | AF3: % DM | AG3: as fed | AI3: as fed | AJ3: DM | AK3: DM | AN3: Cells where you should enter numbers
AC4: ROW A | AE4: 85.66 | AF4: 71.8 | AI4: =AE4/2000 -> 0.04283 | AJ4: =(AE4/2000)/(AF4/100) -> 0.05965181058 | AK4: =2.2046226*((AE4/2000)/(AF4/100)) -> 0.1315097297 | AN4: Cells where calcuated values are displayed (Do not change)
AC5: ROW B | AF5: 33 | AG5: 0.0238 | AJ5: =AG5/(AF5/100) -> 0.07212121212 | AK5: =2.2046226*AJ5 -> 0.1590000542
H10: Table 15.1: Nutrient Composition of some feedstuffs commonly fed to dairy cattle | U10: Table 15.2: N fraction, RUP digestibility, Lysine and Methionine | AC10: Table 15.3: Mineral composition of some feedstuffs | AI10: STARCH | AJ10: PRICE | AK10: PRICE
H11: % "as-is" | L11: % of the dry matter (DM) in the feed from Lab. Analysis | Q11: % of DM | S11: % of DM | T11: % | U11: % of CP | V11: % of CP | W11: % of CP | X11: %/h | Y11: % | Z11: % of CP | AA11: % of CP | AE11: % of the dry matter in the feed from Lab. Analysis | AI11: % of DM | AJ11: $/Lbs of DM | AK11: $/kg of DM
D12: 1 | E12: 2 | F12: 3 | G12: 4 | H12: 5 | I12: 6 | J12: 7 | K12: 8 | L12: 9 | M12: 10 | N12: 11 | O12: 12 | P12: 13 | Q12: 14 | R12: 15 | S12: 16 | T12: 17 | U12: 18 | V12: 19 | W12: 20 | X12: 21 | Y12: 22 | Z12: 23 | AA12: 24 | AB12: 25 | AC12: 26 | AD12: 27 | AE12: 28 | AF12: 29 | AG12: 30 | AH12: 31 | AI12: 32 | AJ12: 34 | AK12: 35
C13: Entry | D13: Name | E13: Description | F13: TDN eq. Cl. | G13: AVG-SD | H13: DM | I13: CP | J13: NDICP | K13: ADICP | L13: EE | M13: NDF | N13: ADF | O13: Lig. | P13: Ash | Q13: NFC | R13: PAF | S13: Hcel | T13: TDN 1x | U13: A | V13: B | W13: C | X13: B Frc. Kd | Y13: RUP Dig | Z13: Lys2 | AA13: Met2 | AB13: Ca | AC13: P | AD13: Mg | AE13: K | AF13: Na | AG13: Cl | AH13: S | AI13: starch | AJ13: Price | AK13: Price2
C14: 301 | D14: your feed
C15: 302 | D15: your feed | AK15: =IF(List1[[#This Row],[Price]]="","",CONVERT(List1[[#This Row],[Price]],"kg","lbm")) -> 
C16: 303 | D16: your feed | AK16: =IF(List1[[#This Row],[Price]]="","",CONVERT(List1[[#This Row],[Price]],"kg","lbm")) -> 
C17: 304 | D17: your feed | AK17: =IF(List1[[#This Row],[Price]]="","",CONVERT(List1[[#This Row],[Price]],"kg","lbm")) -> 
C18: 305 | D18: your feed
C19: 306 | D19: your feed | AK19: =IF(List1[[#This Row],[Price]]="","",CONVERT(List1[[#This Row],[Price]],"kg","lbm")) -> 
C20: 307 | D20: your feed | AK20: =IF(List1[[#This Row],[Price]]="","",CONVERT(List1[[#This Row],[Price]],"kg","lbm")) -> 
C21: 308 | D21: your feed | AK21: =IF(List1[[#This Row],[Price]]="","",CONVERT(List1[[#This Row],[Price]],"kg","lbm")) -> 
C22: 309 | D22: your feed | AK22: =IF(List1[[#This Row],[Price]]="","",CONVERT(List1[[#This Row],[Price]],"kg","lbm")) -> 
C23: 310 | D23: your feed | AK23: =IF(List1[[#This Row],[Price]]="","",CONVERT(List1[[#This Row],[Price]],"kg","lbm")) -> 
C24: 311 | D24: your feed | AK24: =IF(List1[[#This Row],[Price]]="","",CONVERT(List1[[#This Row],[Price]],"kg","lbm")) -> 
C25: 312 | D25: your feed | AK25: =IF(List1[[#This Row],[Price]]="","",CONVERT(List1[[#This Row],[Price]],"kg","lbm")) -> 
C26: 313 | D26: your feed | AK26: =IF(List1[[#This Row],[Price]]="","",CONVERT(List1[[#This Row],[Price]],"kg","lbm")) -> 
C27: 314 | D27: your feed | AK27: =IF(List1[[#This Row],[Price]]="","",CONVERT(List1[[#This Row],[Price]],"kg","lbm")) -> 
C28: 315 | D28: your feed | AK28: =IF(List1[[#This Row],[Price]]="","",CONVERT(List1[[#This Row],[Price]],"kg","lbm")) -> 
C29: 316 | D29: your feed | AK29: =IF(List1[[#This Row],[Price]]="","",CONVERT(List1[[#This Row],[Price]],"kg","lbm")) -> 
C30: 317 | D30: your feed | AK30: =IF(List1[[#This Row],[Price]]="","",CONVERT(List1[[#This Row],[Price]],"kg","lbm")) -> 
C31: 318 | D31: your feed | AK31: =IF(List1[[#This Row],[Price]]="","",CONVERT(List1[[#This Row],[Price]],"kg","lbm")) -> 
C32: 319 | D32: your feed | AK32: =IF(List1[[#This Row],[Price]]="","",CONVERT(List1[[#This Row],[Price]],"kg","lbm")) -> 
C33: 320 | D33: your feed | AK33: =IF(List1[[#This Row],[Price]]="","",CONVERT(List1[[#This Row],[Price]],"kg","lbm")) -> 
C35: 1 | D35: ALFALFA | E35: Meal, 17% CP | F35: Forage | G35: AVG | H35: 90.3 | I35: 19.2 | J35: 3.1 | K35: 2.4 | L35: 2.5 | M35: 41.6 | N35: 32.8 | O35: 7.6 | P35: 11 | Q35: =IF(G35="AVG",100-(I35+(M35-J35)+L35+P35),"") -> 28.8 | R35: 1 | S35: =IF(G35="AVG",M35-N35,"") -> 8.8 | U35: 27.8 | V35: 66 | W35: 6.2 | X35: 6.7 | Y35: 75 | Z35: 4.34 | AA35: 1.46 | AB35: 1.47 | AC35: 0.28 | AD35: 0.29 | AE35: 2.37 | AF35: 0.1 | AG35: 0.65 | AH35: 0.26 | AK35: =IF(List1[[#This Row],[Price]]="","",CONVERT(List1[[#This Row],[Price]],"kg","lbm")) -> 
C36: 2 | D36: ALMOND | E36: Hulls | F36: Conc | G36: AVG | H36: 86.9 | I36: 6.5 | J36: 2.3 | K36: 1.8 | L36: 2.9 | M36: 36.8 | N36: 28.7 | O36: 14.9 | P36: 6.1 | Q36: =IF(G36="AVG",100-(I36+(M36-J36)+L36+P36),"") -> 50 | R36: 1 | S36: =IF(G36="AVG",M36-N36,"") -> 8.1 | U36: 29.6 | V36: 35.4 | W36: 35 | X36: 5.3 | Y36: 50 | Z36: 2.74 | AA36: 0.9 | AB36: 0.28 | AC36: 0.13 | AD36: 0.13 | AE36: 2.6 | AF36: 0.02 | AG36: 0.03 | AH36: 0.04 | AK36: =IF(List1[[#This Row],[Price]]="","",CONVERT(List1[[#This Row],[Price]],"kg","lbm")) -> 
C37: =+C36+1 -> 3 | D37: APPLE | E37: Pomace, wet | F37: Conc | G37: AVG | H37: 35.9 | I37: 7.7 | J37: 3.7 | K37: 3.1 | L37: 5 | M37: 52.5 | N37: 43.2 | O37: 15.4 | P37: 2.6 | Q37: 35.9 | R37: 1 | S37: 9.3 | U37: 41.7 | V37: 53.3 | W37: 5 | X37: 7.4 | Y37: 80 | Z37: 3.93 | AA37: 1.38 | AB37: 0.2 | AC37: 0.14 | AD37: 0.09 | AE37: 0.3 | AF37: 0.04 | AG37: 0.03 | AH37: 0.07 | AK37: =IF(List1[[#This Row],[Price]]="","",CONVERT(List1[[#This Row],[Price]],"kg","lbm")) -> 
C38: =+C37+1 -> 4 | D38: BAKERY BYPRODUCT | E38: Byproduct meal | F38: Conc | G38: AVG | H38: 84.7 | I38: 12.5 | J38: 2.3 | K38: 1.1 | L38: 9.5 | M38: 13.9 | N38: 6.5 | O38: 1.6 | P38: 3.8 | Q38: 62.6 | R38: 1.04 | S38: 7.4 | U38: 40.3 | V38: 53.6 | W38: 6.1 | X38: 15.2 | Y38: 90 | Z38: 2.91 | AA38: 1.73 | AB38: 0.2 | AC38: 0.36 | AD38: 0.13 | AE38: 0.42 | AF38: 0.72 | AG38: 1.2 | AH38: 0.14 | AK38: =IF(List1[[#This Row],[Price]]="","",CONVERT(List1[[#This Row],[Price]],"kg","lbm")) -> 
C39: 5 | D39: BAKERY BYPRODUCT | E39: Bread, waste | F39: Conc | G39: AVG | H39: 68.3 | I39: 15 | J39: 0.6 | K39: 0.5 | L39: 2.2 | M39: 8.9 | N39: 3.1 | O39: 0.1 | P39: 2.8 | Q39: 71.7 | R39: 1.04 | S39: 5.8 | U39: 40.3 | V39: 53.6 | W39: 6.1 | X39: 15.2 | Y39: 90 | Z39: 2.91 | AA39: 1.73 | AB39: 0.14 | AC39: 0.2 | AD39: 0.05 | AE39: 0.23 | AF39: 0.85 | AG39: 0.94 | AH39: 0.17 | AK39: =IF(List1[[#This Row],[Price]]="","",CONVERT(List1[[#This Row],[Price]],"kg","lbm")) -> 
C40: 6 | D40: BAKERY BYPRODUCT | E40: Cereal byproduct | F40: Conc | G40: AVG | H40: 88.5 | I40: 9.1 | J40: 3.2 | K40: 1.2 | L40: 3.5 | M40: 10 | N40: 3.9 | O40: 2.6 | P40: 3.2 | Q40: 77.4 | R40: 1.04 | S40: 6.1 | U40: 33.7 | V40: 62.5 | W40: 3.8 | X40: 20 | Y40: 75 | Z40: 4.05 | AA40: 1.57 | AB40: 0.17 | AC40: 0.29 | AD40: 0.1 | AE40: 0.33 | AF40: 0.59 | AG40: 0.69 | AH40: 0.1 | AK40: =IF(List1[[#This Row],[Price]]="","",CONVERT(List1[[#This Row],[Price]],"kg","lbm")) -> 
C41: 7 | D41: BAKERY BYPRODUCT | E41: Cookie byproduct | F41: Conc | G41: AVG | H41: 90.1 | I41: 9.7 | J41: 1.9 | K41: 0.5 | L41: 10.6 | M41: 12.7 | N41: 6.5 | O41: 2.6 | P41: 3 | Q41: 65.9 | R41: 1.04 | S41: 6.2 | U41: 40.3 | V41: 53.6 | W41: 6.1 | X41: 15.2 | Y41: 90 | Z41: 1.71 | AA41: 1.83 | AB41: 0.23 | AC41: 0.29 | AD41: 0.13 | AE41: 0.46 | AF41: 0.68 | AG41: 1.2 | AH41: 0.13 | AK41: =IF(List1[[#This Row],[Price]]="","",CONVERT(List1[[#This Row],[Price]],"kg","lbm")) -> 
C42: 8 | D42: BARLEY | E42: Grain, rolled | F42: Conc | G42: AVG | H42: 91 | I42: 12.4 | J42: 1.8 | K42: 0.5 | L42: 2.2 | M42: 20.8 | N42: 7.2 | O42: 1.9 | P42: 2.9 | Q42: 63.5 | R42: 1.04 | S42: 13.6 | U42: 30.2 | V42: 61.2 | W42: 8.6 | X42: 22.7 | Y42: 85 | Z42: 3.63 | AA42: 1.7 | AB42: 0.06 | AC42: 0.39 | AD42: 0.14 | AE42: 0.56 | AF42: 0.02 | AG42: 0.13 | AH42: 0.12 | AI42: 60 | AJ42: 0.2177243376 | AK42: =IF(List1[[#This Row],[Price]]="","",CONVERT(List1[[#This Row],[Price]],"kg","lbm")) -> 0.48
C43: 9 | D43: BARLEY | E43: Malt sprouts | F43: Conc | G43: AVG | H43: 90.5 | I43: 20.1 | J43: 3.7 | K43: 1.1 | L43: 2.3 | M43: 47 | N43: 21.8 | O43: 3.4 | P43: 7.4 | Q43: 26.9 | R43: 1 | S43: 25.2 | U43: 56 | V43: 44 | W43: 0 | X43: 4.5 | Y43: 80 | Z43: 4.38 | AA43: 1.33 | AB43: 0.24 | AC43: 0.51 | AD43: 0.18 | AE43: 1.19 | AF43: 0.04 | AH43: 0.29 | AK43: =IF(List1[[#This Row],[Price]]="","",CONVERT(List1[[#This Row],[Price]],"kg","lbm")) -> 
C44: 10 | D44: BARLEY | E44: Silage, headed | F44: Forage | G44: AVG | H44: 35.5 | I44: 12 | J44: 1.6 | K44: 0.9 | L44: 3.5 | M44: 56.3 | N44: 34.5 | O44: 5.6 | P44: 7.5 | Q44: 22.3 | R44: 1 | S44: 21.8 | U44: 56.6 | V44: 32.9 | W44: 10.5 | X44: 5.9 | Y44: 65 | Z44: 2.35 | AA44: 1.16 | AB44: 0.48 | AC44: 0.3 | AD44: 0.18 | AE44: 2.43 | AF44: 0.13 | AG44: 0.72 | AH44: 0.17 | AK44: =IF(List1[[#This Row],[Price]]="","",CONVERT(List1[[#This Row],[Price]],"kg","lbm")) -> 
C45: 11 | D45: BEET, SUGAR | E45: Pulp dried | F45: Conc | G45: AVG | H45: 88.3 | I45: 10 | J45: 5.5 | K45: 0.6 | L45: 1.1 | M45: 45.8 | N45: 23.1 | O45: 1.6 | P45: 7.3 | Q45: 41.3 | R45: 1 | S45: 22.7 | U45: 4.5 | V45: 90.5 | W45: 5 | X45: 2 | Y45: 80 | Z45: 4.35 | AA45: 1.24 | AB45: 0.91 | AC45: 0.09 | AD45: 0.23 | AE45: 0.96 | AF45: 0.31 | AG45: 0.18 | AH45: 0.3 | AK45: =IF(List1[[#This Row],[Price]]="","",CONVERT(List1[[#This Row],[Price]],"kg","lbm")) -> 
C46: 12 | D46: BERMUDAGRASS | E46: Coastal, hay, early head | F46: Forage | G46: AVG | H46: 87.1 | I46: 10.4 | J46: 4 | K46: 0.9 | L46: 2.7 | M46: 73.3 | N46: 36.8 | O46: 6.5 | P46: 8.1 | Q46: 9.5 | R46: 1 | S46: 36.5 | U46: 36.7 | V46: 51.7 | W46: 11.6 | X46: 8.1 | Y46: 65 | Z46: 3.49 | AA46: 1.3 | AB46: 0.49 | AC46: 0.27 | AD46: 0.19 | AE46: 1.8 | AF46: 0.17 | AG46: 0.67 | AH46: 0.48 | AK46: =IF(List1[[#This Row],[Price]]="","",CONVERT(List1[[#This Row],[Price]],"kg","lbm")) -> 
C47: 13 | D47: BERMUDAGRASS | E47: Tifton-85, hay, 3-4wk growth | F47: Forage | G47: AVG | H47: 87.3 | I47: 13.7 | J47: 5.3 | K47: 1.2 | L47: 2.7 | M47: 76.9 | N47: 36.2 | O47: 5.4 | P47: 6.5 | Q47: 5.5 | R47: 1 | S47: 40.7 | U47: 36.7 | V47: 51.7 | W47: 11.6 | X47: 8.1 | Y47: 65 | Z47: 3.49 | AA47: 1.3 | AB47: 0.39 | AC47: 0.22 | AD47: 0.15 | AE47: 1.4 | AF47: 0.14 | AG47: 0.54 | AH47: 0.38 | AK47: =IF(List1[[#This Row],[Price]]="","",CONVERT(List1[[#This Row],[Price]],"kg","lbm")) -> 
C48: 14 | D48: BLOOD | E48: Meal, ring dried | F48: Animal | G48: AVG | H48: 90.2 | I48: 95.5 | J48: 0 | K48: 0 | L48: 1.2 | M48: 0 | N48: 0 | O48: 0 | P48: 2.5 | Q48: 0.8 | R48: 1 | S48: 0 | U48: 10.1 | V48: 60.9 | W48: 29 | X48: 1.9 | Y48: 80 | Z48: 8.98 | AA48: 1.17 | AB48: 0.3 | AC48: 0.3 | AD48: 0.03 | AE48: 0.33 | AF48: 0.4 | AG48: 0.33 | AH48: 0.77 | AI48: 0 | AJ48: 0.8754332741 | AK48: =IF(List1[[#This Row],[Price]]="","",CONVERT(List1[[#This Row],[Price]],"kg","lbm")) -> 1.93
C49: 15 | D49: BLOOD | E49: Meal, batch dried | F49: Animal | G49: AVG | H49: 90.2 | I49: 95.5 | J49: 0 | K49: 0 | L49: 1.2 | M49: 0 | N49: 0 | O49: 0 | P49: 2.5 | Q49: 0.8 | S49: 0 | U49: 10.1 | V49: 60.9 | W49: 29 | X49: 1.9 | Y49: 80 | Z49: 8.89 | AA49: 1.17 | AB49: 0.3 | AC49: 0.3 | AD49: 0.03 | AE49: 0.33 | AF49: 0.4 | AG49: 0.33 | AH49: 0.77 | AI49: 0 | AJ49: 0.8754332741 | AK49: =IF(List1[[#This Row],[Price]]="","",CONVERT(List1[[#This Row],[Price]],"kg","lbm")) -> 1.93
C50: 16 | D50: BREWERS GRAINS | E50: Dried | F50: Conc | G50: AVG | H50: 90.7 | I50: 29.2 | J50: 9.1 | K50: 3.5 | L50: 5.2 | M50: 47.4 | N50: 22.2 | O50: 5 | P50: 4.3 | Q50: 23 | R50: 1 | S50: 25.2 | U50: 18.3 | V50: 64.6 | W50: 17.1 | X50: 4.7 | Y50: 80 | Z50: 4.08 | AA50: 1.7 | AB50: 0.3 | AC50: 0.67 | AD50: 0.26 | AE50: 0.5 | AF50: 0.04 | AG50: 0.07 | AH50: 0.38 | AK50: =IF(List1[[#This Row],[Price]]="","",CONVERT(List1[[#This Row],[Price]],"kg","lbm")) -> 
C51: 17 | D51: BREWERS GRAINS | E51: Wet | F51: Conc | G51: AVG | H51: 21.8 | I51: 28.4 | J51: 9.3 | K51: 2.9 | L51: 5.2 | M51: 47.1 | N51: 23.1 | O51: 4.7 | P51: 4.9 | Q51: 23.7 | R51: 1 | S51: 24 | U51: 48.3 | V51: 42.5 | W51: 9.2 | X51: 4.6 | Y51: 85 | Z51: 3.4 | AA51: 1.93 | AB51: 0.35 | AC51: 0.59 | AD51: 0.21 | AE51: 0.47 | AF51: 0.01 | AG51: 0.12 | AH51: 0.33 | AK51: =IF(List1[[#This Row],[Price]]="","",CONVERT(List1[[#This Row],[Price]],"kg","lbm")) -> 
C52: 18 | D52: CANOLA | E52: Seed | F52: Conc | G52: AVG | H52: 89.9 | I52: 20.5 | J52: 3.4 | K52: 1.3 | L52: 40.5 | M52: 17.8 | N52: 11.6 | O52: 2.7 | P52: 4.6 | Q52: 20 | R52: 1 | S52: 6.2 | U52: 35.2 | V52: 59.5 | W52: 5.3 | X52: 20.1 | Y52: 50 | Z52: 5.62 | AA52: 1.87 | AB52: 0.44 | AC52: 0.68 | AD52: 0.21 | AE52: 0.91 | AF52: 0.03 | AH52: 0.42 | AK52: =IF(List1[[#This Row],[Price]]="","",CONVERT(List1[[#This Row],[Price]],"kg","lbm")) -> 
C53: 19 | D53: CANOLA | E53: Meal, mech. Extracted | F53: Conc | G53: AVG | H53: 90.3 | I53: 37.8 | J53: 6.3 | K53: 2.4 | L53: 5.4 | M53: 29.8 | N53: 20.5 | O53: 9.5 | P53: 7.4 | Q53: 25.9 | R53: 1 | S53: 9.3 | U53: 23.2 | V53: 70.4 | W53: 6.4 | X53: 10.4 | Y53: 75 | Z53: 5.62 | AA53: 1.87 | AB53: 0.75 | AC53: 1.1 | AD53: 0.53 | AE53: 1.41 | AF53: 0.07 | AG53: 0.04 | AH53: 0.73 | AI53: 1.5 | AJ53: 0.1758109961 | AK53: =IF(List1[[#This Row],[Price]]="","",CONVERT(List1[[#This Row],[Price]],"kg","lbm")) -> 0.3875968992
C54: 20 | D54: CHOCOLATE | E54: Byproduct | F54: Conc | G54: AVG | H54: 95.2 | I54: 11.9 | J54: 0 | K54: 0 | L54: 20.5 | M54: 23.8 | N54: 15.7 | O54: 3.2 | P54: 2.1 | Q54: 41.7 | R54: 1.04 | S54: 8.1 | U54: 74.1 | V54: 25.9 | W54: 0 | X54: 3.2 | Y54: 90 | Z54: 2.25 | AA54: 1.57 | AB54: 0.22 | AC54: 0.3 | AD54: 0.22 | AE54: 1.18 | AF54: 0.07 | AH54: 0.11 | AK54: =IF(List1[[#This Row],[Price]]="","",CONVERT(List1[[#This Row],[Price]],"kg","lbm")) -> 
C55: 21 | D55: CITRUS | E55: Pulp dried | F55: Conc | G55: AVG | H55: 85.8 | I55: 6.9 | J55: 0.4 | K55: 0.3 | L55: 4.9 | M55: 24.2 | N55: 22.2 | O55: 0.9 | P55: 7.2 | Q55: 57.2 | R55: 1 | S55: 2 | U55: 41.7 | V55: 53.3 | W55: 5 | X55: 7.4 | Y55: 80 | Z55: 2.56 | AA55: 1.03 | AB55: 1.92 | AC55: 0.12 | AD55: 0.12 | AE55: 1.1 | AF55: 0.06 | AG55: 0.08 | AH55: 0.1 | AK55: =IF(List1[[#This Row],[Price]]="","",CONVERT(List1[[#This Row],[Price]],"kg","lbm")) -> 
C56: 22 | D56: CORN, YELLOW | E56: Cobs | F56: Conc | G56: AVG | H56: 90.8 | I56: 3 | J56: 1.7 | K56: 0.8 | L56: 0.6 | M56: 86.2 | N56: 42.2 | O56: 5.9 | P56: 2.2 | Q56: 9.7 | R56: 1 | S56: 44 | U56: 45 | V56: 49.4 | W56: 5.6 | X56: 2.8 | Y56: 60 | Z56: 2.78 | AA56: 2.5 | AB56: 0.1 | AC56: 0.06 | AD56: 0.06 | AE56: 0.9 | AF56: 0.04 | AH56: 0.07 | AK56: =IF(List1[[#This Row],[Price]]="","",CONVERT(List1[[#This Row],[Price]],"kg","lbm")) -> 
C57: 23 | D57: CORN, YELLOW | E57: Distillers grains with solubles, dried | F57: Conc | G57: AVG | H57: 90.2 | I57: 29.7 | J57: 8.6 | K57: 5 | L57: 10 | M57: 38.8 | N57: 19.7 | O57: 4.3 | P57: 5.2 | Q57: 24.9 | R57: 1 | S57: 19.1 | U57: 28.5 | V57: 63.3 | W57: 8.2 | X57: 3.6 | Y57: 80 | Z57: 2.24 | AA57: 1.82 | AB57: 0.22 | AC57: 0.83 | AD57: 0.33 | AE57: 1.1 | AF57: 0.3 | AG57: 0.26 | AH57: 0.44 | AI57: 2.5 | AJ57: 0.06034488293 | AK57: =IF(List1[[#This Row],[Price]]="","",CONVERT(List1[[#This Row],[Price]],"kg","lbm")) -> 0.133037694
C58: 24 | D58: CORN, YELLOW | E58: Gluten feed, dried | F58: Conc | G58: AVG | H58: 89.4 | I58: 23.8 | J58: 3.6 | K58: 1.4 | L58: 3.5 | M58: 35.5 | N58: 12.1 | O58: 2 | P58: 6.8 | Q58: 34 | R58: 1 | S58: 23.4 | U58: 48 | V58: 43.2 | W58: 8.8 | X58: 7.7 | Y58: 85 | Z58: 2.74 | AA58: 1.61 | AB58: 0.07 | AC58: 1 | AD58: 0.42 | AE58: 1.46 | AF58: 0.13 | AG58: 0.2 | AH58: 0.44 | AI58: 23.3 | AJ58: 0.06595862204 | AK58: =IF(List1[[#This Row],[Price]]="","",CONVERT(List1[[#This Row],[Price]],"kg","lbm")) -> 0.1454138702
C59: 25 | D59: CORN, YELLOW | E59: Gluten meal, dried | F59: Conc | G59: AVG | H59: 86.4 | I59: 65 | J59: 3.6 | K59: 3 | L59: 2.5 | M59: 11.1 | N59: 8.2 | O59: 1.5 | P59: 3.3 | Q59: 21.7 | R59: 1 | S59: 2.9 | U59: 3.9 | V59: 90.9 | W59: 5.2 | X59: 2.3 | Y59: 92 | Z59: 1.69 | AA59: 2.37 | AB59: 0.06 | AC59: 0.6 | AD59: 0.14 | AE59: 0.46 | AF59: 0.05 | AG59: 0.11 | AH59: 0.86 | AI59: 2.5 | AJ59: 0.3674938183 | AK59: =IF(List1[[#This Row],[Price]]="","",CONVERT(List1[[#This Row],[Price]],"kg","lbm")) -> 0.8101851852
C60: 26 | D60: CORN, YELLOW | E60: Grain, cracked, dry | F60: Conc | G60: AVG | H60: 88.1 | I60: 9.4 | J60: 0.7 | K60: 0.3 | L60: 4.2 | M60: 9.5 | N60: 3.4 | O60: 0.9 | P60: 1.5 | Q60: 76.1 | R60: 0.95 | S60: 6.1 | U60: 23.9 | V60: 72.5 | W60: 3.6 | X60: 4.9 | Y60: 90 | Z60: 2.84 | AA60: 2.13 | AB60: 0.04 | AC60: 0.3 | AD60: 0.12 | AE60: 0.42 | AF60: 0.02 | AG60: 0.08 | AH60: 0.1 | AK60: =IF(List1[[#This Row],[Price]]="","",CONVERT(List1[[#This Row],[Price]],"kg","lbm")) -> 
C61: 27 | D61: CORN, YELLOW | E61: Grain, ground, dry | F61: Conc | G61: AVG | H61: 88.1 | I61: 9.4 | J61: 0.7 | K61: 0.3 | L61: 4.2 | M61: 9.5 | N61: 3.4 | O61: 0.9 | P61: 1.5 | Q61: 76.1 | R61: 1 | S61: 6.1 | U61: 23.9 | V61: 72.5 | W61: 3.6 | X61: 4.9 | Y61: 90 | Z61: 2.84 | AA61: 2.13 | AB61: 0.04 | AC61: 0.3 | AD61: 0.12 | AE61: 0.42 | AF61: 0.02 | AG61: 0.08 | AH61: 0.1 | AK61: =IF(List1[[#This Row],[Price]]="","",CONVERT(List1[[#This Row],[Price]],"kg","lbm")) -> 
C62: 28 | D62: CORN, YELLOW | E62: Grain, steam-flaked | F62: Conc | G62: AVG | H62: 88.1 | I62: 9.4 | J62: 0.7 | K62: 0.3 | L62: 4.2 | M62: 9.5 | N62: 3.4 | O62: 0.9 | P62: 1.5 | Q62: 76.1 | R62: 1.04 | S62: 6.1 | U62: 1.7 | V62: 82.8 | W62: 15.5 | X62: 3 | Y62: 90 | Z62: 3.05 | AA62: 2.04 | AB62: 0.04 | AC62: 0.3 | AD62: 0.12 | AE62: 0.42 | AF62: 0.02 | AG62: 0.08 | AH62: 0.1 | AK62: =IF(List1[[#This Row],[Price]]="","",CONVERT(List1[[#This Row],[Price]],"kg","lbm")) -> 
C63: 29 | D63: CORN, YELLOW | E63: Grain, rolled, high moisture | F63: Conc | G63: AVG | H63: 71.8 | I63: 9.2 | J63: 0.6 | K63: 0.3 | L63: 4.3 | M63: 10.3 | N63: 3.6 | O63: 0.9 | P63: 1.5 | Q63: 75.3 | R63: 1 | S63: 6.7 | U63: 27.9 | V63: 71.4 | W63: 0.7 | X63: 5.1 | Y63: 90 | Z63: 2.64 | AA63: 2.11 | AB63: 0.03 | AC63: 0.3 | AD63: 0.12 | AE63: 0.43 | AF63: 0.01 | AG63: 0.05 | AH63: 0.1 | AK63: =IF(List1[[#This Row],[Price]]="","",CONVERT(List1[[#This Row],[Price]],"kg","lbm")) -> 
C64: 30 | D64: CORN, YELLOW | E64: Grain, ground, high moisture | F64: Conc | G64: AVG | H64: 71.8 | I64: 9.2 | J64: 0.6 | K64: 0.3 | L64: 4.3 | M64: 10.3 | N64: 3.6 | O64: 0.9 | P64: 1.5 | Q64: 75.3 | R64: 1.04 | S64: 6.7 | U64: 27.9 | V64: 71.4 | W64: 0.7 | X64: 5.1 | Y64: 90 | Z64: 2.64 | AA64: 2.11 | AB64: 0.03 | AC64: 0.3 | AD64: 0.12 | AE64: 0.43 | AF64: 0.01 | AG64: 0.05 | AH64: 0.1 | AI64: 72 | AJ64: 0.1111301307 | AK64: =IF(List1[[#This Row],[Price]]="","",CONVERT(List1[[#This Row],[Price]],"kg","lbm")) -> 0.245
C65: 31 | D65: CORN, YELLOW | E65: Grain and cob, dry, ground | F65: Conc | G65: AVG | H65: 89.2 | I65: 8.6 | J65: 0.9 | K65: 0.4 | L65: 3.9 | M65: 21.5 | N65: 8 | O65: 1.6 | P65: 1.7 | Q65: 65.2 | R65: 1 | S65: 13.5 | U65: 30 | V65: 68.3 | W65: 1.7 | X65: 5 | Y65: 90 | Z65: 2.6 | AA65: 2 | AB65: 0.06 | AC65: 0.29 | AD65: 0.13 | AE65: 0.49 | AF65: 0.03 | AG65: 0.07 | AH65: 0.1 | AK65: =IF(List1[[#This Row],[Price]]="","",CONVERT(List1[[#This Row],[Price]],"kg","lbm")) -> 
C66: 32 | D66: CORN, YELLOW | E66: Grain and cob, high moisture, ground | F66: Conc | G66: AVG | H66: 67.1 | I66: 8.4 | J66: 0.7 | K66: 0.3 | L66: 3.9 | M66: 21 | N66: 9.4 | O66: 1.4 | P66: 1.7 | Q66: 65.7 | R66: 1.04 | S66: 11.6 | U66: 34 | V66: 65.7 | W66: 0.3 | X66: 5.2 | Y66: 90 | Z66: 2.28 | AA66: 1.7 | AB66: 0.05 | AC66: 0.28 | AD66: 0.12 | AE66: 0.48 | AF66: 0.01 | AG66: 0.07 | AH66: 0.09 | AK66: =IF(List1[[#This Row],[Price]]="","",CONVERT(List1[[#This Row],[Price]],"kg","lbm")) -> 
C67: 33 | D67: CORN, YELLOW | E67: Hominy | F67: Conc | G67: AVG | H67: 88.5 | I67: 11.9 | J67: 1.5 | K67: 0.5 | L67: 4.2 | M67: 21.1 | N67: 6.2 | O67: 1.7 | P67: 2.7 | Q67: =IF(G67="AVG",100-(I67+(M67-J67)+L67+P67),"") -> 61.6 | R67: 1 | S67: =IF(G67="AVG",M67-N67,"") -> 14.9 | U67: 45 | V67: 49 | W67: 6 | X67: 7 | Y67: 90 | Z67: 3.69 | AA67: 1.75 | AB67: 0.03 | AC67: 0.65 | AD67: 0.26 | AE67: 0.82 | AF67: 0.01 | AG67: 0.1 | AH67: 0.12 | AI67: 31 | AJ67: 0.05637871266 | AK67: =IF(List1[[#This Row],[Price]]="","",CONVERT(List1[[#This Row],[Price]],"kg","lbm")) -> 0.1242937853
C68: 34 | D68: CORN, YELLOW | E68: Silage, immature <25% DM | F68: Forage | G68: AVG | H68: 23.5 | I68: 9.7 | J68: 1.4 | K68: 0.9 | L68: 2.5 | M68: 54.1 | N68: 34.1 | O68: 3.5 | P68: 4.8 | Q68: 30.3 | R68: 1 | S68: 20 | U68: 57.8 | V68: 23.7 | W68: 18.5 | X68: 4 | Y68: 70 | Z68: 2.51 | AA68: 1.53 | AB68: 0.29 | AC68: 0.24 | AD68: 0.19 | AE68: 1.3 | AF68: 0.01 | AG68: 0.3 | AH68: 0.14 | AK68: =IF(List1[[#This Row],[Price]]="","",CONVERT(List1[[#This Row],[Price]],"kg","lbm")) -> 
C69: 35 | D69: CORN, YELLOW | E69: Silage, normal 32-38% DM | F69: Forage | G69: AVG | H69: 35.1 | I69: 8.8 | J69: 1.3 | K69: 0.8 | L69: 3.2 | M69: 45 | N69: 28.1 | O69: 2.6 | P69: 4.3 | Q69: 40 | R69: 0.94 | S69: 16.9 | U69: 51.3 | V69: 30.2 | W69: 18.5 | X69: 4.4 | Y69: 70 | Z69: 2.51 | AA69: 1.53 | AB69: 0.28 | AC69: 0.26 | AD69: 0.17 | AE69: 1.2 | AF69: 0.01 | AG69: 0.29 | AH69: 0.14 | AI69: 30 | AJ69: 0.03876857863 | AK69: =IF(List1[[#This Row],[Price]]="","",CONVERT(List1[[#This Row],[Price]],"kg","lbm")) -> 0.08547008547
C70: 36 | D70: CORN, YELLOW | E70: Silage, mature >40% DM | F70: Forage | G70: AVG | H70: 44.2 | I70: 8.5 | J70: 1.3 | K70: 0.9 | L70: 3.2 | M70: 44.5 | N70: 27.5 | O70: 3.1 | P70: 4 | Q70: 41.1 | R70: 0.87 | S70: 17 | U70: 48.8 | V70: 27.6 | W70: 23.6 | X70: 3.2 | Y70: 70 | Z70: 2.51 | AA70: 1.53 | AB70: 0.26 | AC70: 0.25 | AD70: 0.16 | AE70: 1.1 | AF70: 0.01 | AG70: 0.17 | AH70: 0.1 | AK70: =IF(List1[[#This Row],[Price]]="","",CONVERT(List1[[#This Row],[Price]],"kg","lbm")) -> 
C71: 37 | D71: COTTON SEED | E71: Whole seeds with lint | F71: Conc | G71: AVG | H71: 90.1 | I71: 23.5 | J71: 2.4 | K71: 1.9 | L71: 19.3 | M71: 50.3 | N71: 40.1 | O71: 12.9 | P71: 4.2 | Q71: 5.1 | R71: 1 | S71: 10.2 | U71: 45.4 | V71: 46.7 | W71: 7.9 | X71: 15.7 | Y71: 80 | Z71: 4.35 | AA71: 1.71 | AB71: 0.17 | AC71: 0.6 | AD71: 0.37 | AE71: 1.13 | AF71: 0.02 | AG71: 0.06 | AH71: 0.23 | AI71: 1 | AJ71: 0.2114415043 | AK71: =IF(List1[[#This Row],[Price]]="","",CONVERT(List1[[#This Row],[Price]],"kg","lbm")) -> 0.4661487236
C72: 38 | D72: COTTON SEED | E72: Hulls | F72: Conc | G72: AVG | H72: 89 | I72: 6.2 | J72: 3 | K72: 1.1 | L72: 2.5 | M72: 85 | N72: 64.9 | O72: 22.5 | P72: 2.8 | Q72: 6.5 | R72: 1 | S72: 20.1 | U72: 29.6 | V72: 35.4 | W72: 35 | X72: 5.3 | Y72: 50 | Z72: 4.66 | AA72: 1.83 | AB72: 0.18 | AC72: 0.12 | AD72: 0.17 | AE72: 1.16 | AF72: 0.02 | AG72: 0.06 | AH72: 0.07 | AK72: =IF(List1[[#This Row],[Price]]="","",CONVERT(List1[[#This Row],[Price]],"kg","lbm")) -> 
C73: 39 | D73: COTTON SEED | E73: Meal, solvent, 41% CP | F73: Conc | G73: AVG | H73: 90.5 | I73: 44.9 | J73: 3.3 | K73: 1.8 | L73: 1.9 | M73: 30.8 | N73: 19.9 | O73: 7.6 | P73: 6.7 | Q73: 19 | R73: 1 | S73: 10.9 | U73: 25.6 | V73: 55.5 | W73: 18.9 | X73: 6.8 | Y73: 92 | Z73: 4.13 | AA73: 1.59 | AB73: 0.2 | AC73: 1.15 | AD73: 0.61 | AE73: 1.64 | AF73: 0.07 | AG73: 0.07 | AH73: 0.4 | AI73: 1.5 | AJ73: 0.220531097 | AK73: =IF(List1[[#This Row],[Price]]="","",CONVERT(List1[[#This Row],[Price]],"kg","lbm")) -> 0.4861878453
C74: 40 | D74: FATS AND OILS | E74: Calcium soaps | F74: Fat | G74: AVG | H74: 95.3 | I74: 0 | J74: 0 | K74: 0 | L74: 84.5 | M74: 0 | N74: 0 | O74: 0 | P74: 15.5 | Q74: 0 | R74: 1 | S74: 0 | U74: 0 | V74: 0 | W74: 0 | X74: 0 | Y74: 0 | AB74: 12 | AC74: 0 | AD74: 0 | AE74: 0 | AF74: 0 | AG74: 0 | AH74: 0 | AK74: =IF(List1[[#This Row],[Price]]="","",CONVERT(List1[[#This Row],[Price]],"kg","lbm")) -> 
C75: 41 | D75: FATS AND OILS | E75: Hydrolyzed tallow fatty acids | F75: Fat | G75: AVG | H75: 99.8 | I75: 0 | J75: 0 | K75: 0 | L75: 99.2 | M75: 0 | N75: 0 | O75: 0 | P75: 0 | Q75: 0.8 | R75: 1 | S75: 0 | U75: 0 | V75: 0 | W75: 0 | X75: 0 | Y75: 0 | AB75: 0 | AC75: 0 | AD75: 0 | AE75: 0 | AF75: 0 | AG75: 0 | AH75: 0 | AK75: =IF(List1[[#This Row],[Price]]="","",CONVERT(List1[[#This Row],[Price]],"kg","lbm")) -> 
C76: 42 | D76: FATS AND OILS | E76: Partially hydrogenated tallow | F76: Fat+G | G76: AVG | H76: 100 | I76: 0 | J76: 0 | K76: 0 | L76: 99.5 | M76: 0 | N76: 0 | O76: 0 | P76: 0 | Q76: 0.5 | R76: 1 | S76: 0 | U76: 0 | V76: 0 | W76: 0 | X76: 0 | Y76: 0 | AB76: 0 | AC76: 0 | AD76: 0 | AE76: 0 | AF76: 0 | AG76: 0 | AH76: 0 | AK76: =IF(List1[[#This Row],[Price]]="","",CONVERT(List1[[#This Row],[Price]],"kg","lbm")) -> 
C77: 43 | D77: FATS AND OILS | E77: Tallow | F77: Fat+G | G77: AVG | H77: 99.8 | I77: 0 | J77: 0 | K77: 0 | L77: 99.8 | M77: 0 | N77: 0 | O77: 0 | P77: 0 | Q77: 0.2 | R77: 1 | S77: 0 | U77: 0 | V77: 0 | W77: 0 | X77: 0 | Y77: 0 | AB77: 0 | AC77: 0 | AD77: 0 | AE77: 0 | AF77: 0 | AG77: 0 | AH77: 0 | AK77: =IF(List1[[#This Row],[Price]]="","",CONVERT(List1[[#This Row],[Price]],"kg","lbm")) -> 
C78: 44 | D78: FATS AND OILS | E78: Vegetable oil | F78: Fat+G | G78: AVG | H78: 100 | I78: 0 | J78: 0 | K78: 0 | L78: 99.9 | M78: 0 | N78: 0 | O78: 0 | P78: 0 | Q78: 0.1 | R78: 1 | S78: 0 | U78: 0 | V78: 0 | W78: 0 | X78: 0 | Y78: 0 | AB78: 0 | AC78: 0 | AD78: 0 | AE78: 0 | AF78: 0 | AG78: 0 | AH78: 0 | AK78: =IF(List1[[#This Row],[Price]]="","",CONVERT(List1[[#This Row],[Price]],"kg","lbm")) -> 
C79: 45 | D79: FEATHERS | E79: Hydrolyzed meal | F79: Animal | G79: AVG | H79: 93.3 | I79: 92 | J79: 0 | K79: 0 | L79: 4.6 | M79: 0 | N79: 0 | O79: 0 | P79: 3.5 | Q79: -0.1 | R79: 1 | S79: 0 | U79: 23.4 | V79: 23.7 | W79: 52.9 | X79: 6.6 | Y79: 65 | Z79: 2.57 | AA79: 0.75 | AB79: 0.33 | AC79: 0.5 | AD79: 0.22 | AE79: 0.33 | AF79: 0.34 | AG79: 0.26 | AH79: 1.39 | AK79: =IF(List1[[#This Row],[Price]]="","",CONVERT(List1[[#This Row],[Price]],"kg","lbm")) -> 
C80: 46 | D80: FEATHERS | E80: Hydrolyzed meal with some viscera | F80: Animal | G80: AVG | H80: 91.5 | I80: 85 | J80: 0 | K80: 0 | L80: 8.8 | M80: 0 | N80: 0 | O80: 0 | P80: 5.5 | Q80: 0.7 | R80: 1 | S80: 0 | U80: 23.4 | V80: 23.7 | W80: 52.9 | X80: 6.6 | Y80: 70 | Z80: 2.9 | AA80: 0.84 | AB80: 1.36 | AC80: 0.77 | AD80: 0.06 | AE80: 0.24 | AF80: 0.27 | AG80: 0.47 | AH80: 1.75 | AK80: =IF(List1[[#This Row],[Price]]="","",CONVERT(List1[[#This Row],[Price]],"kg","lbm")) -> 
C81: 47 | D81: FISH BYPRODUCTS | E81: Anchovy, meal, mech. | F81: Animal | G81: AVG | H81: 92 | J81: 0 | K81: 0 | L81: 4.6 | M81: 0 | N81: 0 | O81: 0 | P81: 16 | Q81: 79.4 | R81: 1 | S81: 0 | U81: 32.4 | V81: 37.9 | W81: 29.7 | X81: 3.2 | Y81: 90 | Z81: 7.91 | AA81: 3.02 | AB81: 4.06 | AC81: 2.69 | AD81: 0.27 | AE81: 0.79 | AF81: 0.96 | AG81: 0.8 | AH81: 0.78 | AK81: =IF(List1[[#This Row],[Price]]="","",CONVERT(List1[[#This Row],[Price]],"kg","lbm")) -> 
C82: 48 | D82: FISH BYPRODUCTS | E82: Menhaden, meal, mech. | F82: Animal | G82: AVG | H82: 91.2 | I82: 68.5 | J82: 0 | K82: 0 | L82: 10.4 | M82: 0 | N82: 0 | O82: 0 | P82: 19.7 | Q82: 1.4 | R82: 1 | S82: 0 | U82: 22.8 | V82: 72 | W82: 5.2 | X82: 1.4 | Y82: 90 | Z82: 7.65 | AA82: 2.81 | AB82: 5.34 | AC82: 3.05 | AD82: 0.2 | AE82: 0.74 | AF82: 0.68 | AG82: 0.8 | AH82: 1.16 | AK82: =IF(List1[[#This Row],[Price]]="","",CONVERT(List1[[#This Row],[Price]],"kg","lbm")) -> 
C83: 49 | D83: GRASSES, COOL SEASON | E83: Pasture, intensively managed | F83: Forage | G83: AVG | H83: 20.1 | I83: 26.5 | J83: 3.9 | K83: 1.1 | L83: 2.7 | M83: 45.8 | N83: 25 | O83: 2.1 | P83: 9.8 | Q83: 19.1 | R83: 1 | S83: 20.8 | U83: 30.7 | V83: 63.5 | W83: 5.8 | X83: 12.3 | Y83: 75 | Z83: 3.46 | AA83: 1.37 | AB83: 0.56 | AC83: 0.44 | AD83: 0.2 | AE83: 3.36 | AF83: 0.02 | AG83: 0.56 | AH83: 0.2 | AK83: =IF(List1[[#This Row],[Price]]="","",CONVERT(List1[[#This Row],[Price]],"kg","lbm")) -> 
C84: 50 | D84: GRASSES, COOL SEASON | E84: Hay, all samples | F84: Forage | G84: AVG | H84: 88.1 | I84: 10.6 | J84: 3.8 | K84: 1.1 | L84: 2.6 | M84: 64.4 | N84: 39.5 | O84: 6.4 | P84: 7 | Q84: 19.2 | R84: 1 | S84: 24.9 | U84: 36.7 | V84: 50.4 | W84: 12.9 | X84: 8.5 | Y84: 65 | Z84: 3.48 | AA84: 1.3 | AB84: 0.58 | AC84: 0.23 | AD84: 0.2 | AE84: 2.01 | AF84: 0.04 | AG84: 0.5 | AH84: 0.21 | AK84: =IF(List1[[#This Row],[Price]]="","",CONVERT(List1[[#This Row],[Price]],"kg","lbm")) -> 
C85: 51 | D85: GRASSES, COOL SEASON | E85: Hay, immature <55% NDF | F85: Forage | G85: AVG | H85: 84 | I85: 18 | J85: 3.4 | K85: 1.3 | L85: 3.3 | M85: 49.6 | N85: 31.4 | O85: 3.9 | P85: 9.2 | Q85: 23.3 | R85: 1 | S85: 18.2 | U85: 45 | V85: 46.7 | W85: 8.3 | X85: 12.4 | Y85: 70 | Z85: 3.48 | AA85: 1.3 | AB85: 0.72 | AC85: 0.34 | AD85: 0.23 | AE85: 2.57 | AF85: 0.03 | AG85: 0.42 | AH85: 0.24 | AK85: =IF(List1[[#This Row],[Price]]="","",CONVERT(List1[[#This Row],[Price]],"kg","lbm")) -> 
C86: 52 | D86: GRASSES, COOL SEASON | E86: Hay, mid maturity 55-60% NDF | F86: Forage | G86: AVG | H86: 83.8 | I86: 13.3 | J86: 3.9 | K86: 1.2 | L86: 2.5 | M86: 57.7 | N86: 36.9 | O86: 4.3 | P86: 8.8 | Q86: 21.6 | R86: 1 | S86: 20.8 | U86: 36.7 | V86: 51.7 | W86: 11.6 | X86: 8.1 | Y86: 65 | Z86: 3.49 | AA86: 1.3 | AB86: 0.66 | AC86: 0.29 | AD86: 0.23 | AE86: 2.13 | AF86: 0.08 | AG86: 0.92 | AH86: 0.24 | AK86: =IF(List1[[#This Row],[Price]]="","",CONVERT(List1[[#This Row],[Price]],"kg","lbm")) -> 
C87: 53 | D87: GRASSES, COOL SEASON | E87: Hay, mature >60% NDF | F87: Forage | G87: AVG | H87: 84.4 | I87: 10.8 | J87: 7.4 | K87: 1.1 | L87: 2 | M87: 69.1 | N87: 41.6 | O87: 5.9 | P87: 7 | Q87: 18.5 | R87: 1 | S87: 27.5 | U87: 28.4 | V87: 52.9 | W87: 18.7 | X87: 5 | Y87: 60 | Z87: 3.48 | AA87: 1.3 | AB87: 0.47 | AC87: 0.26 | AD87: 0.18 | AE87: 1.97 | AF87: 0.02 | AG87: 0.66 | AH87: 0.17 | AK87: =IF(List1[[#This Row],[Price]]="","",CONVERT(List1[[#This Row],[Price]],"kg","lbm")) -> 
C88: 54 | D88: GRASSES, COOL SEASON | E88: Silage, all samples | F88: Forage | G88: AVG | H88: 36.5 | I88: 12.8 | J88: 3.3 | K88: 1.5 | L88: 3.1 | M88: 60.7 | N88: 40.3 | O88: 6.9 | P88: 8.1 | Q88: 18.6 | R88: 1 | S88: 20.4 | U88: 56.1 | V88: 33.2 | W88: 10.7 | X88: 5.8 | Y88: 60 | Z88: 3.3 | AA88: 1.22 | AB88: 0.55 | AC88: 0.29 | AD88: 0.23 | AE88: 2.54 | AF88: 0.05 | AG88: 0.67 | AH88: 0.21 | AK88: =IF(List1[[#This Row],[Price]]="","",CONVERT(List1[[#This Row],[Price]],"kg","lbm")) -> 
C89: 55 | D89: GRASSES, COOL SEASON | E89: Silage, immature <55% NDF | F89: Forage | G89: AVG | H89: 36.2 | I89: 16.8 | J89: 4.3 | K89: 1.1 | L89: 2.8 | M89: 51 | N89: 32.9 | O89: 4.8 | P89: 9.9 | Q89: 23.8 | R89: 1 | S89: 18.1 | U89: 60.1 | V89: 31.8 | W89: 8.1 | X89: 8.1 | Y89: 65 | Z89: 3.28 | AA89: 1.21 | AB89: 0.57 | AC89: 0.36 | AD89: 0.22 | AE89: 3.11 | AF89: 0.05 | AG89: 0.67 | AH89: 0.21 | AK89: =IF(List1[[#This Row],[Price]]="","",CONVERT(List1[[#This Row],[Price]],"kg","lbm")) -> 
C90: 56 | D90: GRASSES, COOL SEASON | E90: Silage, mid maturity 55-60% NDF | F90: Forage | G90: AVG | H90: 42 | I90: 16.8 | J90: 4.3 | K90: 1.1 | L90: 2.4 | M90: 58.2 | N90: 35.2 | O90: 6.8 | P90: 8.7 | Q90: 18.2 | R90: 1 | S90: 23 | U90: 60.4 | V90: 31 | W90: 8.6 | X90: 4.8 | Y90: 60 | Z90: 3.28 | AA90: 1.21 | AB90: 0.6 | AC90: 0.36 | AD90: 0.21 | AE90: 2.78 | AF90: 0.05 | AG90: 0.67 | AH90: 0.21 | AK90: =IF(List1[[#This Row],[Price]]="","",CONVERT(List1[[#This Row],[Price]],"kg","lbm")) -> 
C91: 57 | D91: GRASSES, COOL SEASON | E91: Silage, mature >60% NDF | F91: Forage | G91: AVG | H91: 38.7 | I91: 12.7 | J91: 3.2 | K91: 1.4 | L91: 3 | M91: 66.6 | N91: 41.1 | O91: 7.4 | P91: 8 | Q91: 12.9 | R91: 1 | S91: 25.5 | U91: 47.9 | V91: 37.1 | W91: 15 | X91: 4.6 | Y91: 55 | Z91: 3.35 | AA91: 1.23 | AB91: 0.56 | AC91: 0.31 | AD91: 0.2 | AE91: 2.42 | AF91: 0.05 | AG91: 0.89 | AH91: 0.2 | AK91: =IF(List1[[#This Row],[Price]]="","",CONVERT(List1[[#This Row],[Price]],"kg","lbm")) -> 
C92: 58 | D92: GRASS-Legume MIXTURES Pr. GR. (17-22% Hcel.) | E92: Hay, immature <51% NDF | F92: Forage | G92: AVG | H92: 84.3 | I92: 18.4 | J92: 4.2 | K92: 1.3 | L92: 2.4 | M92: 49.6 | N92: 31.5 | O92: 4 | P92: 9.2 | Q92: 24.6 | R92: 1 | S92: 18.1 | U92: 44.4 | V92: 47.7 | W92: 7.9 | X92: 13.8 | Y92: 70 | Z92: 3.89 | AA92: 1.37 | AB92: 1.01 | AC92: 0.31 | AD92: 0.26 | AE92: 2.83 | AF92: 0.03 | AG92: 0.74 | AH92: 0.28 | AK92: =IF(List1[[#This Row],[Price]]="","",CONVERT(List1[[#This Row],[Price]],"kg","lbm")) -> 
C93: 59 | D93: GRASS-Legume MIXTURES Pr. GR. (17-22% Hcel.) | E93: Hay, mid maturity 51-57% NDF | F93: Forage | G93: AVG | H93: 87.3 | I93: 17.4 | J93: 4.2 | K93: 1.4 | L93: 2.6 | M93: 55.1 | N93: 36.4 | O93: 4.5 | P93: 9.5 | Q93: 19.6 | R93: 1 | S93: 18.7 | U93: 38.6 | V93: 50.5 | W93: 10.9 | X93: 10.6 | Y93: 65 | Z93: 3.89 | AA93: 1.37 | AB93: 0.88 | AC93: 0.36 | AD93: 0.25 | AE93: 2.45 | AF93: 0.01 | AG93: 0.77 | AH93: 0.27 | AK93: =IF(List1[[#This Row],[Price]]="","",CONVERT(List1[[#This Row],[Price]],"kg","lbm")) -> 
C94: 60 | D94: GRASS-Legume MIXTURES Pr. GR. (17-22% Hcel.) | E94: Hay, mature >57% NDF | F94: Forage | G94: AVG | H94: 84.7 | I94: 13.3 | J94: 4.4 | K94: 1.3 | L94: 2.3 | M94: 62.5 | N94: 42.1 | O94: 5.5 | P94: 7.9 | Q94: 18.4 | R94: 1 | S94: 20.4 | U94: 31 | V94: 52.1 | W94: 16.9 | X94: 7.25 | Y94: 60 | Z94: 3.86 | AA94: 1.36 | AB94: 0.73 | AC94: 0.27 | AD94: 0.21 | AE94: 2.09 | AF94: 0.1 | AG94: 0.71 | AH94: 0.29 | AK94: =IF(List1[[#This Row],[Price]]="","",CONVERT(List1[[#This Row],[Price]],"kg","lbm")) -> 
C95: 61 | D95: GRASS-Legume MIXTURES Pr. GR. (17-22% Hcel.) | E95: Silage, immature <51% NDF | F95: Forage | G95: AVG | H95: 47.1 | I95: 18 | J95: 3.1 | K95: 1.2 | L95: 2.9 | M95: 49.9 | N95: 31.8 | O95: 5 | P95: 9.1 | Q95: 23.2 | R95: 1 | S95: 18.1 | U95: 60.5 | V95: 31.1 | W95: 0.4 | X95: 9.4 | Y95: 65 | Z95: 3.58 | AA95: 1.25 | AB95: 1.02 | AC95: 0.34 | AD95: 0.25 | AE95: 2.88 | AF95: 0.03 | AG95: 0.74 | AH95: 0.27 | AK95: =IF(List1[[#This Row],[Price]]="","",CONVERT(List1[[#This Row],[Price]],"kg","lbm")) -> 
C96: 62 | D96: GRASS-Legume MIXTURES Pr. GR. (17-22% Hcel.) | E96: Silage, mid maturity 51-57% NDF | F96: Forage | G96: AVG | H96: 44.5 | I96: 17.6 | J96: 3.1 | K96: 1.4 | L96: 2.9 | M96: 54.5 | N96: 35.7 | O96: 6.5 | P96: 9.5 | Q96: 18.6 | R96: 1 | S96: 18.8 | U96: 59.6 | V96: 32.1 | W96: 8.3 | X96: 6.7 | Y96: 60 | Z96: 3.56 | AA96: 1.25 | AB96: 0.89 | AC96: 0.36 | AD96: 0.26 | AE96: 2.64 | AF96: 0.01 | AG96: 0.45 | AH96: 0.25 | AK96: =IF(List1[[#This Row],[Price]]="","",CONVERT(List1[[#This Row],[Price]],"kg","lbm")) -> 
C97: 63 | D97: GRASS-Legume MIXTURES Pr. GR. (17-22% Hcel.) | E97: Silage, mature >57% NDF | F97: Forage | G97: AVG | H97: 38.5 | I97: 15.4 | J97: 3.1 | K97: 1.8 | L97: 2.6 | M97: 61.7 | N97: 42.2 | O97: 6.9 | P97: 9 | Q97: 14.4 | R97: 1 | S97: 19.5 | U97: 49.2 | V97: 36.4 | W97: 14.4 | X97: 5.5 | Y97: 55 | Z97: 3.59 | AA97: 1.27 | AB97: 0.85 | AC97: 0.33 | AD97: 0.23 | AE97: 2.51 | AF97: 0.1 | AG97: 0.9 | AH97: 0.34 | AK97: =IF(List1[[#This Row],[Price]]="","",CONVERT(List1[[#This Row],[Price]],"kg","lbm")) -> 
C98: 64 | D98: Mixed grass-legume (12-15% Hcel.) | E98: Hay, immature <47% NDF | F98: Forage | G98: AVG | H98: 83.1 | I98: 19.7 | J98: 3.9 | K98: 1.3 | L98: 2.5 | M98: 45.4 | N98: 30.8 | O98: 5.1 | P98: 8.8 | Q98: 27.5 | R98: 1 | S98: 14.6 | U98: 43.8 | V98: 48.8 | W98: 7.4 | X98: 15.1 | Y98: 75 | Z98: 4.31 | AA98: 1.43 | AB98: 1.2 | AC98: 0.31 | AD98: 0.29 | AE98: 3.06 | AF98: 0.07 | AG98: 0.5 | AH98: 0.27 | AK98: =IF(List1[[#This Row],[Price]]="","",CONVERT(List1[[#This Row],[Price]],"kg","lbm")) -> 
C99: 65 | D99: Mixed grass-legume (12-15% Hcel.) | E99: Hay, mid maturity 47-53% NDF | F99: Forage | G99: AVG | H99: 85.3 | I99: 18.4 | J99: 4.6 | K99: 1.5 | L99: 2.3 | M99: 50.8 | N99: 35.8 | O99: 5.7 | P99: 9.3 | Q99: =IF(G99="AVG",100-(I99+(M99-J99)+L99+P99),"") -> 23.8 | R99: 1 | S99: =IF(G99="AVG",M99-N99,"") -> 15 | U99: 40.5 | V99: 49.3 | W99: 10.2 | X99: 13 | Y99: 70 | Z99: 4.29 | AA99: 1.43 | AB99: 1.04 | AC99: 0.32 | AD99: 0.25 | AE99: 2.59 | AF99: 0.03 | AG99: 0.8 | AH99: 0.24 | AK99: =IF(List1[[#This Row],[Price]]="","",CONVERT(List1[[#This Row],[Price]],"kg","lbm")) -> 
C100: 66 | D100: Mixed grass-legume (12-15% Hcel.) | E100: Hay, mature >53% NDF | F100: Forage | G100: AVG | H100: 89.7 | I100: 18.2 | J100: 4.4 | K100: 1.7 | L100: 2 | M100: 56 | N100: 40.1 | O100: 7 | P100: 9.9 | Q100: 18.3 | R100: 1 | S100: 15.9 | U100: 33.6 | V100: 51.3 | W100: 15.1 | X100: 9.5 | Y100: 65 | Z100: 4.25 | AA100: 1.43 | AB100: 0.97 | AC100: 0.37 | AD100: 0.26 | AE100: 2.24 | AF100: 0.01 | AG100: 0.93 | AH100: 0.28 | AK100: =IF(List1[[#This Row],[Price]]="","",CONVERT(List1[[#This Row],[Price]],"kg","lbm")) -> 
C101: 67 | D101: Mixed grass-legume (12-15% Hcel.) | E101: Silage, immature <47% NDF | F101: Forage | G101: AVG | H101: 45.9 | I101: 20.3 | J101: 3.1 | K101: 1.4 | L101: 2.3 | M101: 45.3 | N101: 30.8 | O101: 5.8 | P101: 9.8 | Q101: 25.4 | R101: 1 | S101: 14.5 | U101: 60.9 | V101: 30.4 | W101: 8.7 | X101: 10.6 | Y101: 70 | Z101: 3.85 | AA101: 1.29 | AB101: 1.08 | AC101: 0.35 | AD101: 0.28 | AE101: 2.89 | AF101: 0.01 | AG101: 1.77 | AH101: 0.16 | AK101: =IF(List1[[#This Row],[Price]]="","",CONVERT(List1[[#This Row],[Price]],"kg","lbm")) -> 
C102: =+C101+1 -> 68 | D102: Mixed grass-legume (12-15% Hcel.) | E102: Silage, mid maturity 47-53% NDF | F102: Forage | G102: AVG | H102: 44.1 | I102: 19.1 | J102: 3.5 | K102: 1.6 | L102: 2.5 | M102: 50.4 | N102: 35.4 | O102: 5.9 | P102: 10.1 | Q102: 21.4 | R102: 1 | S102: 15 | U102: 58.9 | V102: 33.2 | W102: 8 | X102: 8.5 | Y102: 65 | Z102: 3.85 | AA102: 1.29 | AB102: 1.09 | AC102: 0.35 | AD102: 0.27 | AE102: 2.8 | AF102: 0.001 | AG102: 1.1 | AH102: 0.26 | AK102: =IF(List1[[#This Row],[Price]]="","",CONVERT(List1[[#This Row],[Price]],"kg","lbm")) -> 
C103: 69 | D103: Mixed grass-legume (12-15% Hcel.) | E103: Silage, mature >53% NDF | F103: Forage | G103: AVG | H103: 42.8 | I103: 17.4 | J103: 3.5 | K103: 2 | L103: 2.3 | M103: 57.4 | N103: 42.1 | O103: 7.1 | P103: 9.6 | Q103: 16.8 | R103: 1 | S103: 15.3 | U103: 50.4 | V103: 35.7 | W103: 13.9 | X103: 6.3 | Y103: 60 | Z103: 3.83 | AA103: 1.3 | AB103: 1.06 | AC103: 0.33 | AD103: 0.24 | AE103: 2.7 | AF103: 0.02 | AG103: 0.52 | AH103: 0.31 | AK103: =IF(List1[[#This Row],[Price]]="","",CONVERT(List1[[#This Row],[Price]],"kg","lbm")) -> 
C104: 70 | D104: Grass-LEGUME MIXTURES Pr. LG. (10-13% HCEL.) | E104: Hay, immature <44% NDF | F104: Forage | G104: AVG | H104: 83.8 | I104: 20.5 | J104: 2.9 | K104: 1.5 | L104: 2 | M104: 41.7 | N104: 30.5 | O104: 5.8 | P104: 9.2 | Q104: 29.5 | R104: 1 | S104: 11.2 | U104: 43.1 | V104: 49.9 | W104: 7 | X104: 16.5 | Y104: 75 | Z104: 4.72 | AA104: 1.5 | AB104: 1.3 | AC104: 0.3 | AD104: 0.3 | AE104: 2.41 | AF104: 0.03 | AG104: 0.06 | AH104: 0.2 | AK104: =IF(List1[[#This Row],[Price]]="","",CONVERT(List1[[#This Row],[Price]],"kg","lbm")) -> 
C105: 71 | D105: Grass-LEGUME MIXTURES Pr. LG. (10-13% HCEL.) | E105: Hay, mid maturity 44-50% NDF | F105: Forage | G105: AVG | H105: 84.2 | I105: 19.1 | J105: 3.1 | K105: 1.6 | L105: 2 | M105: 47.2 | N105: 35.4 | O105: 6.7 | P105: 9.1 | Q105: 25.7 | R105: 1 | S105: 11.8 | U105: 42.4 | V105: 48.1 | W105: 9.5 | X105: 15.5 | Y105: 70 | Z105: 4.69 | AA105: 1.5 | AB105: 1.17 | AC105: 0.3 | AD105: 0.27 | AE105: 2.34 | AF105: 0.08 | AG105: 0.43 | AH105: 0.26 | AK105: =IF(List1[[#This Row],[Price]]="","",CONVERT(List1[[#This Row],[Price]],"kg","lbm")) -> 
C106: 72 | D106: Grass-LEGUME MIXTURES Pr. LG. (10-13% HCEL.) | E106: Hay, mature >50% NDF | F106: Forage | G106: AVG | H106: 84.3 | I106: 17.2 | J106: 3.6 | K106: 1.7 | L106: 1.7 | M106: 53.6 | N106: 41.5 | O106: 8.1 | P106: 8.7 | Q106: 22.4 | R106: 1 | S106: 12.1 | U106: 36.3 | V106: 50.4 | W106: 13.3 | X106: 11.8 | Y106: 65 | Z106: 4.63 | AA106: 1.49 | AB106: 1.09 | AC106: 0.28 | AD106: 0.25 | AE106: 2.23 | AF106: 0.01 | AG106: 0.21 | AH106: 0.26 | AI106: 2.5 | AJ106: 0.0699490013 | AK106: =IF(List1[[#This Row],[Price]]="","",CONVERT(List1[[#This Row],[Price]],"kg","lbm")) -> 0.1542111507
C107: 73 | D107: Grass-LEGUME MIXTURES Pr. LG. (10-13% HCEL.) | E107: Silage, immature <44% NDF | F107: Forage | G107: AVG | H107: 43.2 | I107: 20 | J107: 2.8 | K107: 1.7 | L107: 2.2 | M107: 42.2 | N107: 31.1 | O107: 6.7 | P107: 11.5 | Q107: 26.9 | R107: 1 | S107: 11.1 | U107: 61.2 | V107: 29.8 | W107: 9 | X107: 11.9 | Y107: 70 | Z107: 4.18 | AA107: 1.33 | AB107: 1.16 | AC107: 0.36 | AD107: 0.3 | AE107: 2.95 | AF107: 0.01 | AG107: 0.6 | AH107: 0.32 | AK107: =IF(List1[[#This Row],[Price]]="","",CONVERT(List1[[#This Row],[Price]],"kg","lbm")) -> 
C108: 74 | D108: Grass-LEGUME MIXTURES Pr. LG. (10-13% HCEL.) | E108: Silage, mid maturity 44-50% NDF | F108: Forage | G108: AVG | H108: 43.3 | I108: 19 | J108: 2.7 | K108: 1.7 | L108: 2.1 | M108: 47 | N108: 35.4 | O108: 7.3 | P108: 10.8 | Q108: 23.8 | R108: 1 | S108: 11.6 | U108: 58.1 | V108: 34.2 | W108: 7.7 | X108: 10.4 | Y108: 65 | Z108: 4.13 | AA108: 1.33 | AB108: 1.14 | AC108: 0.34 | AD108: 0.28 | AE108: 2.88 | AF108: 0.01 | AG108: 0.6 | AH108: 0.25 | AK108: =IF(List1[[#This Row],[Price]]="","",CONVERT(List1[[#This Row],[Price]],"kg","lbm")) -> 
C109: 75 | D109: Grass-LEGUME MIXTURES Pr. LG. (10-13% HCEL.) | E109: Silage, mid maturity >50% NDF | F109: Forage | G109: AVG | H109: 42.9 | I109: 18.3 | J109: 2.7 | K109: 2 | L109: 2 | M109: 53.7 | N109: 41.6 | O109: 8.4 | P109: 10.2 | Q109: 18.5 | R109: 1 | S109: 12.1 | U109: 51.6 | V109: 35.1 | W109: 13.3 | X109: 7.2 | Y109: 60 | Z109: 4.06 | AA109: 1.34 | AB109: 1.17 | AC109: 0.33 | AD109: 0.26 | AE109: 2.77 | AF109: 0.03 | AG109: 0.6 | AH109: 0.26 | AK109: =IF(List1[[#This Row],[Price]]="","",CONVERT(List1[[#This Row],[Price]],"kg","lbm")) -> 
C110: 76 | D110: LEGUMES, FORAGE | E110: Pasture, intensively managed | F110: Forage | G110: AVG | H110: 21.4 | I110: 26.5 | J110: 3.8 | K110: 1.1 | L110: 3.7 | M110: 33.1 | N110: 23.9 | O110: 5.4 | P110: 10 | Q110: 30.5 | R110: 1 | S110: 9.2 | U110: 31.1 | V110: 61.6 | W110: 7.3 | X110: 12.3 | Y110: 75 | Z110: 5.18 | AA110: 1.58 | AB110: 1.31 | AC110: 0.37 | AD110: 0.28 | AE110: 3.21 | AF110: 0.01 | AG110: 0.6 | AH110: 0.31 | AK110: =IF(List1[[#This Row],[Price]]="","",CONVERT(List1[[#This Row],[Price]],"kg","lbm")) -> 
C111: 77 | D111: LEGUMES, FORAGE | E111: Hay, all samples | F111: Forage | G111: AVG | H111: 87.8 | I111: 20.2 | J111: 2.4 | K111: 1.6 | L111: 2.1 | M111: 39.6 | N111: 31.2 | O111: 7 | P111: 10 | Q111: 30.5 | R111: 1 | S111: 8.4 | U111: 41.9 | V111: 49.2 | W111: 8.9 | X111: 16.6 | Y111: 70 | Z111: 5.08 | AA111: 1.56 | AB111: 1.52 | AC111: 0.26 | AD111: 0.3 | AE111: 2.53 | AF111: 0.01 | AG111: 0.74 | AH111: 0.25 | AI111: 2.5 | AJ111: 0.1239888027 | AK111: =IF(List1[[#This Row],[Price]]="","",CONVERT(List1[[#This Row],[Price]],"kg","lbm")) -> 0.2733485194
C112: 78 | D112: LEGUMES, FORAGE | E112: Hay, immature <40% NDF | F112: Forage | G112: AVG | H112: 84.2 | I112: 22.8 | J112: 2.7 | K112: 1.6 | L112: 2.1 | M112: 36.3 | N112: 28.6 | O112: 5.9 | P112: 9.5 | Q112: 32 | R112: 1 | S112: 7.7 | U112: 42.5 | V112: 51 | W112: 6.5 | X112: 17.8 | Y112: 75 | Z112: 5.13 | AA112: 1.56 | AB112: 1.56 | AC112: 0.31 | AD112: 0.33 | AE112: 2.56 | AF112: 0.03 | AG112: 0.55 | AH112: 0.33 | AK112: =IF(List1[[#This Row],[Price]]="","",CONVERT(List1[[#This Row],[Price]],"kg","lbm")) -> 
C113: 79 | D113: LEGUMES, FORAGE | E113: Hay, mid maturity 40-46% NDF | F113: Forage | G113: AVG | H113: 83.9 | I113: 20.8 | J113: 2.5 | K113: 1.6 | L113: 2 | M113: 42.9 | N113: 33.4 | O113: 6.4 | P113: 9.4 | Q113: 27.4 | R113: 1 | S113: 9.5 | U113: 44.3 | V113: 46.9 | W113: 8.8 | X113: 17.9 | Y113: 70 | Z113: 5.09 | AA113: 1.56 | AB113: 1.37 | AC113: 0.3 | AD113: 0.3 | AE113: 2.45 | AF113: 0.02 | AG113: 0.61 | AH113: 0.31 | AK113: =IF(List1[[#This Row],[Price]]="","",CONVERT(List1[[#This Row],[Price]],"kg","lbm")) -> 
C114: 80 | D114: LEGUMES, FORAGE | E114: Hay, mature >46% NDF | F114: Forage | G114: AVG | H114: 83.6 | I114: 17.8 | J114: 2.1 | K114: 1.7 | L114: 1.6 | M114: 50.9 | N114: 39.5 | O114: 7.3 | P114: 9.2 | Q114: 22.6 | R114: 1 | S114: 11.4 | U114: 38.9 | V114: 49.6 | W114: 11.5 | X114: 14 | Y114: 65 | Z114: 5.01 | AA114: 1.55 | AB114: 1.22 | AC114: 0.28 | AD114: 0.27 | AE114: 2.38 | AF114: 0.02 | AG114: 0.48 | AH114: 0.23 | AK114: =IF(List1[[#This Row],[Price]]="","",CONVERT(List1[[#This Row],[Price]],"kg","lbm")) -> 
C115: 81 | D115: LEGUMES, FORAGE | E115: Silage, all samples | F115: Forage | G115: AVG | H115: 39.1 | I115: 20 | J115: 2.9 | K115: 1.6 | L115: 3.1 | M115: 45.7 | N115: 37 | O115: 8.1 | P115: 10.4 | Q115: 23.7 | R115: 1 | S115: 8.7 | U115: 57.3 | V115: 33 | W115: 9.9 | X115: 11.1 | Y115: 65 | Z115: 4.4 | AA115: 1.37 | AB115: 1.34 | AC115: 0.32 | AD115: 0.27 | AE115: 2.87 | AF115: 0.06 | AG115: 0.62 | AH115: 0.24 | AK115: =IF(List1[[#This Row],[Price]]="","",CONVERT(List1[[#This Row],[Price]],"kg","lbm")) -> 
C116: 82 | D116: LEGUMES, FORAGE | E116: Silage, immature <40% NDF | F116: Forage | G116: AVG | H116: 41.2 | I116: 23.2 | J116: 3.4 | K116: 1.6 | L116: 2.3 | M116: 36.7 | N116: 30.2 | O116: 6.2 | P116: 11.1 | Q116: 30.1 | R116: 1 | S116: 6.5 | U116: 61.6 | V116: 29.1 | W116: 9.3 | X116: 13.1 | Y116: 70 | Z116: 4.48 | AA116: 1.37 | AB116: 1.39 | AC116: 0.36 | AD116: 0.3 | AE116: 3.03 | AF116: 0.03 | AG116: 0.55 | AH116: 0.3 | AK116: =IF(List1[[#This Row],[Price]]="","",CONVERT(List1[[#This Row],[Price]],"kg","lbm")) -> 
C117: 83 | D117: LEGUMES, FORAGE | E117: Silage, mid maturity 40-46% NDF | F117: Forage | G117: AVG | H117: 42.9 | I117: 21.9 | J117: 3.1 | K117: 1.8 | L117: 2.2 | M117: 43.2 | N117: 35.2 | O117: 7.3 | P117: 10.8 | Q117: 25 | R117: 1 | S117: 8 | U117: 57.3 | V117: 35.3 | W117: 7.4 | X117: 12.2 | Y117: 65 | Z117: 4.41 | AA117: 1.37 | AB117: 1.36 | AC117: 0.35 | AD117: 0.28 | AE117: 3 | AF117: 0.02 | AG117: 0.61 | AH117: 0.28 | AJ117: 0.1088621688 | AK117: =IF(List1[[#This Row],[Price]]="","",CONVERT(List1[[#This Row],[Price]],"kg","lbm")) -> 0.24
C118: 84 | D118: LEGUMES, FORAGE | E118: Silage, mature >46% NDF | F118: Forage | G118: AVG | H118: 42.6 | I118: 20.3 | J118: 2.9 | K118: 2.1 | L118: 2.1 | M118: 50 | N118: 40.9 | O118: 8.4 | P118: 10.3 | Q118: 20.2 | R118: 1 | S118: 9.1 | U118: 52.9 | V118: 34.4 | W118: 12.7 | X118: 8 | Y118: 60 | Z118: 4.3 | AA118: 1.37 | AB118: 1.3 | AC118: 0.33 | AD118: 0.26 | AE118: 2.87 | AF118: 0.02 | AG118: 0.48 | AH118: 0.28 | AK118: =IF(List1[[#This Row],[Price]]="","",CONVERT(List1[[#This Row],[Price]],"kg","lbm")) -> 
C119: 85 | D119: LINSEED (FLAX) | E119: Meal, solvent | F119: Conc | G119: AVG | H119: 90.3 | I119: 32.6 | J119: 7.9 | K119: 1.1 | L119: 1.7 | M119: 36.1 | N119: 22.1 | O119: 8.3 | P119: 6.5 | Q119: 31 | R119: 1 | S119: 14 | U119: 17.6 | V119: 69.9 | W119: 12.5 | X119: 5.5 | Y119: 85 | Z119: 3.69 | AA119: 1.76 | AB119: 0.4 | AC119: 0.83 | AD119: 0.55 | AE119: 1.22 | AF119: 0.09 | AH119: 0.37 | AI119: 4 | AJ119: 0.1808341674 | AK119: =IF(List1[[#This Row],[Price]]="","",CONVERT(List1[[#This Row],[Price]],"kg","lbm")) -> 0.3986710963
C120: 86 | D120: MEAT | E120: Meal, rendered | F120: Animal | G120: AVG | H120: 93.9 | I120: 57.6 | J120: 0 | K120: 0 | L120: 12.7 | M120: 0 | N120: 0 | O120: 0 | P120: 22.9 | Q120: 6.8 | R120: 1 | S120: 0 | U120: 34.9 | V120: 40.1 | W120: 25 | X120: 6 | Y120: 80 | Z120: 5.38 | AA120: 1.43 | AB120: 8.86 | AC120: 4.2 | AD120: 0.26 | AE120: 0.49 | AF120: 0.78 | AG120: 0.44 | AH120: 0.51 | AK120: =IF(List1[[#This Row],[Price]]="","",CONVERT(List1[[#This Row],[Price]],"kg","lbm")) -> 
C121: 87 | D121: MEAT | E121: Meat and bone, rendered | F121: Animal | G121: AVG | H121: 94 | I121: 54.2 | J121: 0 | K121: 0 | L121: 10.4 | M121: 0 | N121: 0 | O121: 0 | P121: 30.4 | Q121: 5 | R121: 1 | S121: 0 | U121: 18.1 | V121: 48.2 | W121: 33.7 | X121: 7.2 | Y121: 60 | Z121: 5.18 | AA121: 1.4 | AB121: 10.6 | AC121: 4.73 | AD121: 0.24 | AE121: 1.02 | AF121: 0.71 | AG121: 0.44 | AH121: 0.39 | AK121: =IF(List1[[#This Row],[Price]]="","",CONVERT(List1[[#This Row],[Price]],"kg","lbm")) -> 
C122: 88 | D122: MOLASSES | E122: Beet sugar | F122: Conc | G122: AVG | H122: 77.9 | I122: 8.5 | J122: 0 | K122: 0 | L122: 0.2 | M122: 0.1 | N122: 0.1 | O122: 0 | P122: 11.4 | Q122: 79.8 | R122: 1.04 | S122: 0 | U122: 74.1 | V122: 25.9 | W122: 0 | X122: 3.2 | Y122: 100 | Z122: 1 | AA122: 0.22 | AB122: 0.15 | AC122: 0.03 | AD122: 0.29 | AE122: 6.06 | AF122: 1.48 | AH122: 0.6 | AK122: =IF(List1[[#This Row],[Price]]="","",CONVERT(List1[[#This Row],[Price]],"kg","lbm")) -> 
C123: 89 | D123: MOLASSES | E123: Sugarcane | F123: Conc | G123: AVG | H123: 74.3 | I123: 5.8 | J123: 0 | K123: 0 | L123: 0.2 | M123: 0.4 | N123: 0.2 | O123: 0 | P123: 13.3 | Q123: 80.3 | R123: 1.04 | S123: 0.2 | U123: 74.1 | V123: 25.9 | W123: 0 | X123: 3.2 | Y123: 100 | Z123: 1 | AA123: 0.22 | AB123: 1 | AC123: 0.1 | AD123: 0.42 | AE123: 4.01 | AF123: 0.22 | AH123: 0.47 | AI123: 5 | AJ123: 0.1343072966 | AK123: =IF(List1[[#This Row],[Price]]="","",CONVERT(List1[[#This Row],[Price]],"kg","lbm")) -> 0.2960969044
C124: 90 | D124: OATS | E124: Grain, rolled | F124: Conc | G124: AVG | H124: 90 | I124: 13.2 | J124: 1.8 | K124: 0.3 | L124: 5.1 | M124: 30 | N124: 14.6 | O124: 4.9 | P124: 3.3 | Q124: 50.2 | R124: 1.04 | S124: 15.4 | U124: 65.2 | V124: 28.8 | W124: 6 | X124: 17.4 | Y124: 75 | Z124: 4.18 | AA124: 1.71 | AB124: 0.11 | AC124: 0.4 | AD124: 0.16 | AE124: 0.52 | AF124: 0.03 | AH124: 0.19 | AI124: 47 | AJ124: 0.1310377958 | AK124: =IF(List1[[#This Row],[Price]]="","",CONVERT(List1[[#This Row],[Price]],"kg","lbm")) -> 0.2888888889
C125: 91 | D125: OATS | E125: Hay, headed | F125: Forage | G125: AVG | H125: 91.9 | I125: 9.1 | J125: 1.3 | K125: 0.6 | L125: 2.2 | M125: 58 | N125: 36.4 | O125: 6.5 | P125: 8.5 | Q125: 23.5 | R125: 1 | S125: 21.6 | U125: 35 | V125: 53.1 | W125: 11.9 | X125: 4.3 | Y125: 70 | Z125: 3.56 | AA125: 1.87 | AB125: 0.37 | AC125: 0.22 | AD125: 0.17 | AE125: 2.01 | AF125: 0.33 | AG125: 1.08 | AH125: 0.14 | AK125: =IF(List1[[#This Row],[Price]]="","",CONVERT(List1[[#This Row],[Price]],"kg","lbm")) -> 
C126: 92 | D126: OATS | E126: Silage, headed | F126: Forage | G126: AVG | H126: 34.6 | I126: 12.9 | J126: 2.1 | K126: 1 | L126: 3.4 | M126: 60.6 | N126: 38.9 | O126: 5.5 | P126: 9.8 | Q126: 15.4 | R126: 1 | S126: 21.7 | U126: 45.6 | V126: 30.9 | W126: 23.5 | X126: 5.4 | Y126: 65 | Z126: 3.56 | AA126: 1.87 | AB126: 0.52 | AC126: 0.31 | AD126: 0.2 | AE126: 2.89 | AF126: 0.24 | AG126: 1.34 | AH126: 0.19 | AK126: =IF(List1[[#This Row],[Price]]="","",CONVERT(List1[[#This Row],[Price]],"kg","lbm")) -> 
C127: 93 | D127: PEANUT | E127: Meal, solvent | F127: Conc | G127: AVG | H127: 92.3 | I127: 51.8 | J127: 5.8 | K127: 1.1 | L127: 1.4 | M127: 21.4 | N127: 13.5 | O127: 4.6 | P127: 5.8 | Q127: 25.4 | R127: 1 | S127: 7.9 | U127: 61.7 | V127: 36.6 | W127: 1.7 | X127: 16.1 | Y127: 90 | Z127: 3.34 | AA127: 1.17 | AB127: 0.2 | AC127: 0.64 | AD127: 0.32 | AE127: 1.32 | AF127: 0.03 | AG127: 0.1 | AH127: 0.32 | AK127: =IF(List1[[#This Row],[Price]]="","",CONVERT(List1[[#This Row],[Price]],"kg","lbm")) -> 
C128: 94 | D128: POTATO | E128: Byproduct meal | F128: Conc | G128: AVG | H128: 5.4 | I128: 10.5 | J128: 5.2 | K128: 2.3 | L128: 10.8 | M128: 22.1 | N128: 16.5 | O128: 2.3 | P128: 12.8 | Q128: 49 | R128: 1 | S128: 5.6 | U128: 4.5 | V128: 90.5 | W128: 5 | X128: 2 | Y128: 90 | Z128: 4.21 | AA128: 0.95 | AB128: 0.49 | AC128: 0.29 | AD128: 0.11 | AE128: 1.04 | AF128: 0.26 | AG128: 0.19 | AH128: 0.11 | AK128: =IF(List1[[#This Row],[Price]]="","",CONVERT(List1[[#This Row],[Price]],"kg","lbm")) -> 
C129: 95 | D129: RICE | E129: Bran | F129: Conc | G129: AVG | H129: 90.6 | I129: 15.5 | J129: 3.7 | K129: 0.4 | L129: 15.2 | M129: 26.1 | N129: 13.1 | O129: 4.6 | P129: 10.4 | Q129: 36.5 | R129: 1 | S129: 13 | U129: 32.6 | V129: 49 | W129: 18.4 | X129: 5 | Y129: 65 | Z129: 4.65 | AA129: 2.05 | AB129: 0.07 | AC129: 1.78 | AD129: 0.81 | AE129: 1.57 | AF129: 0.03 | AG129: 0.09 | AH129: 0.19 | AK129: =IF(List1[[#This Row],[Price]]="","",CONVERT(List1[[#This Row],[Price]],"kg","lbm")) -> 
C130: 96 | D130: RYE, ANNUAL | E130: Silage, vegetative | F130: Forage | G130: AVG | H130: 29.7 | I130: 16.1 | J130: 1.9 | K130: 0.9 | L130: 3.8 | M130: 57.8 | N130: 34.9 | O130: 4.5 | P130: 9.6 | Q130: 14.6 | R130: 1 | S130: 22.9 | U130: 56.6 | V130: 33 | W130: 10.4 | X130: 5.9 | Y130: 65 | Z130: 2.35 | AA130: 1.16 | AB130: 0.43 | AC130: 0.42 | AD130: 0.16 | AE130: 3.34 | AF130: 0.05 | AG130: 0.9 | AH130: 0.2 | AK130: =IF(List1[[#This Row],[Price]]="","",CONVERT(List1[[#This Row],[Price]],"kg","lbm")) -> 
C131: 97 | D131: SAFFLOWER | E131: Meal, solvent | F131: Conc | G131: AVG | H131: 93.5 | I131: 29 | J131: 2 | K131: 1.2 | L131: 2.4 | M131: 53.8 | N131: 39.1 | O131: 14.5 | P131: 4.7 | Q131: =IF(G131="AVG",100-(I131+(M131-J131)+L131+P131),"") -> 12.1 | R131: 1 | S131: =IF(G131="AVG",M131-N131,"") -> 14.7 | U131: 23.2 | V131: 70.4 | W131: 6.4 | X131: 10.4 | Y131: 75 | Z131: 3.16 | AA131: 1.45 | AB131: 0.38 | AC131: 0.72 | AD131: 0.039 | AE131: 1.21 | AF131: 0.04 | AH131: 0.32 | AK131: =IF(List1[[#This Row],[Price]]="","",CONVERT(List1[[#This Row],[Price]],"kg","lbm")) -> 
C132: 98 | D132: SORGHUM, GRAIN TYPE | E132: Grain, dry rolled | F132: Conc | G132: AVG | H132: 88.6 | I132: 11.6 | J132: 2.8 | K132: 1 | L132: 3.1 | M132: 10.9 | N132: 5.9 | O132: 1.1 | P132: 2 | Q132: 75.2 | R132: 0.92 | S132: 5 | U132: 18.9 | V132: 79.4 | W132: 1.7 | X132: 5.5 | Y132: 85 | Z132: 2.38 | AA132: 1.81 | AB132: 0.07 | AC132: 0.35 | AD132: 0.17 | AE132: 0.47 | AF132: 0.01 | AG132: 0.06 | AH132: 0.11 | AK132: =IF(List1[[#This Row],[Price]]="","",CONVERT(List1[[#This Row],[Price]],"kg","lbm")) -> 
C133: 99 | D133: SORGHUM, GRAIN TYPE | E133: Grain, steam-flaked | F133: Conc | G133: AVG | H133: 88.6 | I133: 11.6 | J133: 2.8 | K133: 1 | L133: 3.1 | M133: 10.9 | N133: 5.9 | O133: 1.1 | P133: 2 | Q133: 75.2 | R133: 1.04 | S133: 5 | U133: 33.2 | V133: 21.9 | W133: 44.9 | X133: 2.5 | Y133: 85 | Z133: 2.38 | AA133: 1.81 | AB133: 0.07 | AC133: 0.35 | AD133: 0.17 | AE133: 0.47 | AF133: 0.01 | AG133: 0.06 | AH133: 0.11 | AK133: =IF(List1[[#This Row],[Price]]="","",CONVERT(List1[[#This Row],[Price]],"kg","lbm")) -> 
C134: 100 | D134: SORGHUM, GRAIN TYPE | E134: Silage | F134: Forage | G134: AVG | H134: 28.8 | I134: 9.1 | J134: 2.4 | K134: 1.2 | L134: 2.9 | M134: 60.7 | N134: 38.7 | O134: 6.5 | P134: 7.5 | Q134: 22.2 | R134: 1 | S134: 22 | U134: 42.4 | V134: 37.3 | W134: 20.3 | X134: 4.1 | Y134: 70 | Z134: 2.64 | AA134: 1.93 | AB134: 0.5 | AC134: 0.21 | AD134: 0.27 | AE134: 1.75 | AF134: 0.02 | AG134: 0.6 | AH134: 0.12 | AK134: =IF(List1[[#This Row],[Price]]="","",CONVERT(List1[[#This Row],[Price]],"kg","lbm")) -> 
C135: 101 | D135: SORGHUM, SUDAN TYPE | E135: Hay | F135: Forage | G135: AVG | H135: 86.5 | I135: 9.4 | J135: 2.8 | K135: 1.2 | L135: 2.3 | M135: 64.8 | N135: 40 | O135: 6 | P135: 8.7 | Q135: 17.6 | R135: 1 | S135: 24.8 | U135: 28.4 | V135: 52.9 | W135: 18.7 | X135: 5 | Y135: 60 | Z135: 3.48 | AA135: 1.3 | AB135: 0.54 | AC135: 0.2 | AD135: 0.32 | AE135: 2.36 | AF135: 0.03 | AG135: 1.16 | AH135: 0.13 | AK135: =IF(List1[[#This Row],[Price]]="","",CONVERT(List1[[#This Row],[Price]],"kg","lbm")) -> 
C136: 102 | D136: SORGHUM, SUDAN TYPE | E136: Silage | F136: Forage | G136: AVG | H136: 28.8 | I136: 10.8 | J136: 2.4 | K136: 1.2 | L136: 3.6 | M136: 63.3 | N136: 40.7 | O136: 5.9 | P136: 10.9 | Q136: 13.8 | R136: 1 | S136: 22.6 | U136: 37.6 | V136: 29.7 | W136: 32.7 | X136: 3.7 | Y136: 55 | Z136: 3.35 | AA136: 1.23 | AB136: 0.64 | AC136: 0.24 | AD136: 0.31 | AE136: 2.57 | AF136: 0.03 | AG136: 0.56 | AH136: 0.15 | AK136: =IF(List1[[#This Row],[Price]]="","",CONVERT(List1[[#This Row],[Price]],"kg","lbm")) -> 
C137: 103 | D137: SOYBEAN | E137: Hulls | F137: Conc | G137: AVG | H137: 90.9 | I137: 13.9 | J137: 3.5 | K137: 1 | L137: 2.7 | M137: 60.3 | N137: 44.6 | O137: 2.5 | P137: 4.8 | Q137: 21.8 | R137: 1 | S137: 15.7 | U137: 22.5 | V137: 72.2 | W137: 5.3 | X137: 6.2 | Y137: 70 | Z137: 6.27 | AA137: 1.16 | AB137: 0.63 | AC137: 0.17 | AD137: 0.25 | AE137: 1.51 | AF137: 0.01 | AG137: 0.05 | AH137: 0.12 | AI137: 5.3 | AJ137: 0.1097803316 | AK137: =IF(List1[[#This Row],[Price]]="","",CONVERT(List1[[#This Row],[Price]],"kg","lbm")) -> 0.2420242024
C138: 104 | D138: SOYBEAN | E138: Meal, expellers, 45% CP | F138: Conc | G138: AVG | H138: 89.6 | I138: 46.3 | J138: 9.6 | K138: 0.4 | L138: 8.1 | M138: 21.7 | N138: 10.4 | O138: 1.5 | P138: 5.5 | Q138: 28 | R138: 1 | S138: 11.3 | U138: 8.7 | V138: 91.3 | W138: 0 | X138: 2.4 | Y138: 93 | Z138: 6.27 | AA138: 1.45 | AB138: 0.36 | AC138: 0.66 | AD138: 0.3 | AE138: 2.12 | AF138: 0.04 | AG138: 0.1 | AH138: 0.34 | AI138: 2.7 | AK138: =IF(List1[[#This Row],[Price]]="","",CONVERT(List1[[#This Row],[Price]],"kg","lbm")) -> 
C139: 105 | D139: SOYBEAN | E139: Meal, nonenzymatically browned | F139: Conc | G139: AVG | H139: 89 | I139: 50 | J139: 27 | K139: 1.6 | L139: 2.3 | M139: 29.7 | N139: 9.5 | O139: 3.7 | P139: 6.8 | Q139: 38.2 | R139: 1 | S139: 20.2 | U139: 2.4 | V139: 97.6 | W139: 0 | X139: 1.7 | Y139: 93 | Z139: 5.78 | AA139: 1.32 | AB139: 0.39 | AC139: 0.75 | AD139: 0.3 | AE139: 2.32 | AF139: 0.1 | AH139: 0.4 | AK139: =IF(List1[[#This Row],[Price]]="","",CONVERT(List1[[#This Row],[Price]],"kg","lbm")) -> 
C140: 106 | D140: SOYBEAN | E140: Meal, solvent, 44% CP | F140: Conc | G140: AVG | H140: 89.1 | I140: 49.9 | J140: 0.7 | K140: 0.4 | L140: 1.6 | M140: 14.9 | N140: 10 | O140: 0.7 | P140: 6.6 | Q140: 27.7 | R140: 1 | S140: 4.9 | U140: 22.5 | V140: 76.8 | W140: 0.7 | X140: 9.4 | Y140: 93 | Z140: 6.28 | AA140: 1.45 | AB140: 0.4 | AC140: 0.71 | AD140: 0.31 | AE140: 2.22 | AF140: 0.04 | AG140: 0.13 | AH140: 0.46 | AI140: 2.7 | AJ140: 0.2290870556 | AK140: =IF(List1[[#This Row],[Price]]="","",CONVERT(List1[[#This Row],[Price]],"kg","lbm")) -> 0.5050505051
C141: 107 | D141: SOYBEAN | E141: Meal, solvent, 48% CP | F141: Conc | G141: AVG | H141: 89.5 | I141: 53.8 | J141: 0.7 | K141: 0.4 | L141: 1.1 | M141: 9.8 | N141: 6.2 | O141: 0.5 | P141: 6.4 | Q141: 29.6 | R141: 1 | S141: 3.6 | U141: 15 | V141: 84.4 | W141: 0.6 | X141: 7.5 | Y141: 93 | Z141: 6.29 | AA141: 1.44 | AB141: 0.35 | AC141: 0.7 | AD141: 0.29 | AE141: 2.41 | AF141: 0.03 | AG141: 0.13 | AH141: 0.39 | AI141: 2.7 | AJ141: 0.233131274 | AK141: =IF(List1[[#This Row],[Price]]="","",CONVERT(List1[[#This Row],[Price]],"kg","lbm")) -> 0.5139664804
C142: 108 | D142: SOYBEAN | E142: Seeds, whole | F142: Conc | G142: AVG | H142: 90 | I142: 39.2 | J142: 2.3 | K142: 0.6 | L142: 19.2 | M142: 19.5 | N142: 13.1 | O142: 1.2 | P142: 5.9 | Q142: 18.5 | R142: 1 | S142: 6.4 | U142: 27.8 | V142: 70.2 | W142: 2 | X142: 10.9 | Y142: 85 | Z142: 5.98 | AA142: 1.47 | AB142: 0.32 | AC142: 0.6 | AD142: 0.25 | AE142: 1.99 | AF142: 0.01 | AG142: 0.04 | AH142: 0.31 | AI142: 10 | AJ142: 0.2066365241 | AK142: =IF(List1[[#This Row],[Price]]="","",CONVERT(List1[[#This Row],[Price]],"kg","lbm")) -> 0.4555555556
C143: 109 | D143: SOYBEAN | E143: Seeds, whole roasted | F143: Conc | G143: AVG | H143: 91 | I143: 43 | J143: 6.1 | K143: 1 | L143: 19 | M143: 22.1 | N143: 14.7 | O143: 3.1 | P143: 5 | Q143: 17 | R143: 1 | S143: 7.4 | U143: 17.8 | V143: 77 | W143: 5.2 | X143: 9.3 | Y143: 85 | Z143: 5.98 | AA143: 1.4 | AB143: 0.26 | AC143: 0.64 | AD143: 0.25 | AE143: 1.99 | AF143: 0.01 | AG143: 0.06 | AH143: 0.32 | AI143: 10 | AK143: =IF(List1[[#This Row],[Price]]="","",CONVERT(List1[[#This Row],[Price]],"kg","lbm")) -> 
C144: 110 | D144: SOYBEAN | E144: Silage, early maturity | F144: Forage | G144: AVG | H144: 40.4 | I144: 17.4 | J144: 2.5 | K144: 1.4 | L144: 5.7 | M144: 46.6 | N144: 36.9 | O144: 6.5 | P144: 12.2 | Q144: 20.6 | R144: 1 | S144: 9.7 | U144: 57.3 | V144: 35.3 | W144: 7.4 | X144: 12.2 | Y144: 65 | Z144: 4.48 | AA144: 1.37 | AB144: 1.07 | AC144: 0.37 | AD144: 0.35 | AE144: 2.25 | AF144: 0.01 | AH144: 0.22 | AK144: =IF(List1[[#This Row],[Price]]="","",CONVERT(List1[[#This Row],[Price]],"kg","lbm")) -> 
C145: 111 | D145: SUNFLOWER | E145: Meal, solvent | F145: Conc | G145: AVG | H145: 92.2 | I145: 28.4 | J145: 5.5 | K145: 1.4 | L145: 1.4 | M145: 40.3 | N145: 30 | O145: 9.5 | P145: 7.7 | Q145: 27.7 | R145: 1 | S145: 10.3 | U145: 42 | V145: 52.8 | W145: 5.2 | X145: 29.2 | Y145: 90 | Z145: 3.56 | AA145: 2.29 | AB145: 0.48 | AC145: 1 | AD145: 0.63 | AE145: 1.5 | AF145: 0.04 | AG145: 0.12 | AH145: 0.39 | AI145: 6 | AJ145: 0.07379485412 | AK145: =IF(List1[[#This Row],[Price]]="","",CONVERT(List1[[#This Row],[Price]],"kg","lbm")) -> 0.1626898048
C146: 112 | D146: SUNFLOWER | E146: Oil seeds, whole | F146: Conc | G146: AVG | H146: 91.8 | I146: 19.2 | J146: 2.9 | K146: 1.9 | L146: 41.9 | M146: 24 | N146: 16.7 | O146: 6 | P146: 5.1 | Q146: 12.7 | R146: 1 | S146: 7.3 | U146: 66.7 | V146: 31.7 | W146: 1.6 | X146: 17 | Y146: 80 | Z146: 3.56 | AA146: 2.29 | AB146: 0.71 | AC146: 0.51 | AD146: 0.34 | AE146: 1.06 | AF146: 0.01 | AH146: 0.21 | AK146: =IF(List1[[#This Row],[Price]]="","",CONVERT(List1[[#This Row],[Price]],"kg","lbm")) -> 
C147: 113 | D147: TOMATO | E147: Pomace | F147: Conc | G147: AVG | H147: 24.7 | I147: 19.3 | J147: 8 | K147: 3.8 | L147: 13.3 | M147: 60 | N147: 17.6 | O147: 13.3 | P147: 5.5 | Q147: 9.9 | R147: 1 | S147: 42.4 | U147: 41.7 | V147: 53.3 | W147: 5 | X147: 7.4 | Y147: 80 | Z147: 7.4 | AA147: 0.47 | AB147: 0.22 | AC147: 0.47 | AD147: 0.28 | AE147: 0.98 | AF147: 0.12 | AH147: 0.15 | AK147: =IF(List1[[#This Row],[Price]]="","",CONVERT(List1[[#This Row],[Price]],"kg","lbm")) -> 
C148: 114 | D148: TRITICALE | E148: Silage, headed | F148: Forage | G148: AVG | H148: 32 | I148: 13.8 | J148: 2.2 | K148: 1 | L148: 3.8 | M148: 59.7 | N148: 39.6 | O148: 5.8 | P148: 9.7 | Q148: 15.2 | R148: 1 | S148: 20.1 | U148: 56.6 | V148: 32.9 | W148: 10.5 | X148: 5.9 | Y148: 65 | Z148: 1.83 | AA148: 1.31 | AB148: 0.57 | AC148: 0.33 | AD148: 0.19 | AE148: 3.01 | AF148: 0.05 | AH148: 0.21 | AK148: =IF(List1[[#This Row],[Price]]="","",CONVERT(List1[[#This Row],[Price]],"kg","lbm")) -> 
C149: 115 | D149: WHEAT | E149: Bran | F149: Conc | G149: AVG | H149: 89.1 | I149: 17.3 | J149: 2.8 | K149: 1.4 | L149: 4.3 | M149: 42.5 | N149: 15.5 | O149: 3 | P149: 6.3 | Q149: 32.4 | R149: 1 | S149: 27 | U149: 33.7 | V149: 62.5 | W149: 3.8 | X149: 20 | Y149: 75 | Z149: 4.05 | AA149: 1.57 | AB149: 0.13 | AC149: 1.18 | AD149: 0.53 | AE149: 1.32 | AF149: 0.04 | AG149: 0.16 | AH149: 0.21 | AI149: 29 | AK149: =IF(List1[[#This Row],[Price]]="","",CONVERT(List1[[#This Row],[Price]],"kg","lbm")) -> 
C150: 116 | D150: WHEAT | E150: Grain, rolled | F150: Conc | G150: AVG | H150: 89.4 | I150: 14.2 | J150: 1.7 | K150: 0.2 | L150: 2.3 | M150: 13.4 | N150: 4.4 | O150: 1.7 | P150: 2 | Q150: 69.8 | R150: 1.04 | S150: 9 | U150: 27.1 | V150: 65.1 | W150: 7.8 | X150: 18.8 | Y150: 95 | Z150: 2.81 | AA150: 1.6 | AB150: 0.05 | AC150: 0.43 | AD150: 0.15 | AE150: 0.5 | AF150: 0.01 | AG150: 0.11 | AH150: 0.15 | AI150: 67 | AJ150: 0.08625358266 | AK150: =IF(List1[[#This Row],[Price]]="","",CONVERT(List1[[#This Row],[Price]],"kg","lbm")) -> 0.1901565996
C151: 117 | D151: WHEAT | E151: Hay, headed | F151: Forage | G151: AVG | H151: 86.8 | I151: 9.4 | J151: 1.1 | K151: 0.8 | L151: 1.7 | M151: 61.1 | N151: 38.1 | O151: 8.7 | P151: 6.7 | Q151: 22.2 | R151: 1 | S151: 23 | U151: 35 | V151: 53.1 | W151: 11.9 | X151: 4.3 | Y151: 70 | Z151: 4.21 | AA151: 1.77 | AB151: 0.31 | AC151: 0.2 | AD151: 0.13 | AE151: 1.71 | AF151: 0.06 | AG151: 0.38 | AH151: 0.13 | AK151: =IF(List1[[#This Row],[Price]]="","",CONVERT(List1[[#This Row],[Price]],"kg","lbm")) -> 
C152: 118 | D152: WHEAT | E152: Middlings | F152: Conc | G152: AVG | H152: 89.5 | I152: 18.5 | J152: 2.8 | K152: 0.5 | L152: 4.5 | M152: 36.7 | N152: 12.1 | O152: 4.2 | P152: 5 | Q152: 38.1 | R152: 1 | S152: 24.6 | U152: 40.3 | V152: 53.6 | W152: 6.1 | X152: 15.2 | Y152: 90 | Z152: 3.63 | AA152: 1.6 | AB152: 0.16 | AC152: 1.02 | AD152: 0.42 | AE152: 1.38 | AF152: 0.03 | AG152: 0.1 | AH152: 0.18 | AI152: 29 | AJ152: 0.06588492525 | AK152: =IF(List1[[#This Row],[Price]]="","",CONVERT(List1[[#This Row],[Price]],"kg","lbm")) -> 0.1452513966
C153: 119 | D153: WHEAT | E153: Silage, early head | F153: Forage | G153: AVG | H153: 33.3 | I153: 12 | J153: 1.5 | K153: 1 | L153: 3.2 | M153: 59.9 | N153: 37.6 | O153: 5.8 | P153: 8.6 | Q153: 17.8 | R153: 1 | S153: 22.3 | U153: 69.5 | V153: 8.7 | W153: 21.8 | X153: 29 | Y153: 70 | Z153: 4.21 | AA153: 1.77 | AB153: 0.38 | AC153: 0.29 | AD153: 0.16 | AE153: 2.28 | AF153: 0.07 | AG153: 0.83 | AH153: 0.17 | AK153: =IF(List1[[#This Row],[Price]]="","",CONVERT(List1[[#This Row],[Price]],"kg","lbm")) -> 
C154: 120 | D154: WHEAT | E154: Straw | F154: Forage | G154: AVG | H154: 92.7 | I154: 4.8 | J154: 2.1 | K154: 1.4 | L154: 1.6 | M154: 73 | N154: 49.4 | O154: 8.8 | P154: 7.6 | Q154: 15.1 | R154: 1 | S154: 23.6 | U154: 9.3 | V154: 51.4 | W154: 39.3 | X154: 1.4 | Y154: 65 | Z154: 3.25 | AA154: 1.19 | AB154: 0.31 | AC154: 0.1 | AD154: 0.14 | AE154: 1.55 | AF154: 0.12 | AG154: 0.6 | AH154: 0.11 | AI154: 1 | AK154: =IF(List1[[#This Row],[Price]]="","",CONVERT(List1[[#This Row],[Price]],"kg","lbm")) -> 
C155: 121 | D155: WHEY | E155: Wet, cattle | F155: Animal | G155: AVG | H155: 20.8 | I155: 14.6 | J155: 0 | K155: 0 | L155: 0.7 | M155: 0 | N155: 0 | O155: 0 | P155: 9.8 | Q155: 74.9 | R155: 1 | S155: 0 | U155: 90 | V155: 10 | W155: 0 | X155: 5 | Y155: 95 | Z155: 7.42 | AA155: 1.41 | AB155: 1.37 | AC155: 1.04 | AD155: 0.22 | AE155: 3.32 | AF155: 1.4 | AG155: 2.41 | AH155: 1.15 | AK155: =IF(List1[[#This Row],[Price]]="","",CONVERT(List1[[#This Row],[Price]],"kg","lbm")) -> 
C156: 122 | D156: MILK | E156: Skim, dried powder | G156: AVG | I156: 38.5 | Q156: 61.5 | S156: 0 | Z156: 7.71 | AA156: 2.49 | AK156: =IF(List1[[#This Row],[Price]]="","",CONVERT(List1[[#This Row],[Price]],"kg","lbm")) -> 
C157: 200 | D157: Ammonium Chloride | F157: Minerals-wN | G157: AVG | H157: 100 | I157: 163.63 | U157: 100 | AG157: 66.28 | AK157: =IF(List1[[#This Row],[Price]]="","",CONVERT(List1[[#This Row],[Price]],"kg","lbm")) -> 
C158: 201 | D158: Calcium Choride,anhydrous | E158: CaCl2 | F158: Minerals | G158: AVG | H158: 100 | AB158: 36.11 | AG158: 63.89 | AK158: =IF(List1[[#This Row],[Price]]="","",CONVERT(List1[[#This Row],[Price]],"kg","lbm")) -> 
C159: 202 | D159: Calcium Choride dihydrate | E159: CaCl2.2H20 | F159: Minerals | G159: AVG | H159: 100 | AB159: 27.53 | AG159: 48.23 | AK159: =IF(List1[[#This Row],[Price]]="","",CONVERT(List1[[#This Row],[Price]],"kg","lbm")) -> 
C160: 203 | D160: Magnesium Chloride, Hexahydrate | E160: MgCl2.6H20 | F160: Minerals | G160: AVG | H160: 100 | AD160: 11.96 | AG160: 34.88 | AK160: =IF(List1[[#This Row],[Price]]="","",CONVERT(List1[[#This Row],[Price]],"kg","lbm")) -> 
C161: 204 | D161: Bone Meal | E161: Steamed | F161: Minerals | G161: AVG | H161: 97 | I161: 13.2 | W161: 100 | AB161: 30.71 | AC161: 12.86 | AF161: 5.69 | AH161: 2.51 | AK161: =IF(List1[[#This Row],[Price]]="","",CONVERT(List1[[#This Row],[Price]],"kg","lbm")) -> 
C162: 205 | D162: Calcium carbonate | E162: CaCO3 | F162: Minerals | G162: AVG | H162: 100 | AB162: 39.39 | AK162: =IF(List1[[#This Row],[Price]]="","",CONVERT(List1[[#This Row],[Price]],"kg","lbm")) -> 
C163: 206 | D163: Dicalcium Phosphate, dibasic | E163: CaHPO4 | F163: Minerals | G163: AVG | H163: 97 | AB163: 22 | AC163: 19.3 | AH163: 1.14 | AK163: =IF(List1[[#This Row],[Price]]="","",CONVERT(List1[[#This Row],[Price]],"kg","lbm")) -> 
C164: 207 | D164: Calcium Phosphate monobasic | E164: Ca(H2PO4)2 | F164: Minerals | G164: AVG | H164: 97 | AB164: 16.4 | AC164: 21.6 | AH164: 1.22 | AK164: =IF(List1[[#This Row],[Price]]="","",CONVERT(List1[[#This Row],[Price]],"kg","lbm")) -> 
C165: 208 | D165: Calcium Sulfate, dihydrate | E165: CaSO4.2H20 | F165: Minerals | G165: AVG | H165: 97 | AB165: 23.28 | AH165: 18.62 | AK165: =IF(List1[[#This Row],[Price]]="","",CONVERT(List1[[#This Row],[Price]],"kg","lbm")) -> 
C166: 209 | D166: Limestone, ground | F166: Minerals | G166: AVG | H166: 100 | AB166: 34 | AD166: 2.06 | AK166: =IF(List1[[#This Row],[Price]]="","",CONVERT(List1[[#This Row],[Price]],"kg","lbm")) -> 
C167: 210 | D167: Limestone, dolomite | F167: Minerals | G167: AVG | H167: 99 | AB167: 22.3 | AD167: 9.99 | AK167: =IF(List1[[#This Row],[Price]]="","",CONVERT(List1[[#This Row],[Price]],"kg","lbm")) -> 
C168: 211 | D168: Magnesium Oxide | E168: MgO | F168: Minerals | G168: AVG | H168: 98 | AB168: 3.07 | AD168: 56.2 | AK168: =IF(List1[[#This Row],[Price]]="","",CONVERT(List1[[#This Row],[Price]],"kg","lbm")) -> 
C169: 212 | D169: Potassium Chloride | E169: KCl | F169: Minerals | G169: AVG | H169: 100 | AE169: 50 | AF169: 1 | AG169: 47.3 | AK169: =IF(List1[[#This Row],[Price]]="","",CONVERT(List1[[#This Row],[Price]],"kg","lbm")) -> 
C170: 213 | D170: Phosphate rock | F170: Minerals | G170: AVG | H170: 100 | AB170: 35 | AC170: 13 | AK170: =IF(List1[[#This Row],[Price]]="","",CONVERT(List1[[#This Row],[Price]],"kg","lbm")) -> 
C171: 214 | D171: Sodium Choride | E171: NaCl | F171: Minerals | G171: AVG | H171: 100 | AF171: 39.34 | AG171: 60.66 | AK171: =IF(List1[[#This Row],[Price]]="","",CONVERT(List1[[#This Row],[Price]],"kg","lbm")) -> 
C172: 215 | D172: Sodium Bicarbonate | E172: NaHCO3 | F172: Minerals | G172: AVG | H172: 100 | AF172: 27 | AK172: =IF(List1[[#This Row],[Price]]="","",CONVERT(List1[[#This Row],[Price]],"kg","lbm")) -> 
C173: 216 | D173: Sodium Phosphate, Monohydrate | E173: NaH2PO4.H20 | F173: Minerals | G173: AVG | H173: 97 | AC173: 22.5 | AF173: 16.68 | AK173: =IF(List1[[#This Row],[Price]]="","",CONVERT(List1[[#This Row],[Price]],"kg","lbm")) -> 
C174: 217 | D174: Sodium Sulfate decahydrate | E174: Na2SO4.10H20 | F174: Minerals | G174: AVG | H174: 97 | AF174: 14.27 | AH174: 9.95 | AK174: =IF(List1[[#This Row],[Price]]="","",CONVERT(List1[[#This Row],[Price]],"kg","lbm")) -> 
C175: 218 | D175: Potassium Sulfate | E175: K2SO4 | F175: Minerals | G175: AVG | H175: 98 | AE175: 41.84 | AH175: 17.35 | AK175: =IF(List1[[#This Row],[Price]]="","",CONVERT(List1[[#This Row],[Price]],"kg","lbm")) -> 
C176: 219 | D176: Ammonium Sulfate | E176: (NH4)2SO4 | F176: Minerals-wN | G176: AVG | H176: 100 | I176: 134.1 | U176: 100 | AH176: 24.1 | AK176: =IF(List1[[#This Row],[Price]]="","",CONVERT(List1[[#This Row],[Price]],"kg","lbm")) -> 
C177: 220 | D177: Ammonium Phosphate, dibasic | E177: (NH4)H2PO4 | F177: Minerals-wN | G177: AVG | H177: 97 | I177: 70.9 | U177: 100 | AC177: 24.74 | AH177: 1.46 | AK177: =IF(List1[[#This Row],[Price]]="","",CONVERT(List1[[#This Row],[Price]],"kg","lbm")) -> 

Sheet diet formulation
B1: Feed Ingredients | AG1: Costs
B2: Enter feed number here | I2: Lower limit in Diet DM, % | J2: % in Diet DM | K2: Higher Limit in Diet DM, % | N2: % "as-is" | O2: % of the TMR | P2: % of DM | Q2: % of DM | R2: % of DM | S2: % of DM | T2: % of DM | U2: % of CP | V2: % of CP | W2: % of CP | X2: %/h | Z2: % | AA2: % of DM | AB2: % of DM | AC2: % of DM | AD2: % of DM | AE2: % of DM | AG2: $/Lbs of DM | AH2: $/day | AI2: $/kg of DM
C3: Name | D3: Description | E3: Lower limit, Lbs of DM | F3: Lbs of DM fed | G3: Higher Limit, Lbs of DM | H3: Kg of DM fed | M3: TDN eq. Cl. | N3: DM | O3: forage (DM basis) | P3: CP | Q3: EE | R3: NDF | S3: Forage NDF | T3: NFC | U3: A | V3: B | W3: C | X3: B Frc. Kd | Y3: B frc. Kp | Z3: RUP Dig | AA3: RDP | AB3: RUP | AC3: Ca | AD3: P | AE3: starch | AG3: Feed Cost | AH3: Feed Cost in the TMR | AI3: Feed Cost
C4: 2 | D4: 3 | M4: 4 | N4: 6 | P4: 7 | Q4: 10 | R4: 11 | T4: 15 | U4: 19 | V4: 20 | W4: 21 | X4: 22 | Z4: 23 | AC4: 26 | AD4: 27 | AE4: 33 | AG4: 34 | AH4: 34 | AI4: 35
C5: =IF($B5="","",INDEX('Feed Table'!$C$14:$AJ$177,MATCH(1,(List1[Entry]=$B5)*(List1[AVG-SD]="AVG"),0),C$4)) ->  | D5: =IF($B5="","",INDEX('Feed Table'!$C$14:$AJ$177,MATCH(1,(List1[Entry]=$B5)*(List1[AVG-SD]="AVG"),0),D$4)) ->  | E5: =IF(F5="","",I5/100*$F$25) -> 0 | F5: 1e-06 | G5: =IF(F5="","",K5/100*$F$25) -> 1e-06 | H5: =IF(F5="","",CONVERT(F5,"lbm","kg")) -> 4.5359237e-07 | I5: 0 | J5: =IF(OR(B5="",F5=""),0,F5/SUM($F$5:$F$21)) -> 0 | K5: 100 | M5: =IF($B5="","",INDEX('Feed Table'!$C$14:$AJ$177,MATCH(1,(List1[Entry]=$B5)*(List1[AVG-SD]="AVG"),0),M$4)) ->  | N5: =IF($B5="","",INDEX('Feed Table'!$C$14:$AJ$177,MATCH(1,(List1[Entry]=$B5)*(List1[AVG-SD]="AVG"),0),N$4)) ->  | O5: =+IF(M5="forage",J5,"-") -> - | P5: =IF($B5="","",INDEX('Feed Table'!$C$14:$AJ$177,MATCH(1,(List1[Entry]=$B5)*(List1[AVG-SD]="AVG"),0),P$4)) ->  | Q5: =IF($B5="","",INDEX('Feed Table'!$C$14:$AJ$177,MATCH(1,(List1[Entry]=$B5)*(List1[AVG-SD]="AVG"),0),Q$4)) ->  | R5: =IF($B5="","",INDEX('Feed Table'!$C$14:$AJ$177,MATCH(1,(List1[Entry]=$B5)*(List1[AVG-SD]="AVG"),0),R$4)) ->  | S5: =IF(M5="Forage",R5,"") ->  | T5: =IF($B5="","",INDEX('Feed Table'!$C$14:$AJ$177,MATCH(1,(List1[Entry]=$B5)*(List1[AVG-SD]="AVG"),0),T$4)) ->  | U5: =IF($B5="","",INDEX('Feed Table'!$C$14:$AJ$177,MATCH(1,(List1[Entry]=$B5)*(List1[AVG-SD]="AVG"),0),U$4)) ->  | V5: =IF($B5="","",INDEX('Feed Table'!$C$14:$AJ$177,MATCH(1,(List1[Entry]=$B5)*(List1[AVG-SD]="AVG"),0),V$4)) ->  | W5: =IF($B5="","",INDEX('Feed Table'!$C$14:$AJ$177,MATCH(1,(List1[Entry]=$B5)*(List1[AVG-SD]="AVG"),0),W$4)) ->  | X5: =IF($B5="","",INDEX('Feed Table'!$C$14:$AJ$177,MATCH(1,(List1[Entry]=$B5)*(List1[AVG-SD]="AVG"),0),X$4)) ->  | Y5: =IF($B5="","",IF(AND(M5="Forage",N5>=70),3.362+0.479*'lists to hide'!$E$14-0.007*(1-$O$25)-0.017*R5,IF(M5="Forage",3.054+0.614*'lists to hide'!$E$14,IF(M5="Conc",2.904+1.375*'lists to hide'!$E$14-0.02*(1-$O$25),0)))) ->  | Z5: =IF($B5="","",INDEX('Feed Table'!$C$14:$AJ$177,MATCH(1,(List1[Entry]=$B5)*(List1[AVG-SD]="AVG"),0),Z$4)) ->  | AA5: =IF(M5="Minerals",0,IF(M5="Minerals-wN",P5,IF(Y5="","",(U5+V5*(X5/(X5+Y5)))*P5/100))) ->  | AB5: =IF(M5="minerals",0,IF(M5="minerals-wN",0,IF(Y5="","",(W5+V5*(Y5/(X5+Y5)))*P5/100))) ->  | AC5: =IF($B5="","",INDEX('Feed Table'!$C$14:$AJ$177,MATCH(1,(List1[Entry]=$B5)*(List1[AVG-SD]="AVG"),0),AC$4)) ->  | AD5: =IF($B5="","",INDEX('Feed Table'!$C$14:$AJ$177,MATCH(1,(List1[Entry]=$B5)*(List1[AVG-SD]="AVG"),0),AD$4)) ->  | AE5: =IF($B5="","",INDEX('Feed Table'!$C$14:$AJ$177,MATCH(1,(List1[Entry]=$B5)*(List1[AVG-SD]="AVG"),0),AE$4)) ->  | AG5: =IF($B5="","",INDEX('Feed Table'!$C$14:$AJ$177,MATCH(1,(List1[Entry]=$B5)*(List1[AVG-SD]="AVG"),0),AG$4)) ->  | AH5: =+IF(AG5="","",AG5*F5) ->  | AI5: =IF($B5="","",INDEX('Feed Table'!$C$14:$AK$177,MATCH(1,(List1[Entry]=$B5)*(List1[AVG-SD]="AVG"),0),AI$4)) -> 
C6: =IF($B6="","",INDEX('Feed Table'!$C$14:$AJ$177,MATCH(1,(List1[Entry]=$B6)*(List1[AVG-SD]="AVG"),0),C$4)) ->  | D6: =IF($B6="","",INDEX('Feed Table'!$C$14:$AJ$177,MATCH(1,(List1[Entry]=$B6)*(List1[AVG-SD]="AVG"),0),D$4)) ->  | E6: 0 | F6: 0 | G6: 1e-06 | H6: =IF(F6="","",CONVERT(F6,"lbm","kg")) -> 0 | I6: 0 | J6: 0 | K6: 100 | M6: =IF($B6="","",INDEX('Feed Table'!$C$14:$AJ$177,MATCH(1,(List1[Entry]=$B6)*(List1[AVG-SD]="AVG"),0),M$4)) ->  | N6: =IF($B6="","",INDEX('Feed Table'!$C$14:$AJ$177,MATCH(1,(List1[Entry]=$B6)*(List1[AVG-SD]="AVG"),0),N$4)) ->  | O6: =+IF(M6="forage",J6,"-") -> - | P6: =IF($B6="","",INDEX('Feed Table'!$C$14:$AJ$177,MATCH(1,(List1[Entry]=$B6)*(List1[AVG-SD]="AVG"),0),P$4)) ->  | Q6: =IF($B6="","",INDEX('Feed Table'!$C$14:$AJ$177,MATCH(1,(List1[Entry]=$B6)*(List1[AVG-SD]="AVG"),0),Q$4)) ->  | R6: =IF($B6="","",INDEX('Feed Table'!$C$14:$AJ$177,MATCH(1,(List1[Entry]=$B6)*(List1[AVG-SD]="AVG"),0),R$4)) ->  | T6: =IF($B6="","",INDEX('Feed Table'!$C$14:$AJ$177,MATCH(1,(List1[Entry]=$B6)*(List1[AVG-SD]="AVG"),0),T$4)) ->  | U6: =IF($B6="","",INDEX('Feed Table'!$C$14:$AJ$177,MATCH(1,(List1[Entry]=$B6)*(List1[AVG-SD]="AVG"),0),U$4)) ->  | V6: =IF($B6="","",INDEX('Feed Table'!$C$14:$AJ$177,MATCH(1,(List1[Entry]=$B6)*(List1[AVG-SD]="AVG"),0),V$4)) ->  | W6: =IF($B6="","",INDEX('Feed Table'!$C$14:$AJ$177,MATCH(1,(List1[Entry]=$B6)*(List1[AVG-SD]="AVG"),0),W$4)) ->  | X6: =IF($B6="","",INDEX('Feed Table'!$C$14:$AJ$177,MATCH(1,(List1[Entry]=$B6)*(List1[AVG-SD]="AVG"),0),X$4)) ->  | Y6: =IF($B6="","",IF(AND(M6="Forage",N6>=70),3.362+0.479*'lists to hide'!$E$14-0.007*(1-$O$25)-0.017*R6,IF(M6="Forage",3.054+0.614*'lists to hide'!$E$14,IF(M6="Conc",2.904+1.375*'lists to hide'!$E$14-0.02*(1-$O$25),0)))) ->  | Z6: =IF($B6="","",INDEX('Feed Table'!$C$14:$AJ$177,MATCH(1,(List1[Entry]=$B6)*(List1[AVG-SD]="AVG"),0),Z$4)) ->  | AC6: =IF($B6="","",INDEX('Feed Table'!$C$14:$AJ$177,MATCH(1,(List1[Entry]=$B6)*(List1[AVG-SD]="AVG"),0),AC$4)) ->  | AD6: =IF($B6="","",INDEX('Feed Table'!$C$14:$AJ$177,MATCH(1,(List1[Entry]=$B6)*(List1[AVG-SD]="AVG"),0),AD$4)) ->  | AE6: =IF($B6="","",INDEX('Feed Table'!$C$14:$AJ$177,MATCH(1,(List1[Entry]=$B6)*(List1[AVG-SD]="AVG"),0),AE$4)) ->  | AG6: =IF($B6="","",INDEX('Feed Table'!$C$14:$AJ$177,MATCH(1,(List1[Entry]=$B6)*(List1[AVG-SD]="AVG"),0),AG$4)) ->  | AH6: =+IF(AG6="","",AG6*F6) ->  | AI6: =IF($B6="","",INDEX('Feed Table'!$C$14:$AK$177,MATCH(1,(List1[Entry]=$B6)*(List1[AVG-SD]="AVG"),0),AI$4)) -> 
C7: =IF($B7="","",INDEX('Feed Table'!$C$14:$AJ$177,MATCH(1,(List1[Entry]=$B7)*(List1[AVG-SD]="AVG"),0),C$4)) ->  | D7: =IF($B7="","",INDEX('Feed Table'!$C$14:$AJ$177,MATCH(1,(List1[Entry]=$B7)*(List1[AVG-SD]="AVG"),0),D$4)) ->  | E7: 0 | F7: 0 | G7: 1e-06 | H7: 0 | I7: 0 | J7: 0 | K7: 100 | M7: =IF($B7="","",INDEX('Feed Table'!$C$14:$AJ$177,MATCH(1,(List1[Entry]=$B7)*(List1[AVG-SD]="AVG"),0),M$4)) ->  | N7: =IF($B7="","",INDEX('Feed Table'!$C$14:$AJ$177,MATCH(1,(List1[Entry]=$B7)*(List1[AVG-SD]="AVG"),0),N$4)) ->  | O7: - | P7: =IF($B7="","",INDEX('Feed Table'!$C$14:$AJ$177,MATCH(1,(List1[Entry]=$B7)*(List1[AVG-SD]="AVG"),0),P$4)) ->  | Q7: =IF($B7="","",INDEX('Feed Table'!$C$14:$AJ$177,MATCH(1,(List1[Entry]=$B7)*(List1[AVG-SD]="AVG"),0),Q$4)) ->  | R7: =IF($B7="","",INDEX('Feed Table'!$C$14:$AJ$177,MATCH(1,(List1[Entry]=$B7)*(List1[AVG-SD]="AVG"),0),R$4)) ->  | T7: =IF($B7="","",INDEX('Feed Table'!$C$14:$AJ$177,MATCH(1,(List1[Entry]=$B7)*(List1[AVG-SD]="AVG"),0),T$4)) ->  | U7: =IF($B7="","",INDEX('Feed Table'!$C$14:$AJ$177,MATCH(1,(List1[Entry]=$B7)*(List1[AVG-SD]="AVG"),0),U$4)) ->  | V7: =IF($B7="","",INDEX('Feed Table'!$C$14:$AJ$177,MATCH(1,(List1[Entry]=$B7)*(List1[AVG-SD]="AVG"),0),V$4)) ->  | W7: =IF($B7="","",INDEX('Feed Table'!$C$14:$AJ$177,MATCH(1,(List1[Entry]=$B7)*(List1[AVG-SD]="AVG"),0),W$4)) ->  | X7: =IF($B7="","",INDEX('Feed Table'!$C$14:$AJ$177,MATCH(1,(List1[Entry]=$B7)*(List1[AVG-SD]="AVG"),0),X$4)) ->  | Y7: =IF($B7="","",IF(AND(M7="Forage",N7>=70),3.362+0.479*'lists to hide'!$E$14-0.007*(1-$O$25)-0.017*R7,IF(M7="Forage",3.054+0.614*'lists to hide'!$E$14,IF(M7="Conc",2.904+1.375*'lists to hide'!$E$14-0.02*(1-$O$25),0)))) ->  | Z7: =IF($B7="","",INDEX('Feed Table'!$C$14:$AJ$177,MATCH(1,(List1[Entry]=$B7)*(List1[AVG-SD]="AVG"),0),Z$4)) ->  | AC7: =IF($B7="","",INDEX('Feed Table'!$C$14:$AJ$177,MATCH(1,(List1[Entry]=$B7)*(List1[AVG-SD]="AVG"),0),AC$4)) ->  | AD7: =IF($B7="","",INDEX('Feed Table'!$C$14:$AJ$177,MATCH(1,(List1[Entry]=$B7)*(List1[AVG-SD]="AVG"),0),AD$4)) ->  | AE7: =IF($B7="","",INDEX('Feed Table'!$C$14:$AJ$177,MATCH(1,(List1[Entry]=$B7)*(List1[AVG-SD]="AVG"),0),AE$4)) ->  | AG7: =IF($B7="","",INDEX('Feed Table'!$C$14:$AJ$177,MATCH(1,(List1[Entry]=$B7)*(List1[AVG-SD]="AVG"),0),AG$4)) ->  | AI7: =IF($B7="","",INDEX('Feed Table'!$C$14:$AK$177,MATCH(1,(List1[Entry]=$B7)*(List1[AVG-SD]="AVG"),0),AI$4)) -> 
C8: =IF($B8="","",INDEX('Feed Table'!$C$14:$AJ$177,MATCH(1,(List1[Entry]=$B8)*(List1[AVG-SD]="AVG"),0),C$4)) ->  | D8: =IF($B8="","",INDEX('Feed Table'!$C$14:$AJ$177,MATCH(1,(List1[Entry]=$B8)*(List1[AVG-SD]="AVG"),0),D$4)) ->  | E8: 0 | F8: 0 | G8: 1e-06 | H8: 0 | I8: 0 | J8: 0 | K8: 100 | M8: =IF($B8="","",INDEX('Feed Table'!$C$14:$AJ$177,MATCH(1,(List1[Entry]=$B8)*(List1[AVG-SD]="AVG"),0),M$4)) ->  | N8: =IF($B8="","",INDEX('Feed Table'!$C$14:$AJ$177,MATCH(1,(List1[Entry]=$B8)*(List1[AVG-SD]="AVG"),0),N$4)) ->  | O8: - | P8: =IF($B8="","",INDEX('Feed Table'!$C$14:$AJ$177,MATCH(1,(List1[Entry]=$B8)*(List1[AVG-SD]="AVG"),0),P$4)) ->  | Q8: =IF($B8="","",INDEX('Feed Table'!$C$14:$AJ$177,MATCH(1,(List1[Entry]=$B8)*(List1[AVG-SD]="AVG"),0),Q$4)) ->  | R8: =IF($B8="","",INDEX('Feed Table'!$C$14:$AJ$177,MATCH(1,(List1[Entry]=$B8)*(List1[AVG-SD]="AVG"),0),R$4)) ->  | T8: =IF($B8="","",INDEX('Feed Table'!$C$14:$AJ$177,MATCH(1,(List1[Entry]=$B8)*(List1[AVG-SD]="AVG"),0),T$4)) ->  | U8: =IF($B8="","",INDEX('Feed Table'!$C$14:$AJ$177,MATCH(1,(List1[Entry]=$B8)*(List1[AVG-SD]="AVG"),0),U$4)) ->  | V8: =IF($B8="","",INDEX('Feed Table'!$C$14:$AJ$177,MATCH(1,(List1[Entry]=$B8)*(List1[AVG-SD]="AVG"),0),V$4)) ->  | W8: =IF($B8="","",INDEX('Feed Table'!$C$14:$AJ$177,MATCH(1,(List1[Entry]=$B8)*(List1[AVG-SD]="AVG"),0),W$4)) ->  | X8: =IF($B8="","",INDEX('Feed Table'!$C$14:$AJ$177,MATCH(1,(List1[Entry]=$B8)*(List1[AVG-SD]="AVG"),0),X$4)) ->  | Y8: =IF($B8="","",IF(AND(M8="Forage",N8>=70),3.362+0.479*'lists to hide'!$E$14-0.007*(1-$O$25)-0.017*R8,IF(M8="Forage",3.054+0.614*'lists to hide'!$E$14,IF(M8="Conc",2.904+1.375*'lists to hide'!$E$14-0.02*(1-$O$25),0)))) ->  | Z8: =IF($B8="","",INDEX('Feed Table'!$C$14:$AJ$177,MATCH(1,(List1[Entry]=$B8)*(List1[AVG-SD]="AVG"),0),Z$4)) ->  | AC8: =IF($B8="","",INDEX('Feed Table'!$C$14:$AJ$177,MATCH(1,(List1[Entry]=$B8)*(List1[AVG-SD]="AVG"),0),AC$4)) ->  | AD8: =IF($B8="","",INDEX('Feed Table'!$C$14:$AJ$177,MATCH(1,(List1[Entry]=$B8)*(List1[AVG-SD]="AVG"),0),AD$4)) ->  | AE8: =IF($B8="","",INDEX('Feed Table'!$C$14:$AJ$177,MATCH(1,(List1[Entry]=$B8)*(List1[AVG-SD]="AVG"),0),AE$4)) ->  | AG8: =IF($B8="","",INDEX('Feed Table'!$C$14:$AJ$177,MATCH(1,(List1[Entry]=$B8)*(List1[AVG-SD]="AVG"),0),AG$4)) ->  | AI8: =IF($B8="","",INDEX('Feed Table'!$C$14:$AK$177,MATCH(1,(List1[Entry]=$B8)*(List1[AVG-SD]="AVG"),0),AI$4)) -> 
C9: =IF($B9="","",INDEX('Feed Table'!$C$14:$AJ$177,MATCH(1,(List1[Entry]=$B9)*(List1[AVG-SD]="AVG"),0),C$4)) ->  | D9: =IF($B9="","",INDEX('Feed Table'!$C$14:$AJ$177,MATCH(1,(List1[Entry]=$B9)*(List1[AVG-SD]="AVG"),0),D$4)) ->  | E9: 0 | F9: 0 | G9: 1e-06 | H9: 0 | I9: 0 | J9: 0 | K9: 100 | M9: =IF($B9="","",INDEX('Feed Table'!$C$14:$AJ$177,MATCH(1,(List1[Entry]=$B9)*(List1[AVG-SD]="AVG"),0),M$4)) ->  | N9: =IF($B9="","",INDEX('Feed Table'!$C$14:$AJ$177,MATCH(1,(List1[Entry]=$B9)*(List1[AVG-SD]="AVG"),0),N$4)) ->  | O9: - | P9: =IF($B9="","",INDEX('Feed Table'!$C$14:$AJ$177,MATCH(1,(List1[Entry]=$B9)*(List1[AVG-SD]="AVG"),0),P$4)) ->  | Q9: =IF($B9="","",INDEX('Feed Table'!$C$14:$AJ$177,MATCH(1,(List1[Entry]=$B9)*(List1[AVG-SD]="AVG"),0),Q$4)) ->  | R9: =IF($B9="","",INDEX('Feed Table'!$C$14:$AJ$177,MATCH(1,(List1[Entry]=$B9)*(List1[AVG-SD]="AVG"),0),R$4)) ->  | T9: =IF($B9="","",INDEX('Feed Table'!$C$14:$AJ$177,MATCH(1,(List1[Entry]=$B9)*(List1[AVG-SD]="AVG"),0),T$4)) ->  | U9: =IF($B9="","",INDEX('Feed Table'!$C$14:$AJ$177,MATCH(1,(List1[Entry]=$B9)*(List1[AVG-SD]="AVG"),0),U$4)) ->  | V9: =IF($B9="","",INDEX('Feed Table'!$C$14:$AJ$177,MATCH(1,(List1[Entry]=$B9)*(List1[AVG-SD]="AVG"),0),V$4)) ->  | W9: =IF($B9="","",INDEX('Feed Table'!$C$14:$AJ$177,MATCH(1,(List1[Entry]=$B9)*(List1[AVG-SD]="AVG"),0),W$4)) ->  | X9: =IF($B9="","",INDEX('Feed Table'!$C$14:$AJ$177,MATCH(1,(List1[Entry]=$B9)*(List1[AVG-SD]="AVG"),0),X$4)) ->  | Y9: =IF($B9="","",IF(AND(M9="Forage",N9>=70),3.362+0.479*'lists to hide'!$E$14-0.007*(1-$O$25)-0.017*R9,IF(M9="Forage",3.054+0.614*'lists to hide'!$E$14,IF(M9="Conc",2.904+1.375*'lists to hide'!$E$14-0.02*(1-$O$25),0)))) ->  | Z9: =IF($B9="","",INDEX('Feed Table'!$C$14:$AJ$177,MATCH(1,(List1[Entry]=$B9)*(List1[AVG-SD]="AVG"),0),Z$4)) ->  | AC9: =IF($B9="","",INDEX('Feed Table'!$C$14:$AJ$177,MATCH(1,(List1[Entry]=$B9)*(List1[AVG-SD]="AVG"),0),AC$4)) ->  | AD9: =IF($B9="","",INDEX('Feed Table'!$C$14:$AJ$177,MATCH(1,(List1[Entry]=$B9)*(List1[AVG-SD]="AVG"),0),AD$4)) ->  | AE9: =IF($B9="","",INDEX('Feed Table'!$C$14:$AJ$177,MATCH(1,(List1[Entry]=$B9)*(List1[AVG-SD]="AVG"),0),AE$4)) ->  | AG9: =IF($B9="","",INDEX('Feed Table'!$C$14:$AJ$177,MATCH(1,(List1[Entry]=$B9)*(List1[AVG-SD]="AVG"),0),AG$4)) ->  | AI9: =IF($B9="","",INDEX('Feed Table'!$C$14:$AK$177,MATCH(1,(List1[Entry]=$B9)*(List1[AVG-SD]="AVG"),0),AI$4)) -> 
C10: =IF($B10="","",INDEX('Feed Table'!$C$14:$AJ$177,MATCH(1,(List1[Entry]=$B10)*(List1[AVG-SD]="AVG"),0),C$4)) ->  | D10: =IF($B10="","",INDEX('Feed Table'!$C$14:$AJ$177,MATCH(1,(List1[Entry]=$B10)*(List1[AVG-SD]="AVG"),0),D$4)) ->  | E10: 0 | F10: 0 | G10: 1e-06 | H10: 0 | I10: 0 | J10: 0 | K10: 100 | M10: =IF($B10="","",INDEX('Feed Table'!$C$14:$AJ$177,MATCH(1,(List1[Entry]=$B10)*(List1[AVG-SD]="AVG"),0),M$4)) ->  | N10: =IF($B10="","",INDEX('Feed Table'!$C$14:$AJ$177,MATCH(1,(List1[Entry]=$B10)*(List1[AVG-SD]="AVG"),0),N$4)) ->  | O10: - | P10: =IF($B10="","",INDEX('Feed Table'!$C$14:$AJ$177,MATCH(1,(List1[Entry]=$B10)*(List1[AVG-SD]="AVG"),0),P$4)) ->  | Q10: =IF($B10="","",INDEX('Feed Table'!$C$14:$AJ$177,MATCH(1,(List1[Entry]=$B10)*(List1[AVG-SD]="AVG"),0),Q$4)) ->  | R10: =IF($B10="","",INDEX('Feed Table'!$C$14:$AJ$177,MATCH(1,(List1[Entry]=$B10)*(List1[AVG-SD]="AVG"),0),R$4)) ->  | T10: =IF($B10="","",INDEX('Feed Table'!$C$14:$AJ$177,MATCH(1,(List1[Entry]=$B10)*(List1[AVG-SD]="AVG"),0),T$4)) ->  | U10: =IF($B10="","",INDEX('Feed Table'!$C$14:$AJ$177,MATCH(1,(List1[Entry]=$B10)*(List1[AVG-SD]="AVG"),0),U$4)) ->  | V10: =IF($B10="","",INDEX('Feed Table'!$C$14:$AJ$177,MATCH(1,(List1[Entry]=$B10)*(List1[AVG-SD]="AVG"),0),V$4)) ->  | W10: =IF($B10="","",INDEX('Feed Table'!$C$14:$AJ$177,MATCH(1,(List1[Entry]=$B10)*(List1[AVG-SD]="AVG"),0),W$4)) ->  | X10: =IF($B10="","",INDEX('Feed Table'!$C$14:$AJ$177,MATCH(1,(List1[Entry]=$B10)*(List1[AVG-SD]="AVG"),0),X$4)) ->  | Y10: =IF($B10="","",IF(AND(M10="Forage",N10>=70),3.362+0.479*'lists to hide'!$E$14-0.007*(1-$O$25)-0.017*R10,IF(M10="Forage",3.054+0.614*'lists to hide'!$E$14,IF(M10="Conc",2.904+1.375*'lists to hide'!$E$14-0.02*(1-$O$25),0)))) ->  | Z10: =IF($B10="","",INDEX('Feed Table'!$C$14:$AJ$177,MATCH(1,(List1[Entry]=$B10)*(List1[AVG-SD]="AVG"),0),Z$4)) ->  | AC10: =IF($B10="","",INDEX('Feed Table'!$C$14:$AJ$177,MATCH(1,(List1[Entry]=$B10)*(List1[AVG-SD]="AVG"),0),AC$4)) ->  | AD10: =IF($B10="","",INDEX('Feed Table'!$C$14:$AJ$177,MATCH(1,(List1[Entry]=$B10)*(List1[AVG-SD]="AVG"),0),AD$4)) ->  | AE10: =IF($B10="","",INDEX('Feed Table'!$C$14:$AJ$177,MATCH(1,(List1[Entry]=$B10)*(List1[AVG-SD]="AVG"),0),AE$4)) ->  | AG10: =IF($B10="","",INDEX('Feed Table'!$C$14:$AJ$177,MATCH(1,(List1[Entry]=$B10)*(List1[AVG-SD]="AVG"),0),AG$4)) ->  | AI10: =IF($B10="","",INDEX('Feed Table'!$C$14:$AK$177,MATCH(1,(List1[Entry]=$B10)*(List1[AVG-SD]="AVG"),0),AI$4)) -> 
C11: =IF($B11="","",INDEX('Feed Table'!$C$14:$AJ$177,MATCH(1,(List1[Entry]=$B11)*(List1[AVG-SD]="AVG"),0),C$4)) ->  | D11: =IF($B11="","",INDEX('Feed Table'!$C$14:$AJ$177,MATCH(1,(List1[Entry]=$B11)*(List1[AVG-SD]="AVG"),0),D$4)) ->  | E11: 0 | F11: 0 | G11: 1e-06 | H11: 0 | I11: 0 | J11: 0 | K11: 100 | M11: =IF($B11="","",INDEX('Feed Table'!$C$14:$AJ$177,MATCH(1,(List1[Entry]=$B11)*(List1[AVG-SD]="AVG"),0),M$4)) ->  | N11: =IF($B11="","",INDEX('Feed Table'!$C$14:$AJ$177,MATCH(1,(List1[Entry]=$B11)*(List1[AVG-SD]="AVG"),0),N$4)) ->  | O11: - | P11: =IF($B11="","",INDEX('Feed Table'!$C$14:$AJ$177,MATCH(1,(List1[Entry]=$B11)*(List1[AVG-SD]="AVG"),0),P$4)) ->  | Q11: =IF($B11="","",INDEX('Feed Table'!$C$14:$AJ$177,MATCH(1,(List1[Entry]=$B11)*(List1[AVG-SD]="AVG"),0),Q$4)) ->  | R11: =IF($B11="","",INDEX('Feed Table'!$C$14:$AJ$177,MATCH(1,(List1[Entry]=$B11)*(List1[AVG-SD]="AVG"),0),R$4)) ->  | T11: =IF($B11="","",INDEX('Feed Table'!$C$14:$AJ$177,MATCH(1,(List1[Entry]=$B11)*(List1[AVG-SD]="AVG"),0),T$4)) ->  | U11: =IF($B11="","",INDEX('Feed Table'!$C$14:$AJ$177,MATCH(1,(List1[Entry]=$B11)*(List1[AVG-SD]="AVG"),0),U$4)) ->  | V11: =IF($B11="","",INDEX('Feed Table'!$C$14:$AJ$177,MATCH(1,(List1[Entry]=$B11)*(List1[AVG-SD]="AVG"),0),V$4)) ->  | W11: =IF($B11="","",INDEX('Feed Table'!$C$14:$AJ$177,MATCH(1,(List1[Entry]=$B11)*(List1[AVG-SD]="AVG"),0),W$4)) ->  | X11: =IF($B11="","",INDEX('Feed Table'!$C$14:$AJ$177,MATCH(1,(List1[Entry]=$B11)*(List1[AVG-SD]="AVG"),0),X$4)) ->  | Y11: =IF($B11="","",IF(AND(M11="Forage",N11>=70),3.362+0.479*'lists to hide'!$E$14-0.007*(1-$O$25)-0.017*R11,IF(M11="Forage",3.054+0.614*'lists to hide'!$E$14,IF(M11="Conc",2.904+1.375*'lists to hide'!$E$14-0.02*(1-$O$25),0)))) ->  | Z11: =IF($B11="","",INDEX('Feed Table'!$C$14:$AJ$177,MATCH(1,(List1[Entry]=$B11)*(List1[AVG-SD]="AVG"),0),Z$4)) ->  | AC11: =IF($B11="","",INDEX('Feed Table'!$C$14:$AJ$177,MATCH(1,(List1[Entry]=$B11)*(List1[AVG-SD]="AVG"),0),AC$4)) ->  | AD11: =IF($B11="","",INDEX('Feed Table'!$C$14:$AJ$177,MATCH(1,(List1[Entry]=$B11)*(List1[AVG-SD]="AVG"),0),AD$4)) ->  | AE11: =IF($B11="","",INDEX('Feed Table'!$C$14:$AJ$177,MATCH(1,(List1[Entry]=$B11)*(List1[AVG-SD]="AVG"),0),AE$4)) ->  | AG11: =IF($B11="","",INDEX('Feed Table'!$C$14:$AJ$177,MATCH(1,(List1[Entry]=$B11)*(List1[AVG-SD]="AVG"),0),AG$4)) ->  | AI11: =IF($B11="","",INDEX('Feed Table'!$C$14:$AK$177,MATCH(1,(List1[Entry]=$B11)*(List1[AVG-SD]="AVG"),0),AI$4)) -> 
C12: =IF($B12="","",INDEX('Feed Table'!$C$14:$AJ$177,MATCH(1,(List1[Entry]=$B12)*(List1[AVG-SD]="AVG"),0),C$4)) ->  | D12: =IF($B12="","",INDEX('Feed Table'!$C$14:$AJ$177,MATCH(1,(List1[Entry]=$B12)*(List1[AVG-SD]="AVG"),0),D$4)) ->  | E12: 0 | F12: 0 | G12: 1e-06 | H12: 0 | I12: 0 | J12: 0 | K12: 100 | M12: =IF($B12="","",INDEX('Feed Table'!$C$14:$AJ$177,MATCH(1,(List1[Entry]=$B12)*(List1[AVG-SD]="AVG"),0),M$4)) ->  | N12: =IF($B12="","",INDEX('Feed Table'!$C$14:$AJ$177,MATCH(1,(List1[Entry]=$B12)*(List1[AVG-SD]="AVG"),0),N$4)) ->  | O12: - | P12: =IF($B12="","",INDEX('Feed Table'!$C$14:$AJ$177,MATCH(1,(List1[Entry]=$B12)*(List1[AVG-SD]="AVG"),0),P$4)) ->  | Q12: =IF($B12="","",INDEX('Feed Table'!$C$14:$AJ$177,MATCH(1,(List1[Entry]=$B12)*(List1[AVG-SD]="AVG"),0),Q$4)) ->  | R12: =IF($B12="","",INDEX('Feed Table'!$C$14:$AJ$177,MATCH(1,(List1[Entry]=$B12)*(List1[AVG-SD]="AVG"),0),R$4)) ->  | T12: =IF($B12="","",INDEX('Feed Table'!$C$14:$AJ$177,MATCH(1,(List1[Entry]=$B12)*(List1[AVG-SD]="AVG"),0),T$4)) ->  | U12: =IF($B12="","",INDEX('Feed Table'!$C$14:$AJ$177,MATCH(1,(List1[Entry]=$B12)*(List1[AVG-SD]="AVG"),0),U$4)) ->  | V12: =IF($B12="","",INDEX('Feed Table'!$C$14:$AJ$177,MATCH(1,(List1[Entry]=$B12)*(List1[AVG-SD]="AVG"),0),V$4)) ->  | W12: =IF($B12="","",INDEX('Feed Table'!$C$14:$AJ$177,MATCH(1,(List1[Entry]=$B12)*(List1[AVG-SD]="AVG"),0),W$4)) ->  | X12: =IF($B12="","",INDEX('Feed Table'!$C$14:$AJ$177,MATCH(1,(List1[Entry]=$B12)*(List1[AVG-SD]="AVG"),0),X$4)) ->  | Y12: =IF($B12="","",IF(AND(M12="Forage",N12>=70),3.362+0.479*'lists to hide'!$E$14-0.007*(1-$O$25)-0.017*R12,IF(M12="Forage",3.054+0.614*'lists to hide'!$E$14,IF(M12="Conc",2.904+1.375*'lists to hide'!$E$14-0.02*(1-$O$25),0)))) ->  | Z12: =IF($B12="","",INDEX('Feed Table'!$C$14:$AJ$177,MATCH(1,(List1[Entry]=$B12)*(List1[AVG-SD]="AVG"),0),Z$4)) ->  | AC12: =IF($B12="","",INDEX('Feed Table'!$C$14:$AJ$177,MATCH(1,(List1[Entry]=$B12)*(List1[AVG-SD]="AVG"),0),AC$4)) ->  | AD12: =IF($B12="","",INDEX('Feed Table'!$C$14:$AJ$177,MATCH(1,(List1[Entry]=$B12)*(List1[AVG-SD]="AVG"),0),AD$4)) ->  | AE12: =IF($B12="","",INDEX('Feed Table'!$C$14:$AJ$177,MATCH(1,(List1[Entry]=$B12)*(List1[AVG-SD]="AVG"),0),AE$4)) ->  | AG12: =IF($B12="","",INDEX('Feed Table'!$C$14:$AJ$177,MATCH(1,(List1[Entry]=$B12)*(List1[AVG-SD]="AVG"),0),AG$4)) ->  | AI12: =IF($B12="","",INDEX('Feed Table'!$C$14:$AK$177,MATCH(1,(List1[Entry]=$B12)*(List1[AVG-SD]="AVG"),0),AI$4)) -> 
C13: =IF($B13="","",INDEX('Feed Table'!$C$14:$AJ$177,MATCH(1,(List1[Entry]=$B13)*(List1[AVG-SD]="AVG"),0),C$4)) ->  | D13: =IF($B13="","",INDEX('Feed Table'!$C$14:$AJ$177,MATCH(1,(List1[Entry]=$B13)*(List1[AVG-SD]="AVG"),0),D$4)) ->  | E13: 0 | F13: 0 | G13: 1e-06 | H13: 0 | I13: 0 | J13: =IF(OR(B13="",F13=""),0,F13/SUM($F$5:$F$21)) -> 0 | K13: 100 | M13: =IF($B13="","",INDEX('Feed Table'!$C$14:$AJ$177,MATCH(1,(List1[Entry]=$B13)*(List1[AVG-SD]="AVG"),0),M$4)) ->  | N13: =IF($B13="","",INDEX('Feed Table'!$C$14:$AJ$177,MATCH(1,(List1[Entry]=$B13)*(List1[AVG-SD]="AVG"),0),N$4)) ->  | O13: - | P13: =IF($B13="","",INDEX('Feed Table'!$C$14:$AJ$177,MATCH(1,(List1[Entry]=$B13)*(List1[AVG-SD]="AVG"),0),P$4)) ->  | Q13: =IF($B13="","",INDEX('Feed Table'!$C$14:$AJ$177,MATCH(1,(List1[Entry]=$B13)*(List1[AVG-SD]="AVG"),0),Q$4)) ->  | R13: =IF($B13="","",INDEX('Feed Table'!$C$14:$AJ$177,MATCH(1,(List1[Entry]=$B13)*(List1[AVG-SD]="AVG"),0),R$4)) ->  | T13: =IF($B13="","",INDEX('Feed Table'!$C$14:$AJ$177,MATCH(1,(List1[Entry]=$B13)*(List1[AVG-SD]="AVG"),0),T$4)) ->  | U13: =IF($B13="","",INDEX('Feed Table'!$C$14:$AJ$177,MATCH(1,(List1[Entry]=$B13)*(List1[AVG-SD]="AVG"),0),U$4)) ->  | V13: =IF($B13="","",INDEX('Feed Table'!$C$14:$AJ$177,MATCH(1,(List1[Entry]=$B13)*(List1[AVG-SD]="AVG"),0),V$4)) ->  | W13: =IF($B13="","",INDEX('Feed Table'!$C$14:$AJ$177,MATCH(1,(List1[Entry]=$B13)*(List1[AVG-SD]="AVG"),0),W$4)) ->  | X13: =IF($B13="","",INDEX('Feed Table'!$C$14:$AJ$177,MATCH(1,(List1[Entry]=$B13)*(List1[AVG-SD]="AVG"),0),X$4)) ->  | Y13: =IF($B13="","",IF(AND(M13="Forage",N13>=70),3.362+0.479*'lists to hide'!$E$14-0.007*(1-$O$25)-0.017*R13,IF(M13="Forage",3.054+0.614*'lists to hide'!$E$14,IF(M13="Conc",2.904+1.375*'lists to hide'!$E$14-0.02*(1-$O$25),0)))) ->  | Z13: =IF($B13="","",INDEX('Feed Table'!$C$14:$AJ$177,MATCH(1,(List1[Entry]=$B13)*(List1[AVG-SD]="AVG"),0),Z$4)) ->  | AC13: =IF($B13="","",INDEX('Feed Table'!$C$14:$AJ$177,MATCH(1,(List1[Entry]=$B13)*(List1[AVG-SD]="AVG"),0),AC$4)) ->  | AD13: =IF($B13="","",INDEX('Feed Table'!$C$14:$AJ$177,MATCH(1,(List1[Entry]=$B13)*(List1[AVG-SD]="AVG"),0),AD$4)) ->  | AE13: =IF($B13="","",INDEX('Feed Table'!$C$14:$AJ$177,MATCH(1,(List1[Entry]=$B13)*(List1[AVG-SD]="AVG"),0),AE$4)) ->  | AG13: =IF($B13="","",INDEX('Feed Table'!$C$14:$AJ$177,MATCH(1,(List1[Entry]=$B13)*(List1[AVG-SD]="AVG"),0),AG$4)) ->  | AI13: =IF($B13="","",INDEX('Feed Table'!$C$14:$AK$177,MATCH(1,(List1[Entry]=$B13)*(List1[AVG-SD]="AVG"),0),AI$4)) -> 
C14: =IF($B14="","",INDEX('Feed Table'!$C$14:$AJ$177,MATCH(1,(List1[Entry]=$B14)*(List1[AVG-SD]="AVG"),0),C$4)) ->  | D14: =IF($B14="","",INDEX('Feed Table'!$C$14:$AJ$177,MATCH(1,(List1[Entry]=$B14)*(List1[AVG-SD]="AVG"),0),D$4)) ->  | E14: 0 | F14: 0 | G14: 1e-06 | H14: 0 | I14: 0 | J14: 0 | K14: 100 | M14: =IF($B14="","",INDEX('Feed Table'!$C$14:$AJ$177,MATCH(1,(List1[Entry]=$B14)*(List1[AVG-SD]="AVG"),0),M$4)) ->  | N14: =IF($B14="","",INDEX('Feed Table'!$C$14:$AJ$177,MATCH(1,(List1[Entry]=$B14)*(List1[AVG-SD]="AVG"),0),N$4)) ->  | O14: - | P14: =IF($B14="","",INDEX('Feed Table'!$C$14:$AJ$177,MATCH(1,(List1[Entry]=$B14)*(List1[AVG-SD]="AVG"),0),P$4)) ->  | Q14: =IF($B14="","",INDEX('Feed Table'!$C$14:$AJ$177,MATCH(1,(List1[Entry]=$B14)*(List1[AVG-SD]="AVG"),0),Q$4)) ->  | R14: =IF($B14="","",INDEX('Feed Table'!$C$14:$AJ$177,MATCH(1,(List1[Entry]=$B14)*(List1[AVG-SD]="AVG"),0),R$4)) ->  | T14: =IF($B14="","",INDEX('Feed Table'!$C$14:$AJ$177,MATCH(1,(List1[Entry]=$B14)*(List1[AVG-SD]="AVG"),0),T$4)) ->  | U14: =IF($B14="","",INDEX('Feed Table'!$C$14:$AJ$177,MATCH(1,(List1[Entry]=$B14)*(List1[AVG-SD]="AVG"),0),U$4)) ->  | V14: =IF($B14="","",INDEX('Feed Table'!$C$14:$AJ$177,MATCH(1,(List1[Entry]=$B14)*(List1[AVG-SD]="AVG"),0),V$4)) ->  | W14: =IF($B14="","",INDEX('Feed Table'!$C$14:$AJ$177,MATCH(1,(List1[Entry]=$B14)*(List1[AVG-SD]="AVG"),0),W$4)) ->  | X14: =IF($B14="","",INDEX('Feed Table'!$C$14:$AJ$177,MATCH(1,(List1[Entry]=$B14)*(List1[AVG-SD]="AVG"),0),X$4)) ->  | Y14: =IF($B14="","",IF(AND(M14="Forage",N14>=70),3.362+0.479*'lists to hide'!$E$14-0.007*(1-$O$25)-0.017*R14,IF(M14="Forage",3.054+0.614*'lists to hide'!$E$14,IF(M14="Conc",2.904+1.375*'lists to hide'!$E$14-0.02*(1-$O$25),0)))) ->  | Z14: =IF($B14="","",INDEX('Feed Table'!$C$14:$AJ$177,MATCH(1,(List1[Entry]=$B14)*(List1[AVG-SD]="AVG"),0),Z$4)) ->  | AC14: =IF($B14="","",INDEX('Feed Table'!$C$14:$AJ$177,MATCH(1,(List1[Entry]=$B14)*(List1[AVG-SD]="AVG"),0),AC$4)) ->  | AD14: =IF($B14="","",INDEX('Feed Table'!$C$14:$AJ$177,MATCH(1,(List1[Entry]=$B14)*(List1[AVG-SD]="AVG"),0),AD$4)) ->  | AE14: =IF($B14="","",INDEX('Feed Table'!$C$14:$AJ$177,MATCH(1,(List1[Entry]=$B14)*(List1[AVG-SD]="AVG"),0),AE$4)) ->  | AG14: =IF($B14="","",INDEX('Feed Table'!$C$14:$AJ$177,MATCH(1,(List1[Entry]=$B14)*(List1[AVG-SD]="AVG"),0),AG$4)) ->  | AI14: =IF($B14="","",INDEX('Feed Table'!$C$14:$AK$177,MATCH(1,(List1[Entry]=$B14)*(List1[AVG-SD]="AVG"),0),AI$4)) -> 
C15: =IF($B15="","",INDEX('Feed Table'!$C$14:$AJ$177,MATCH(1,(List1[Entry]=$B15)*(List1[AVG-SD]="AVG"),0),C$4)) ->  | D15: =IF($B15="","",INDEX('Feed Table'!$C$14:$AJ$177,MATCH(1,(List1[Entry]=$B15)*(List1[AVG-SD]="AVG"),0),D$4)) ->  | E15: 0 | F15: 0 | G15: 1e-06 | H15: 0 | I15: 0 | J15: 0 | K15: 100 | M15: =IF($B15="","",INDEX('Feed Table'!$C$14:$AJ$177,MATCH(1,(List1[Entry]=$B15)*(List1[AVG-SD]="AVG"),0),M$4)) ->  | N15: =IF($B15="","",INDEX('Feed Table'!$C$14:$AJ$177,MATCH(1,(List1[Entry]=$B15)*(List1[AVG-SD]="AVG"),0),N$4)) ->  | O15: - | P15: =IF($B15="","",INDEX('Feed Table'!$C$14:$AJ$177,MATCH(1,(List1[Entry]=$B15)*(List1[AVG-SD]="AVG"),0),P$4)) ->  | Q15: =IF($B15="","",INDEX('Feed Table'!$C$14:$AJ$177,MATCH(1,(List1[Entry]=$B15)*(List1[AVG-SD]="AVG"),0),Q$4)) ->  | R15: =IF($B15="","",INDEX('Feed Table'!$C$14:$AJ$177,MATCH(1,(List1[Entry]=$B15)*(List1[AVG-SD]="AVG"),0),R$4)) ->  | T15: =IF($B15="","",INDEX('Feed Table'!$C$14:$AJ$177,MATCH(1,(List1[Entry]=$B15)*(List1[AVG-SD]="AVG"),0),T$4)) ->  | U15: =IF($B15="","",INDEX('Feed Table'!$C$14:$AJ$177,MATCH(1,(List1[Entry]=$B15)*(List1[AVG-SD]="AVG"),0),U$4)) ->  | V15: =IF($B15="","",INDEX('Feed Table'!$C$14:$AJ$177,MATCH(1,(List1[Entry]=$B15)*(List1[AVG-SD]="AVG"),0),V$4)) ->  | W15: =IF($B15="","",INDEX('Feed Table'!$C$14:$AJ$177,MATCH(1,(List1[Entry]=$B15)*(List1[AVG-SD]="AVG"),0),W$4)) ->  | X15: =IF($B15="","",INDEX('Feed Table'!$C$14:$AJ$177,MATCH(1,(List1[Entry]=$B15)*(List1[AVG-SD]="AVG"),0),X$4)) ->  | Y15: =IF($B15="","",IF(AND(M15="Forage",N15>=70),3.362+0.479*'lists to hide'!$E$14-0.007*(1-$O$25)-0.017*R15,IF(M15="Forage",3.054+0.614*'lists to hide'!$E$14,IF(M15="Conc",2.904+1.375*'lists to hide'!$E$14-0.02*(1-$O$25),0)))) ->  | Z15: =IF($B15="","",INDEX('Feed Table'!$C$14:$AJ$177,MATCH(1,(List1[Entry]=$B15)*(List1[AVG-SD]="AVG"),0),Z$4)) ->  | AC15: =IF($B15="","",INDEX('Feed Table'!$C$14:$AJ$177,MATCH(1,(List1[Entry]=$B15)*(List1[AVG-SD]="AVG"),0),AC$4)) ->  | AD15: =IF($B15="","",INDEX('Feed Table'!$C$14:$AJ$177,MATCH(1,(List1[Entry]=$B15)*(List1[AVG-SD]="AVG"),0),AD$4)) ->  | AE15: =IF($B15="","",INDEX('Feed Table'!$C$14:$AJ$177,MATCH(1,(List1[Entry]=$B15)*(List1[AVG-SD]="AVG"),0),AE$4)) ->  | AG15: =IF($B15="","",INDEX('Feed Table'!$C$14:$AJ$177,MATCH(1,(List1[Entry]=$B15)*(List1[AVG-SD]="AVG"),0),AG$4)) ->  | AI15: =IF($B15="","",INDEX('Feed Table'!$C$14:$AK$177,MATCH(1,(List1[Entry]=$B15)*(List1[AVG-SD]="AVG"),0),AI$4)) -> 
C16: =IF($B16="","",INDEX('Feed Table'!$C$14:$AJ$177,MATCH(1,(List1[Entry]=$B16)*(List1[AVG-SD]="AVG"),0),C$4)) ->  | D16: =IF($B16="","",INDEX('Feed Table'!$C$14:$AJ$177,MATCH(1,(List1[Entry]=$B16)*(List1[AVG-SD]="AVG"),0),D$4)) ->  | E16: 0 | F16: 0 | G16: 1e-06 | H16: 0 | I16: 0 | J16: 0 | K16: 100 | M16: =IF($B16="","",INDEX('Feed Table'!$C$14:$AJ$177,MATCH(1,(List1[Entry]=$B16)*(List1[AVG-SD]="AVG"),0),M$4)) ->  | N16: =IF($B16="","",INDEX('Feed Table'!$C$14:$AJ$177,MATCH(1,(List1[Entry]=$B16)*(List1[AVG-SD]="AVG"),0),N$4)) ->  | O16: - | P16: =IF($B16="","",INDEX('Feed Table'!$C$14:$AJ$177,MATCH(1,(List1[Entry]=$B16)*(List1[AVG-SD]="AVG"),0),P$4)) ->  | Q16: =IF($B16="","",INDEX('Feed Table'!$C$14:$AJ$177,MATCH(1,(List1[Entry]=$B16)*(List1[AVG-SD]="AVG"),0),Q$4)) ->  | R16: =IF($B16="","",INDEX('Feed Table'!$C$14:$AJ$177,MATCH(1,(List1[Entry]=$B16)*(List1[AVG-SD]="AVG"),0),R$4)) ->  | T16: =IF($B16="","",INDEX('Feed Table'!$C$14:$AJ$177,MATCH(1,(List1[Entry]=$B16)*(List1[AVG-SD]="AVG"),0),T$4)) ->  | U16: =IF($B16="","",INDEX('Feed Table'!$C$14:$AJ$177,MATCH(1,(List1[Entry]=$B16)*(List1[AVG-SD]="AVG"),0),U$4)) ->  | V16: =IF($B16="","",INDEX('Feed Table'!$C$14:$AJ$177,MATCH(1,(List1[Entry]=$B16)*(List1[AVG-SD]="AVG"),0),V$4)) ->  | W16: =IF($B16="","",INDEX('Feed Table'!$C$14:$AJ$177,MATCH(1,(List1[Entry]=$B16)*(List1[AVG-SD]="AVG"),0),W$4)) ->  | X16: =IF($B16="","",INDEX('Feed Table'!$C$14:$AJ$177,MATCH(1,(List1[Entry]=$B16)*(List1[AVG-SD]="AVG"),0),X$4)) ->  | Y16: =IF($B16="","",IF(AND(M16="Forage",N16>=70),3.362+0.479*'lists to hide'!$E$14-0.007*(1-$O$25)-0.017*R16,IF(M16="Forage",3.054+0.614*'lists to hide'!$E$14,IF(M16="Conc",2.904+1.375*'lists to hide'!$E$14-0.02*(1-$O$25),0)))) ->  | Z16: =IF($B16="","",INDEX('Feed Table'!$C$14:$AJ$177,MATCH(1,(List1[Entry]=$B16)*(List1[AVG-SD]="AVG"),0),Z$4)) ->  | AC16: =IF($B16="","",INDEX('Feed Table'!$C$14:$AJ$177,MATCH(1,(List1[Entry]=$B16)*(List1[AVG-SD]="AVG"),0),AC$4)) ->  | AD16: =IF($B16="","",INDEX('Feed Table'!$C$14:$AJ$177,MATCH(1,(List1[Entry]=$B16)*(List1[AVG-SD]="AVG"),0),AD$4)) ->  | AE16: =IF($B16="","",INDEX('Feed Table'!$C$14:$AJ$177,MATCH(1,(List1[Entry]=$B16)*(List1[AVG-SD]="AVG"),0),AE$4)) ->  | AG16: =IF($B16="","",INDEX('Feed Table'!$C$14:$AJ$177,MATCH(1,(List1[Entry]=$B16)*(List1[AVG-SD]="AVG"),0),AG$4)) ->  | AI16: =IF($B16="","",INDEX('Feed Table'!$C$14:$AK$177,MATCH(1,(List1[Entry]=$B16)*(List1[AVG-SD]="AVG"),0),AI$4)) -> 
C17: =IF($B17="","",INDEX('Feed Table'!$C$14:$AJ$177,MATCH(1,(List1[Entry]=$B17)*(List1[AVG-SD]="AVG"),0),C$4)) ->  | D17: =IF($B17="","",INDEX('Feed Table'!$C$14:$AJ$177,MATCH(1,(List1[Entry]=$B17)*(List1[AVG-SD]="AVG"),0),D$4)) ->  | E17: 0 | F17: 0 | G17: 1e-06 | H17: 0 | I17: 0 | J17: 0 | K17: 100 | M17: =IF($B17="","",INDEX('Feed Table'!$C$14:$AJ$177,MATCH(1,(List1[Entry]=$B17)*(List1[AVG-SD]="AVG"),0),M$4)) ->  | N17: =IF($B17="","",INDEX('Feed Table'!$C$14:$AJ$177,MATCH(1,(List1[Entry]=$B17)*(List1[AVG-SD]="AVG"),0),N$4)) ->  | O17: - | P17: =IF($B17="","",INDEX('Feed Table'!$C$14:$AJ$177,MATCH(1,(List1[Entry]=$B17)*(List1[AVG-SD]="AVG"),0),P$4)) ->  | Q17: =IF($B17="","",INDEX('Feed Table'!$C$14:$AJ$177,MATCH(1,(List1[Entry]=$B17)*(List1[AVG-SD]="AVG"),0),Q$4)) ->  | R17: =IF($B17="","",INDEX('Feed Table'!$C$14:$AJ$177,MATCH(1,(List1[Entry]=$B17)*(List1[AVG-SD]="AVG"),0),R$4)) ->  | T17: =IF($B17="","",INDEX('Feed Table'!$C$14:$AJ$177,MATCH(1,(List1[Entry]=$B17)*(List1[AVG-SD]="AVG"),0),T$4)) ->  | U17: =IF($B17="","",INDEX('Feed Table'!$C$14:$AJ$177,MATCH(1,(List1[Entry]=$B17)*(List1[AVG-SD]="AVG"),0),U$4)) ->  | V17: =IF($B17="","",INDEX('Feed Table'!$C$14:$AJ$177,MATCH(1,(List1[Entry]=$B17)*(List1[AVG-SD]="AVG"),0),V$4)) ->  | W17: =IF($B17="","",INDEX('Feed Table'!$C$14:$AJ$177,MATCH(1,(List1[Entry]=$B17)*(List1[AVG-SD]="AVG"),0),W$4)) ->  | X17: =IF($B17="","",INDEX('Feed Table'!$C$14:$AJ$177,MATCH(1,(List1[Entry]=$B17)*(List1[AVG-SD]="AVG"),0),X$4)) ->  | Y17: =IF($B17="","",IF(AND(M17="Forage",N17>=70),3.362+0.479*'lists to hide'!$E$14-0.007*(1-$O$25)-0.017*R17,IF(M17="Forage",3.054+0.614*'lists to hide'!$E$14,IF(M17="Conc",2.904+1.375*'lists to hide'!$E$14-0.02*(1-$O$25),0)))) ->  | Z17: =IF($B17="","",INDEX('Feed Table'!$C$14:$AJ$177,MATCH(1,(List1[Entry]=$B17)*(List1[AVG-SD]="AVG"),0),Z$4)) ->  | AC17: =IF($B17="","",INDEX('Feed Table'!$C$14:$AJ$177,MATCH(1,(List1[Entry]=$B17)*(List1[AVG-SD]="AVG"),0),AC$4)) ->  | AD17: =IF($B17="","",INDEX('Feed Table'!$C$14:$AJ$177,MATCH(1,(List1[Entry]=$B17)*(List1[AVG-SD]="AVG"),0),AD$4)) ->  | AE17: =IF($B17="","",INDEX('Feed Table'!$C$14:$AJ$177,MATCH(1,(List1[Entry]=$B17)*(List1[AVG-SD]="AVG"),0),AE$4)) ->  | AG17: =IF($B17="","",INDEX('Feed Table'!$C$14:$AJ$177,MATCH(1,(List1[Entry]=$B17)*(List1[AVG-SD]="AVG"),0),AG$4)) ->  | AI17: =IF($B17="","",INDEX('Feed Table'!$C$14:$AK$177,MATCH(1,(List1[Entry]=$B17)*(List1[AVG-SD]="AVG"),0),AI$4)) -> 
C18: =IF($B18="","",INDEX('Feed Table'!$C$14:$AJ$177,MATCH(1,(List1[Entry]=$B18)*(List1[AVG-SD]="AVG"),0),C$4)) ->  | D18: =IF($B18="","",INDEX('Feed Table'!$C$14:$AJ$177,MATCH(1,(List1[Entry]=$B18)*(List1[AVG-SD]="AVG"),0),D$4)) ->  | E18: 0 | F18: 0 | G18: 1e-06 | H18: 0 | I18: 0 | J18: 0 | K18: 100 | M18: =IF($B18="","",INDEX('Feed Table'!$C$14:$AJ$177,MATCH(1,(List1[Entry]=$B18)*(List1[AVG-SD]="AVG"),0),M$4)) ->  | N18: =IF($B18="","",INDEX('Feed Table'!$C$14:$AJ$177,MATCH(1,(List1[Entry]=$B18)*(List1[AVG-SD]="AVG"),0),N$4)) ->  | O18: - | P18: =IF($B18="","",INDEX('Feed Table'!$C$14:$AJ$177,MATCH(1,(List1[Entry]=$B18)*(List1[AVG-SD]="AVG"),0),P$4)) ->  | Q18: =IF($B18="","",INDEX('Feed Table'!$C$14:$AJ$177,MATCH(1,(List1[Entry]=$B18)*(List1[AVG-SD]="AVG"),0),Q$4)) ->  | R18: =IF($B18="","",INDEX('Feed Table'!$C$14:$AJ$177,MATCH(1,(List1[Entry]=$B18)*(List1[AVG-SD]="AVG"),0),R$4)) ->  | T18: =IF($B18="","",INDEX('Feed Table'!$C$14:$AJ$177,MATCH(1,(List1[Entry]=$B18)*(List1[AVG-SD]="AVG"),0),T$4)) ->  | U18: =IF($B18="","",INDEX('Feed Table'!$C$14:$AJ$177,MATCH(1,(List1[Entry]=$B18)*(List1[AVG-SD]="AVG"),0),U$4)) ->  | V18: =IF($B18="","",INDEX('Feed Table'!$C$14:$AJ$177,MATCH(1,(List1[Entry]=$B18)*(List1[AVG-SD]="AVG"),0),V$4)) ->  | W18: =IF($B18="","",INDEX('Feed Table'!$C$14:$AJ$177,MATCH(1,(List1[Entry]=$B18)*(List1[AVG-SD]="AVG"),0),W$4)) ->  | X18: =IF($B18="","",INDEX('Feed Table'!$C$14:$AJ$177,MATCH(1,(List1[Entry]=$B18)*(List1[AVG-SD]="AVG"),0),X$4)) ->  | Y18: =IF($B18="","",IF(AND(M18="Forage",N18>=70),3.362+0.479*'lists to hide'!$E$14-0.007*(1-$O$25)-0.017*R18,IF(M18="Forage",3.054+0.614*'lists to hide'!$E$14,IF(M18="Conc",2.904+1.375*'lists to hide'!$E$14-0.02*(1-$O$25),0)))) ->  | Z18: =IF($B18="","",INDEX('Feed Table'!$C$14:$AJ$177,MATCH(1,(List1[Entry]=$B18)*(List1[AVG-SD]="AVG"),0),Z$4)) ->  | AC18: =IF($B18="","",INDEX('Feed Table'!$C$14:$AJ$177,MATCH(1,(List1[Entry]=$B18)*(List1[AVG-SD]="AVG"),0),AC$4)) ->  | AD18: =IF($B18="","",INDEX('Feed Table'!$C$14:$AJ$177,MATCH(1,(List1[Entry]=$B18)*(List1[AVG-SD]="AVG"),0),AD$4)) ->  | AE18: =IF($B18="","",INDEX('Feed Table'!$C$14:$AJ$177,MATCH(1,(List1[Entry]=$B18)*(List1[AVG-SD]="AVG"),0),AE$4)) ->  | AG18: =IF($B18="","",INDEX('Feed Table'!$C$14:$AJ$177,MATCH(1,(List1[Entry]=$B18)*(List1[AVG-SD]="AVG"),0),AG$4)) ->  | AI18: =IF($B18="","",INDEX('Feed Table'!$C$14:$AK$177,MATCH(1,(List1[Entry]=$B18)*(List1[AVG-SD]="AVG"),0),AI$4)) -> 
C19: =IF($B19="","",INDEX('Feed Table'!$C$14:$AJ$177,MATCH(1,(List1[Entry]=$B19)*(List1[AVG-SD]="AVG"),0),C$4)) ->  | D19: =IF($B19="","",INDEX('Feed Table'!$C$14:$AJ$177,MATCH(1,(List1[Entry]=$B19)*(List1[AVG-SD]="AVG"),0),D$4)) ->  | E19: 0 | F19: 0 | G19: 1e-06 | H19: 0 | I19: 0 | J19: 0 | K19: 100 | M19: =IF($B19="","",INDEX('Feed Table'!$C$14:$AJ$177,MATCH(1,(List1[Entry]=$B19)*(List1[AVG-SD]="AVG"),0),M$4)) ->  | N19: =IF($B19="","",INDEX('Feed Table'!$C$14:$AJ$177,MATCH(1,(List1[Entry]=$B19)*(List1[AVG-SD]="AVG"),0),N$4)) ->  | O19: - | P19: =IF($B19="","",INDEX('Feed Table'!$C$14:$AJ$177,MATCH(1,(List1[Entry]=$B19)*(List1[AVG-SD]="AVG"),0),P$4)) ->  | Q19: =IF($B19="","",INDEX('Feed Table'!$C$14:$AJ$177,MATCH(1,(List1[Entry]=$B19)*(List1[AVG-SD]="AVG"),0),Q$4)) ->  | R19: =IF($B19="","",INDEX('Feed Table'!$C$14:$AJ$177,MATCH(1,(List1[Entry]=$B19)*(List1[AVG-SD]="AVG"),0),R$4)) ->  | T19: =IF($B19="","",INDEX('Feed Table'!$C$14:$AJ$177,MATCH(1,(List1[Entry]=$B19)*(List1[AVG-SD]="AVG"),0),T$4)) ->  | U19: =IF($B19="","",INDEX('Feed Table'!$C$14:$AJ$177,MATCH(1,(List1[Entry]=$B19)*(List1[AVG-SD]="AVG"),0),U$4)) ->  | V19: =IF($B19="","",INDEX('Feed Table'!$C$14:$AJ$177,MATCH(1,(List1[Entry]=$B19)*(List1[AVG-SD]="AVG"),0),V$4)) ->  | W19: =IF($B19="","",INDEX('Feed Table'!$C$14:$AJ$177,MATCH(1,(List1[Entry]=$B19)*(List1[AVG-SD]="AVG"),0),W$4)) ->  | X19: =IF($B19="","",INDEX('Feed Table'!$C$14:$AJ$177,MATCH(1,(List1[Entry]=$B19)*(List1[AVG-SD]="AVG"),0),X$4)) ->  | Y19: =IF($B19="","",IF(AND(M19="Forage",N19>=70),3.362+0.479*'lists to hide'!$E$14-0.007*(1-$O$25)-0.017*R19,IF(M19="Forage",3.054+0.614*'lists to hide'!$E$14,IF(M19="Conc",2.904+1.375*'lists to hide'!$E$14-0.02*(1-$O$25),0)))) ->  | Z19: =IF($B19="","",INDEX('Feed Table'!$C$14:$AJ$177,MATCH(1,(List1[Entry]=$B19)*(List1[AVG-SD]="AVG"),0),Z$4)) ->  | AC19: =IF($B19="","",INDEX('Feed Table'!$C$14:$AJ$177,MATCH(1,(List1[Entry]=$B19)*(List1[AVG-SD]="AVG"),0),AC$4)) ->  | AD19: =IF($B19="","",INDEX('Feed Table'!$C$14:$AJ$177,MATCH(1,(List1[Entry]=$B19)*(List1[AVG-SD]="AVG"),0),AD$4)) ->  | AE19: =IF($B19="","",INDEX('Feed Table'!$C$14:$AJ$177,MATCH(1,(List1[Entry]=$B19)*(List1[AVG-SD]="AVG"),0),AE$4)) ->  | AG19: =IF($B19="","",INDEX('Feed Table'!$C$14:$AJ$177,MATCH(1,(List1[Entry]=$B19)*(List1[AVG-SD]="AVG"),0),AG$4)) ->  | AI19: =IF($B19="","",INDEX('Feed Table'!$C$14:$AK$177,MATCH(1,(List1[Entry]=$B19)*(List1[AVG-SD]="AVG"),0),AI$4)) -> 
C20: =IF($B20="","",INDEX('Feed Table'!$C$14:$AJ$177,MATCH(1,(List1[Entry]=$B20)*(List1[AVG-SD]="AVG"),0),C$4)) ->  | D20: =IF($B20="","",INDEX('Feed Table'!$C$14:$AJ$177,MATCH(1,(List1[Entry]=$B20)*(List1[AVG-SD]="AVG"),0),D$4)) ->  | E20: 0 | F20: 0 | G20: 1e-06 | H20: 0 | I20: 0 | J20: 0 | K20: 100 | M20: =IF($B20="","",INDEX('Feed Table'!$C$14:$AJ$177,MATCH(1,(List1[Entry]=$B20)*(List1[AVG-SD]="AVG"),0),M$4)) ->  | N20: =IF($B20="","",INDEX('Feed Table'!$C$14:$AJ$177,MATCH(1,(List1[Entry]=$B20)*(List1[AVG-SD]="AVG"),0),N$4)) ->  | O20: - | P20: =IF($B20="","",INDEX('Feed Table'!$C$14:$AJ$177,MATCH(1,(List1[Entry]=$B20)*(List1[AVG-SD]="AVG"),0),P$4)) ->  | Q20: =IF($B20="","",INDEX('Feed Table'!$C$14:$AJ$177,MATCH(1,(List1[Entry]=$B20)*(List1[AVG-SD]="AVG"),0),Q$4)) ->  | R20: =IF($B20="","",INDEX('Feed Table'!$C$14:$AJ$177,MATCH(1,(List1[Entry]=$B20)*(List1[AVG-SD]="AVG"),0),R$4)) ->  | T20: =IF($B20="","",INDEX('Feed Table'!$C$14:$AJ$177,MATCH(1,(List1[Entry]=$B20)*(List1[AVG-SD]="AVG"),0),T$4)) ->  | U20: =IF($B20="","",INDEX('Feed Table'!$C$14:$AJ$177,MATCH(1,(List1[Entry]=$B20)*(List1[AVG-SD]="AVG"),0),U$4)) ->  | V20: =IF($B20="","",INDEX('Feed Table'!$C$14:$AJ$177,MATCH(1,(List1[Entry]=$B20)*(List1[AVG-SD]="AVG"),0),V$4)) ->  | W20: =IF($B20="","",INDEX('Feed Table'!$C$14:$AJ$177,MATCH(1,(List1[Entry]=$B20)*(List1[AVG-SD]="AVG"),0),W$4)) ->  | X20: =IF($B20="","",INDEX('Feed Table'!$C$14:$AJ$177,MATCH(1,(List1[Entry]=$B20)*(List1[AVG-SD]="AVG"),0),X$4)) ->  | Y20: =IF($B20="","",IF(AND(M20="Forage",N20>=70),3.362+0.479*'lists to hide'!$E$14-0.007*(1-$O$25)-0.017*R20,IF(M20="Forage",3.054+0.614*'lists to hide'!$E$14,IF(M20="Conc",2.904+1.375*'lists to hide'!$E$14-0.02*(1-$O$25),0)))) ->  | Z20: =IF($B20="","",INDEX('Feed Table'!$C$14:$AJ$177,MATCH(1,(List1[Entry]=$B20)*(List1[AVG-SD]="AVG"),0),Z$4)) ->  | AC20: =IF($B20="","",INDEX('Feed Table'!$C$14:$AJ$177,MATCH(1,(List1[Entry]=$B20)*(List1[AVG-SD]="AVG"),0),AC$4)) ->  | AD20: =IF($B20="","",INDEX('Feed Table'!$C$14:$AJ$177,MATCH(1,(List1[Entry]=$B20)*(List1[AVG-SD]="AVG"),0),AD$4)) ->  | AE20: =IF($B20="","",INDEX('Feed Table'!$C$14:$AJ$177,MATCH(1,(List1[Entry]=$B20)*(List1[AVG-SD]="AVG"),0),AE$4)) ->  | AG20: =IF($B20="","",INDEX('Feed Table'!$C$14:$AJ$177,MATCH(1,(List1[Entry]=$B20)*(List1[AVG-SD]="AVG"),0),AG$4)) ->  | AI20: =IF($B20="","",INDEX('Feed Table'!$C$14:$AK$177,MATCH(1,(List1[Entry]=$B20)*(List1[AVG-SD]="AVG"),0),AI$4)) -> 
C21: =IF($B21="","",INDEX('Feed Table'!$C$14:$AJ$177,MATCH(1,(List1[Entry]=$B21)*(List1[AVG-SD]="AVG"),0),C$4)) ->  | D21: =IF($B21="","",INDEX('Feed Table'!$C$14:$AJ$177,MATCH(1,(List1[Entry]=$B21)*(List1[AVG-SD]="AVG"),0),D$4)) ->  | E21: 0 | F21: 0 | G21: 1e-06 | H21: 0 | I21: 0 | J21: 0 | K21: 100 | M21: =IF($B21="","",INDEX('Feed Table'!$C$14:$AJ$177,MATCH(1,(List1[Entry]=$B21)*(List1[AVG-SD]="AVG"),0),M$4)) ->  | N21: =IF($B21="","",INDEX('Feed Table'!$C$14:$AJ$177,MATCH(1,(List1[Entry]=$B21)*(List1[AVG-SD]="AVG"),0),N$4)) ->  | O21: - | P21: =IF($B21="","",INDEX('Feed Table'!$C$14:$AJ$177,MATCH(1,(List1[Entry]=$B21)*(List1[AVG-SD]="AVG"),0),P$4)) ->  | Q21: =IF($B21="","",INDEX('Feed Table'!$C$14:$AJ$177,MATCH(1,(List1[Entry]=$B21)*(List1[AVG-SD]="AVG"),0),Q$4)) ->  | R21: =IF($B21="","",INDEX('Feed Table'!$C$14:$AJ$177,MATCH(1,(List1[Entry]=$B21)*(List1[AVG-SD]="AVG"),0),R$4)) ->  | T21: =IF($B21="","",INDEX('Feed Table'!$C$14:$AJ$177,MATCH(1,(List1[Entry]=$B21)*(List1[AVG-SD]="AVG"),0),T$4)) ->  | U21: =IF($B21="","",INDEX('Feed Table'!$C$14:$AJ$177,MATCH(1,(List1[Entry]=$B21)*(List1[AVG-SD]="AVG"),0),U$4)) ->  | V21: =IF($B21="","",INDEX('Feed Table'!$C$14:$AJ$177,MATCH(1,(List1[Entry]=$B21)*(List1[AVG-SD]="AVG"),0),V$4)) ->  | W21: =IF($B21="","",INDEX('Feed Table'!$C$14:$AJ$177,MATCH(1,(List1[Entry]=$B21)*(List1[AVG-SD]="AVG"),0),W$4)) ->  | X21: =IF($B21="","",INDEX('Feed Table'!$C$14:$AJ$177,MATCH(1,(List1[Entry]=$B21)*(List1[AVG-SD]="AVG"),0),X$4)) ->  | Y21: =IF($B21="","",IF(AND(M21="Forage",N21>=70),3.362+0.479*'lists to hide'!$E$14-0.007*(1-$O$25)-0.017*R21,IF(M21="Forage",3.054+0.614*'lists to hide'!$E$14,IF(M21="Conc",2.904+1.375*'lists to hide'!$E$14-0.02*(1-$O$25),0)))) ->  | Z21: =IF($B21="","",INDEX('Feed Table'!$C$14:$AJ$177,MATCH(1,(List1[Entry]=$B21)*(List1[AVG-SD]="AVG"),0),Z$4)) ->  | AC21: =IF($B21="","",INDEX('Feed Table'!$C$14:$AJ$177,MATCH(1,(List1[Entry]=$B21)*(List1[AVG-SD]="AVG"),0),AC$4)) ->  | AD21: =IF($B21="","",INDEX('Feed Table'!$C$14:$AJ$177,MATCH(1,(List1[Entry]=$B21)*(List1[AVG-SD]="AVG"),0),AD$4)) ->  | AE21: =IF($B21="","",INDEX('Feed Table'!$C$14:$AJ$177,MATCH(1,(List1[Entry]=$B21)*(List1[AVG-SD]="AVG"),0),AE$4)) ->  | AG21: =IF($B21="","",INDEX('Feed Table'!$C$14:$AJ$177,MATCH(1,(List1[Entry]=$B21)*(List1[AVG-SD]="AVG"),0),AG$4)) ->  | AI21: =IF($B21="","",INDEX('Feed Table'!$C$14:$AK$177,MATCH(1,(List1[Entry]=$B21)*(List1[AVG-SD]="AVG"),0),AI$4)) -> 
C23: Diet
D24: higher limit ---> | F24: =F28*0.97 -> 56.14105521 | H24: =F29*0.97 -> 25.46515429 | M24: lower limit, % ----------------> | P24: 0 | Q24: 0 | R24: 0 | S24: 0 | T24: 0 | AC24: 0 | AD24: 0 | AE24: 0 | AH24: Least-cost of the TMR
D25: Supply | F25: =SUM(F5:F21) -> 1e-06 | H25: =SUM(H5:H21) -> 4.5359237e-07 | J25: =IF(SUM(J5:J21)=0,"",SUM(J5:J21)) ->  | N25: =SUMPRODUCT(N5:N21,$J$5:$J$21) -> 0 | O25: =SUMIF(M5:M21,"Forage",J5:J21) -> 0 | P25: =P31/$F$25 -> 0 | Q25: =Q31/$F$25 -> 0 | R25: 0 | S25: 0 | T25: 0 | U25: 0 | V25: 0 | W25: 0 | X25: 0 | Y25: 0 | Z25: 0 | AA25: 0 | AB25: 0 | AC25: 0 | AD25: 0 | AE25: 0 | AH25: =SUMPRODUCT($AG$5:$AG$21,$F$5:$F$21) -> 0 | AI25: $/cow /day
D26: higher limit ---> | F26: =F28*1.03 -> 59.6136978 | H26: =F29*1.03 -> 27.04031847 | M26: higher limit, % ----------------> | P26: 100 | Q26: 100 | R26: 100 | S26: 100 | T26: 100 | AC26: 100 | AD26: 100 | AE26: 100
D28: Predicted DMI | F28: =IF('cow info'!D17="","GO BACK TO DMI TAB",'cow info'!D17) -> 57.8773765 | G28: Lbs/d | M28: Supply, Lbs/day | P28: =+CONVERT(P29,"kg","lbm") -> 0 | Q28: =+CONVERT(Q29,"kg","lbm") -> 0 | R28: 0 | S28: 0 | T28: 0 | U28: 0 | V28: 0 | W28: 0 | X28: 0 | Y28: 0 | Z28: 0 | AA28: 0 | AB28: 0 | AC28: 0 | AD28: 0 | AE28: 0
F29: =IF('cow info'!D16="","GO BACK TO DMI TAB",'cow info'!D16) -> 26.25273638 | G29: Kg/d | M29: Supply, kg/day | P29: =P31/100 -> 0 | Q29: 0 | R29: 0 | S29: 0 | T29: 0 | U29: 0 | V29: 0 | W29: 0 | X29: 0 | Y29: 0 | Z29: 0 | AA29: 0 | AB29: 0 | AC29: 0 | AD29: 0 | AE29: 0
M30: lower limit | P30: =P24*$F$25 -> 0 | Q30: 0 | R30: 0 | S30: 0 | T30: 0 | U30: 0 | V30: 0 | W30: 0 | X30: 0 | Y30: 0 | Z30: 0 | AA30: 0 | AB30: 0 | AC30: 0 | AD30: 0 | AE30: 0
P31: =SUMPRODUCT(P5:P21,$F$5:$F$21) -> 0 | Q31: 0 | R31: 0 | S31: 0 | T31: 0 | U31: 0 | V31: 0 | W31: 0 | X31: 0 | Y31: 0 | Z31: 0 | AA31: 0 | AB31: 0 | AC31: 0 | AD31: 0 | AE31: 0
M32: higher limit | P32: =P26*$F$25 -> 0.0001 | Q32: 0.0001 | R32: 0.0001 | S32: 0.0001 | T32: 0.0001 | U32: 0 | V32: 0 | W32: 0 | X32: 0 | Y32: 0 | Z32: 0 | AA32: 0 | AB32: 0 | AC32: 0.0001 | AD32: 0.0001 | AE32: 0.0001
AE36: Cells where instructions can be found.
AE37: Cells where you enter a number identifying a feed from the Feed Table
AE38: Cells where you should modify numbers (as per instructions)
AE39: Cells where calcuated values are displayed (Do not change)
AE40: Cell where the (least-cost) is displayed

Sheet Ration Guidlines (hidden)
E1: Lower limit Diet DM, % | G1: Higher Limit Diet DM, % | J1: %forage | K1: % "as-is" | O1: % of the dry matter (DM) in the feed from Lab. Analysis | U1: % of DM | W1: % of DM | X1: % | Y1: % of CP | Z1: % of CP | AA1: % of CP | AB1: %/h | AD1: % | AE1: % of CP | AF1: % of CP | AG1: % of DM | AH1: % of DM | AI1: % of CP | AJ1: % of CP
B2: Enter feed number here | C2: Kg of DM fed | D2: Lbs of DM fed | F2: Diet DM, % | H2: Name | I2: Description | J2: TDN eq. Cl. | K2: DM | L2: CP | M2: NDICP | N2: ADICP | O2: EE | P2: NDF | Q2: Forage NDF | R2: ADF | S2: Lig. | T2: Ash | U2: NFC | V2: PAF | W2: Hcel | X2: TDN 1x | Y2: A | Z2: B | AA2: C | AB2: B Frc. Kd | AC2: B frc. Kp | AD2: RUP Dig | AE2: RDP | AF2: RUP | AG2: RDP | AH2: RUP | AI2: Lys2 | AJ2: Met2 | AK2: Ca | AL2: P
B5: Ration guidelines
B7: Early / Dry Period
B8: lower limit | L8: 10.8 | P8: 33 | Q8: 21 | U8: 0 | AG8: 8.7 | AH8: 2.1 | AK8: 0.45 | AL8: 0.23
B9: higher limit | L9: 10.8 | P9: 100 | Q9: 100 | U9: 42 | AG9: 8.7 | AH9: 2.1 | AK9: 0.45 | AL9: 0.23
B10: pre-calviing
B11: lower limit | L11: 10.2 | P11: 33 | Q11: 21 | U11: 0 | AG11: 9.9 | AH11: 1.3 | AK11: 0.6 | AL11: 0.3
B12: higher limit | L12: 12 | P12: 100 | Q12: 100 | U12: 43 | AG12: 9.9 | AH12: 1.3 | AK12: 1.5 | AL12: 0.4
B13: Early lactation, low DMI
B14: lower limit | L14: 19.5 | O14: 0 | P14: 25 | Q14: 21 | U14: 0 | AG14: 10.5 | AH14: 9 | AK14: 0.79 | AL14: 0.42
B15: higher limit | L15: 19.5 | O15: 7 | P15: 100 | Q15: 100 | U15: 44 | AG15: 10.5 | AH15: 9 | AK15: 0.79 | AL15: 0.42
B16: Early lactation, High DMI
B17: lower limit | L17: 15.9 | O17: 0 | P17: 25 | Q17: 21 | U17: 0 | AG17: 10.3 | AH17: 5.6 | AK17: 0.68 | AL17: 0.37
B18: higher limit | L18: 15.9 | O18: 7 | P18: 100 | Q18: 100 | U18: 44 | AG18: 10.3 | AH18: 5.6 | AK18: 0.68 | AL18: 0.37
B19: Highest yiled (Peak)
B20: lower limit | L20: 16.7 | O20: 0 | P20: 25 | Q20: 21 | U20: 0 | AG20: 9.8 | AH20: 6.9 | AK20: 0.6 | AL20: 0.38
B21: higher limit | L21: 16.7 | O21: 7 | P21: 100 | Q21: 100 | U21: 44 | AG21: 9.8 | AH21: 6.9 | AK21: 0.6 | AL21: 0.38
B22: Mid Lactation
B23: lower limit | L23: 15.2 | P23: 25 | Q23: 21 | U23: 0 | AG23: 9.7 | AH23: 5.5 | AK23: 0.61 | AL23: 0.35
B24: higher limit | L24: 15.2 | P24: 100 | Q24: 100 | U24: 44 | AG24: 9.7 | AH24: 5.5 | AK24: 0.61 | AL24: 0.35
B25: Late Lactation
B26: lower limit | L26: 14.1 | P26: 25 | Q26: 21 | U26: 0 | AG26: 9.5 | AH26: 4.6 | AK26: 0.62 | AL26: 0.32
B27: higher limit | L27: 14.1 | P27: 100 | Q27: 100 | U27: 44 | AG27: 9.5 | AH27: 4.6 | AK27: 0.62 | AL27: 0.32

Sheet lists to hide (hidden)
B1: breed | D1: type
B2: Holstein | D2: Heifer
B3: Ayrshire | D3: Lactating cow
B4: Brown Swiss | D4: Dry cow/ late lactating heifer
B5: Guernsey
B6: Holstein | D6: Cow stage
B7: Jersey | D7: Fresh cow
B8: Large Breed | D8: Early lactation cow
B9: Midsize breed | D9: mid lactation cow
B10: small breed | D10: Late lactation cow
D11: Pre-dry cow
D14: DMI_bw = DMI/BW*100 | E14: ='cow info'!D27/'Animal data'!C16*100 -> 0
D16: NDF_fg = %NDF of feedstuff*100
D18: Diet_conc = % concentrate in the diet *100
D21: Enter feed number here

Sheet diets with the feed analysi (2 (hidden)
B2: Assumed DMI: | C2: 25 | D2: kg/d
N3: FEED INGREDIENT COMPOSITION (NRC & Other Sources) | X3: Macro-Mineral Ingredient composition (NRC) | AF3: Micro-Mineral Ingredient composition (NRC) | AO3: Vitamins Ingredient composition (NRC)
A4: Name | B4: Description | C4: TDN eq. Cl. | D4: AVG-SD | E4: DM | F4: CP | G4: NDICP | H4: ADICP | I4: EE | J4: NDF | K4: ADF | L4: Lig. | M4: Ash | N4: NFC | O4: PAF | P4: Hcel | Q4: TDN 1x | R4: A | S4: B | T4: C | U4: B Frc. Kd | V4: RUP Dig | W4: Lys2 | X4: Met2 | Y4: Ca | Z4: P | AA4: Mg | AB4: K | AC4: Na | AD4: Cl | AE4: S | AF4: Co | AG4: Cu | AH4: I | AI4: Fe | AJ4: Mn | AK4: Se | AL4: Zn | AM4: Mb | AO4: VitA | AP4: VitD | AQ4: VitE
C5: FORAGE | D5: =SUM(D6:D7) -> 55 | E5: =SUM(E6:E7) -> 62 | F5: =SUM(F6:F7) -> 69 | G5: =SUM(G6:G7) -> 76 | H5: =D5 -> 55 | I5: =E5 -> 62 | K5: =D5 -> 55 | L5: =E5 -> 62 | N5: % of DM | X5: % of DM | AF5: mg/Kg | AO5: 1000 IU/Kg
A6: 1 | B6: Corn silage | D6: 27.5 | E6: 31 | F6: 34.5 | G6: 38 | H6: =(D6*($C$2/100)*$V6)/$C$2 -> 1.8975 | I6: =(E6*($C$2/100)*$V6)/$C$2 -> 2.139 | K6: =H6*100/$H$18 -> 12.19504357 | L6: =I6*100/$I$18 -> 13.70890213 | N6: 41.4 | O6: 3.3 | P6: 36.2 | Q6: =P6-18 -> 18.2 | R6: 49.9 | S6: 2.55 | T6: 4.1 | U6: 38.2 | V6: 6.9 | X6: 0.25 | Y6: 0.18 | Z6: 0.17 | AA6: 0.29 | AB6: 0.67 | AC6: 0.01 | AD6: 0.11 | AF6: 0 | AG6: 5.7 | AH6: 0 | AI6: 104 | AJ6: 36 | AK6: 0.04 | AL6: 24 | AO6: 0 | AP6: 0 | AQ6: 0
A7: 2 | B7: Alfalfa silage | D7: 27.5 | E7: 31 | F7: 34.5 | G7: 38 | H7: =(D7*($C$2/100)*V7)/$C$2 -> 6.4625 | I7: =(E7*($C$2/100)*$V7)/$C$2 -> 7.285 | K7: 41.53384406 | L7: =I7*100/$I$18 -> 46.68973915 | N7: 33.9 | O7: 3.5 | P7: 37 | Q7: =P7-8 -> 29 | R7: 26.6 | S7: 6.35 | T7: 10.5 | U7: 1.2 | V7: 23.5 | X7: 1.26 | Y7: 0.29 | Z7: 0.24 | AA7: 0.48 | AB7: 2.51 | AC7: 0.02 | AD7: 0.28 | AF7: 0.65 | AG7: 9 | AH7: 0 | AI7: 403 | AJ7: 63 | AK7: 0.18 | AL7: 29 | AO7: 0 | AP7: 0 | AQ7: 0
A8: 3 | B8: Wheat straw | D8: 0 | E8: 0 | F8: 0 | G8: 0 | H8: 0 | I8: 0 | K8: 0 | L8: 0
A9: 4 | B9: HMC | D9: 26.75 | E9: 20 | F9: 13.25 | G9: 6.5 | H9: 2.4396 | I9: 1.824 | K9: 15.6790663 | L9: 11.6900596 | N9: 71.8 | O9: 4.57 | P9: 5.55 | Q9: 1.27 | R9: =100-T9-O9-P9-V9 -> 79.12 | S9: 0.01 | T9: 1.64 | U9: 72 | V9: 9.12 | X9: 0.03 | Y9: 0.3 | Z9: 0.12 | AA9: 0.05 | AB9: 0.43 | AC9: 0.01 | AD9: 0.1 | AF9: 0 | AG9: 1 | AH9: 0 | AI9: 59 | AJ9: 7 | AK9: 0.07 | AL9: 21 | AO9: 0 | AP9: 0 | AQ9: 0
A10: 5 | B10: Beet sugar pulp | D10: 0 | E10: 0 | F10: 0 | G10: 0 | H10: 0 | I10: 0 | K10: 0 | L10: 0 | N10: 88.3 | O10: 0.3 | P10: 45.8 | Q10: 23.1 | R10: 37.8 | S10: 1.6 | T10: 7.3 | U10: 3.3 | V10: 8.8 | X10: 0.6 | Y10: 0.1 | Z10: 0.23 | AA10: 0.18 | AB10: 0.96 | AC10: 0.31 | AD10: 0.3 | AF10: 0 | AG10: 11 | AH10: 0 | AI10: 642 | AJ10: 62 | AK10: 0.14 | AL10: 22 | AO10: 0 | AP10: 0 | AQ10: 0
A11: 6 | B11: Molasses | D11: 0 | E11: 0 | F11: 0 | G11: 0 | H11: 0 | I11: 0 | K11: 0 | L11: 0 | N11: 97.98 | O11: 0.38 | P11: 27.89 | Q11: 22.16 | R11: 54.33 | S11: 0 | T11: 9.93 | U11: 0 | V11: 7.47 | X11: 0.91 | Y11: 0.17 | Z11: 0.46 | AA11: 1.03 | AB11: 3.1 | AC11: 0.23 | AD11: 0.31 | AF11: 0.6 | AG11: 11.5 | AH11: 2.1 | AI11: 493 | AJ11: 44.6 | AK11: 0 | AL11: 45.5 | AM11: 0.7 | AO11: 0 | AP11: 0 | AQ11: 0
A12: 7 | B12: SoybeanMeal solv 48% | D12: 8.25 | E12: 7.25 | F12: 6.25 | G12: 5.25 | H12: 3.96 | I12: 3.48 | K12: 25.45052572 | L12: 22.30340319 | N12: 89 | O12: 1 | P12: 7.1 | Q12: 5.3 | R12: 37.5 | S12: 0.5 | T12: 6.4 | U12: 1.9 | V12: 48 | X12: 0.2 | Y12: 0.65 | Z12: 0.29 | AA12: 0.13 | AB12: 2.41 | AC12: 0.03 | AD12: 0.39 | AF12: 0 | AG12: 16 | AH12: 0 | AI12: 206 | AJ12: 40 | AK12: 0.13 | AL12: 53 | AO12: 0 | AP12: 0 | AQ12: 0
A13: 8 | B13: Soyhulls | D13: 8 | E13: 8.75 | F13: 9.5 | G13: 10.25 | H13: 0.8 | I13: 0.875 | K13: 5.141520348 | L13: 5.607895917 | N13: 91 | O13: 2 | P13: 61.1 | Q13: 45.5 | R13: 22.1 | S13: 2.5 | T13: 4.8 | U13: 1.7 | V13: 10 | X13: 0.45 | Y13: 0.16 | Z13: 0.25 | AA13: 0.05 | AB13: 1.51 | AC13: 0.01 | AD13: 0.12 | AF13: 0.12 | AG13: 10 | AH13: 0 | AI13: 604 | AJ13: 26 | AK13: 0.21 | AL13: 35 | AO13: 0 | AP13: 0 | AQ13: 0
A14: 9 | B14: VitPremix | D14: 2 | E14: 2 | F14: 2 | G14: 2 | H14: 0 | I14: 0 | K14: 0 | L14: 0 | N14: 100 | O14: 0 | P14: 0 | Q14: 0 | R14: 100 | S14: 0 | T14: 0 | U14: 0 | V14: 0
A15: 11 | B15: Cottonseed, Whole w lint | D15: 0 | E15: 0 | F15: 0 | G15: 0 | H15: 0 | I15: 0 | K15: 0 | L15: 0
A16: 12 | B16: Cottonseed hulls | D16: 0 | E16: 0 | F16: 0 | G16: 0 | H16: 0 | I16: 0 | K16: 0 | L16: 0
A17: 86 | B17: SALT (lactating Trace minerals) | D17: 0 | E17: 0 | F17: 0 | G17: 0 | H17: 0 | I17: 0 | K17: 0 | L17: 0
D18: =SUM(D6:D17) -> 100 | E18: 100 | F18: 100 | G18: 100 | H18: 15.5596 | I18: 15.603 | K18: 100 | L18: 100
I19: Change in Composition
A20: CALCULATED | C20: Units | D20: DIET CHEMICAL COMPOSITION (% of DM) | I20: 76.0 Diet - 55.0 Diet | O20: feed Analysis
B21: DM | C21: % "as-fed" | D21: =SUMPRODUCT($N$6:$N$17,D6:D17)/100 -> 56.5365 | E21: =SUMPRODUCT($N$6:$N$17,E6:E17)/100 -> 54.118 | F21: =SUMPRODUCT($N$6:$N$17,F6:F17)/100 -> 51.6995 | G21: =SUMPRODUCT($N$6:$N$17,G6:G17)/100 -> 49.281 | I21: =G21-D21 -> -7.2555 | O21: NRC
B22: CP | C22: %DM | D22: =SUMPRODUCT($V$6:$V$17,D6:D17/100) -> 15.5596 | E22: =SUMPRODUCT($V$6:$V$17,E6:E17/100) -> 15.603 | F22: =SUMPRODUCT($V$6:$V$17,F6:F17/100) -> 15.6464 | G22: =SUMPRODUCT($V$6:$V$17,G6:G17/100) -> 15.6898 | I22: =G22-D22 -> 0.1302 | O22: AMTS
B23: NDF | C23: %DM | D23: =SUMPRODUCT($P$6:$P$17,D6:D17)/100 -> 27.088375 | E23: =SUMPRODUCT($P$6:$P$17,E6:E17)/100 -> 29.663 | F23: =SUMPRODUCT($P$6:$P$17,F6:F17)/100 -> 32.237625 | G23: =SUMPRODUCT($P$6:$P$17,G6:G17)/100 -> 34.81225 | I23: 7.723875
B24: Forage NDF | C24: %DM | D24: =SUMPRODUCT($P$6:$P$8,D6:D8)/100 -> 20.13 | E24: =SUMPRODUCT($P$6:$P$8,E6:E8)/100 -> 22.692 | F24: =SUMPRODUCT($P$6:$P$8,F6:F8)/100 -> 25.254 | G24: =SUMPRODUCT($P$6:$P$8,G6:G8)/100 -> 27.816 | I24: 7.686
B25: Non Forage NDF | C25: %DM | D25: =SUMPRODUCT($P$9:$P$17,D9:D17)/100 -> 6.958375 | E25: =SUMPRODUCT($P$9:$P$17,E9:E17)/100 -> 6.971 | F25: =SUMPRODUCT($P$9:$P$17,F9:F17)/100 -> 6.983625 | G25: =SUMPRODUCT($P$9:$P$17,G9:G17)/100 -> 6.99625 | I25: 0.037875
B26: ADF | C26: %DM | D26: =SUMPRODUCT($Q$6:$Q$17,D6:D17)/100 -> 17.396975 | E26: =SUMPRODUCT($Q$6:$Q$17,E6:E17)/100 -> 19.2515 | F26: =SUMPRODUCT($Q$6:$Q$17,F6:F17)/100 -> 21.106025 | G26: =SUMPRODUCT($Q$6:$Q$17,G6:G17)/100 -> 22.96055 | I26: 5.563575
B27: Lignin | C27: %DM | D27: =SUMPRODUCT($S$6:$S$17,D6:D17)/100 -> 2.691425 | E27: =SUMPRODUCT($S$6:$S$17,E6:E17)/100 -> 3.016 | F27: =SUMPRODUCT($S$6:$S$17,F6:F17)/100 -> 3.340575 | G27: =SUMPRODUCT($S$6:$S$17,G6:G17)/100 -> 3.66515 | I27: 0.973725
B28: NFC | C28: %DM | D28: =SUMPRODUCT($R$6:$R$17,D6:D17)/100 -> 49.06385 | E28: =SUMPRODUCT($R$6:$R$17,E6:E17)/100 -> 46.1915 | F28: =SUMPRODUCT($R$6:$R$17,F6:F17)/100 -> 43.31915 | G28: =SUMPRODUCT($R$6:$R$17,G6:G17)/100 -> 40.4468 | I28: -8.61705
B29: Starch | C29: %DM | D29: =SUMPRODUCT($U$6:$U$17,D6:D17)/100 -> 30.38775 | E29: =SUMPRODUCT($U$6:$U$17,E6:E17)/100 -> 26.9005 | F29: =SUMPRODUCT($U$6:$U$17,F6:F17)/100 -> 23.41325 | G29: =SUMPRODUCT($U$6:$U$17,G6:G17)/100 -> 19.926 | I29: -10.46175 | K29: =E29-D29 -> -3.48725 | L29: =F29-E29 -> -3.48725
B30: Fat | C30: %DM | D30: =SUMPRODUCT($O$6:$O$17,$D$6:$D$17)/100 -> 3.334975 | E30: =SUMPRODUCT($O$6:$O$17,E6:E17)/100 -> 3.2695 | F30: =SUMPRODUCT($O$6:$O$17,F6:F17)/100 -> 3.204025 | G30: =SUMPRODUCT($O$6:$O$17,G6:G17)/100 -> 3.13855 | I30: -0.196425
B31: Ash | C31: %DM | D31: =SUMPRODUCT($T$6:$T$17,D6:D17)/100 -> 5.3657 | E31: =SUMPRODUCT($T$6:$T$17,E6:E17)/100 -> 5.738 | F31: =SUMPRODUCT($T$6:$T$17,F6:F17)/100 -> 6.1103 | G31: =SUMPRODUCT($T$6:$T$17,G6:G17)/100 -> 6.4826 | I31: 1.1169
B32: NDF:starch | D32: =D23/D29 -> 0.8914241759 | E32: =E23/E29 -> 1.102693258 | F32: =F23/F29 -> 1.376896629 | G32: =G23/G29 -> 1.747076684 | I32: 0.8556525079 | K32: =E32-D32 -> 0.2112690826 | L32: =F32-E32 -> 0.2742033706
B33: NFC:RDP | D33: =D28/D41 -> 4.824079499 | E33: =E28/E41 -> 4.48461165 | F33: =F28/F41 -> 4.125633333 | G33: =G28/G41 -> 3.815735849 | I33: -1.00834365
A35: NRC PREDICTIONS | C35: Units
B36: DMI predicted | C36: kg/day | D36: 25.672 | E36: 25.672 | F36: 25.672 | G36: 25.672 | I36: =G36-D36 -> 0
B37: NEl balance | C37: Mcal/day | D37: 3.8 | E37: 3.3 | F37: 2.7 | G37: 1.2 | I37: -2.6
B38: Allowable milk kg /day | C38: NEl basis | D38: 41.3 | E38: 40.6 | F38: 39.8 | G38: 38.9 | I38: -2.4
B39: Allowable milk kg /day | C39: MP basis | D39: 36.4 | E39: 35 | F39: 33.6 | G39: 32 | I39: -4.4
B41: RDP | C41: %DM | D41: =2.611/D36*100 -> 10.1706139 | E41: 10.3 | F41: 10.5 | G41: 10.6 | I41: 0.4293861016
B42: RUP | C42: %DM | D42: 5.4 | E42: 5.3 | F42: 5.2 | G42: 5.1 | I42: -0.3
B43: RDP:CP | C43: CP, frctn | D43: =D41/D22 -> 0.6536552288 | E43: =E41/E22 -> 0.6601294623 | F43: =F41/F22 -> 0.6710808876 | G43: =G41/G22 -> 0.6755981593 | I43: 0.02194293049
B44: RUP:CP | C44: CP, frctn | D44: =D42/D22 -> 0.3470526235 | E44: =E42/E22 -> 0.339678267 | F44: =F42/F22 -> 0.3323448205 | G44: =G42/G22 -> 0.3250519446 | I44: -0.02200067889
B46: MP suply | C46: g/day | D46: =D47+D48+D49 -> 2586 | E46: =E47+E48+E49 -> 2459 | F46: =F47+F48+F49 -> 2457 | G46: =G47+G48+G49 -> 2328 | I46: -258
B47: MP - Bacterial | C47: g/day | D47: 1392 | E47: 1346 | F47: 1360 | G47: 1311 | I47: -81
B48: MP - RUP | C48: g/day | D48: 1073 | E48: 992 | F48: 976 | G48: 896 | I48: -177
B49: MP - Endogenous | C49: g/day | D49: 121 | E49: 121 | F49: 121 | G49: 121 | I49: 0
B51: MP balance | C51: g/day | D51: 19 | E51: -45 | F51: -113 | G51: -183 | I51: -202
B52: RDP Balance | C52: g/day | D52: 53 | E52: 117 | F52: 186 | G52: 261 | I52: 208
B53: lys | C53: %MP | D53: 6.54 | E53: 6.58 | F53: 6.62 | G53: 6.66 | I53: 0.12
B54: Met | C54: %MP | D54: 1.85 | E54: 1.84 | F54: 1.84 | G54: 1.83 | I54: -0.02
B56: Total essential AA | C56: g/day | D56: 1440 | E56: 1415 | F56: 1388 | G56: 1360 | I56: -80
B57: DIGAA flow | C57: g/day | D57: 1143 | E57: 1115 | F57: 1084 | G57: 1053 | I57: -90
B59: Digetible Met | C59: g/day | D59: 48 | E59: 47 | F59: 45 | G59: 44 | I59: -4
B60: Digestible Lys | C60: g/day | D60: 169 | E60: 166 | F60: 163 | G60: 159 | I60: -10
B61: Lys/Met | D61: =+D60/D59 -> 3.520833333 | E61: =+E60/E59 -> 3.531914894 | F61: =+F60/F59 -> 3.622222222 | G61: =+G60/G59 -> 3.613636364 | I61: 0.0928030303
A62: Macro-Minerals (% of DM)
B63: Ca | D63: =SUMPRODUCT(D$6:D$17,$X$6:$X$17)/100 -> 0.475775 | E63: =SUMPRODUCT(E6:E17,$X$6:$X$17)/100 -> 0.527975 | F63: =SUMPRODUCT(F6:F17,$X$6:$X$17)/100 -> 0.580175 | G63: =SUMPRODUCT(G6:G17,$X$6:$X$17)/100 -> 0.632375
B64: P | D64: =SUMPRODUCT(D$6:D$17,$Y$6:$Y$17)/100 -> 0.275925 | E64: =SUMPRODUCT(E$6:E$17,$Y$6:$Y$17)/100 -> 0.266825 | F64: =SUMPRODUCT(F$6:F$17,$Y$6:$Y$17)/100 -> 0.257725 | G64: =SUMPRODUCT(G$6:G$17,$Y$6:$Y$17)/100 -> 0.248625
B65: Mg | D65: =SUMPRODUCT(D$6:D$17,$Z$6:$Z$17)/100 -> 0.188775 | E65: =SUMPRODUCT(E$6:E$17,$Z$6:$Z$17)/100 -> 0.194 | F65: =SUMPRODUCT(F$6:F$17,$Z$6:$Z$17)/100 -> 0.199225 | G65: =SUMPRODUCT(G$6:G$17,$Z$6:$Z$17)/100 -> 0.20445
B66: Cl | D66: =SUMPRODUCT(D$6:D$17,$AA$6:$AA$17)/100 -> 0.23985 | E66: =SUMPRODUCT(E$6:E$17,$AA$6:$AA$17)/100 -> 0.2625 | F66: =SUMPRODUCT(F$6:F$17,$AA$6:$AA$17)/100 -> 0.28515 | G66: =SUMPRODUCT(G$6:G$17,$AA$6:$AA$17)/100 -> 0.3078
B67: k | D67: =SUMPRODUCT(D$6:D$17,$AB$6:$AB$17)/100 -> 1.30915 | E67: =SUMPRODUCT(E$6:E$17,$AB$6:$AB$17)/100 -> 1.37865 | F67: =SUMPRODUCT(F$6:F$17,$AB$6:$AB$17)/100 -> 1.44815 | G67: =SUMPRODUCT(G$6:G$17,$AB$6:$AB$17)/100 -> 1.51765
B68: Na | D68: =SUMPRODUCT(D$6:D$17,$AC$6:$AC$17)/100 -> 0.0142 | E68: =SUMPRODUCT(E$6:E$17,$AC$6:$AC$17)/100 -> 0.01435 | F68: =SUMPRODUCT(F$6:F$17,$AC$6:$AC$17)/100 -> 0.0145 | G68: =SUMPRODUCT(G$6:G$17,$AC$6:$AC$17)/100 -> 0.01465
B69: S | D69: =SUMPRODUCT(D$6:D$17,$AD$6:$AD$17)/100 -> 0.175775 | E69: =SUMPRODUCT(E$6:E$17,$AD$6:$AD$17)/100 -> 0.179675 | F69: =SUMPRODUCT(F$6:F$17,$AD$6:$AD$17)/100 -> 0.183575 | G69: =SUMPRODUCT(G$6:G$17,$AD$6:$AD$17)/100 -> 0.187475
A70: Micro-Minerals (% of DM)
B71: Co | D71: =SUMPRODUCT(D$6:D$17,$AF$6:$AF$17)/100 -> 0.18835 | E71: =SUMPRODUCT(E$6:E$17,$AF$6:$AF$17)/100 -> 0.212 | F71: =SUMPRODUCT(F$6:F$17,$AF$6:$AF$17)/100 -> 0.23565 | G71: =SUMPRODUCT(G$6:G$17,$AF$6:$AF$17)/100 -> 0.2593
B72: Cu | D72: =SUMPRODUCT(D$6:D$17,$AG$6:$AG$17)/100 -> 6.43 | E72: =SUMPRODUCT(E$6:E$17,$AG$6:$AG$17)/100 -> 6.792 | F72: =SUMPRODUCT(F$6:F$17,$AG$6:$AG$17)/100 -> 7.154 | G72: =SUMPRODUCT(G$6:G$17,$AG$6:$AG$17)/100 -> 7.516
B73: I | D73: =SUMPRODUCT(D$6:D$17,$AH$6:$AH$17)/100 -> 0 | E73: =SUMPRODUCT(E$6:E$17,$AH$6:$AH$17)/100 -> 0 | F73: =SUMPRODUCT(F$6:F$17,$AH$6:$AH$17)/100 -> 0 | G73: =SUMPRODUCT(G$6:G$17,$AH$6:$AH$17)/100 -> 0
B74: Fe | D74: =SUMPRODUCT(D$6:D$17,$AI$6:$AI$17)/100 -> 220.5225 | E74: =SUMPRODUCT(E$6:E$17,$AI$6:$AI$17)/100 -> 236.755 | F74: =SUMPRODUCT(F$6:F$17,$AI$6:$AI$17)/100 -> 252.9875 | G74: =SUMPRODUCT(G$6:G$17,$AI$6:$AI$17)/100 -> 269.22
B75: Mn | D75: =SUMPRODUCT(D$6:D$17,$AJ$6:$AJ$17)/100 -> 34.4775 | E75: =SUMPRODUCT(E$6:E$17,$AJ$6:$AJ$17)/100 -> 37.265 | F75: =SUMPRODUCT(F$6:F$17,$AJ$6:$AJ$17)/100 -> 40.0525 | G75: =SUMPRODUCT(G$6:G$17,$AJ$6:$AJ$17)/100 -> 42.84
B76: Se | D76: =SUMPRODUCT(D$6:D$17,$AK$6:$AK$17)/100 -> 0.10675 | E76: =SUMPRODUCT(E$6:E$17,$AK$6:$AK$17)/100 -> 0.11 | F76: =SUMPRODUCT(F$6:F$17,$AK$6:$AK$17)/100 -> 0.11325 | G76: =SUMPRODUCT(G$6:G$17,$AK$6:$AK$17)/100 -> 0.1165
B77: Zn | D77: =SUMPRODUCT(D$6:D$17,$AL$6:$AL$17)/100 -> 27.365 | E77: =SUMPRODUCT(E$6:E$17,$AL$6:$AL$17)/100 -> 27.535 | F77: =SUMPRODUCT(F$6:F$17,$AL$6:$AL$17)/100 -> 27.705 | G77: =SUMPRODUCT(G$6:G$17,$AL$6:$AL$17)/100 -> 27.875
B79: VitA | D79: =SUMPRODUCT(D$6:D$17,$AO$6:$AO$17)/100 -> 0 | E79: =SUMPRODUCT(E$6:E$17,$AO$6:$AO$17)/100 -> 0 | F79: =SUMPRODUCT(F$6:F$17,$AO$6:$AO$17)/100 -> 0 | G79: =SUMPRODUCT(G$6:G$17,$AO$6:$AO$17)/100 -> 0
B80: VitD | D80: =SUMPRODUCT(D$6:D$17,$AP$6:$AP$17)/100 -> 0 | E80: =SUMPRODUCT(E$6:E$17,$AP$6:$AP$17)/100 -> 0 | F80: =SUMPRODUCT(F$6:F$17,$AP$6:$AP$17)/100 -> 0 | G80: =SUMPRODUCT(G$6:G$17,$AP$6:$AP$17)/100 -> 0
B81: VitE | D81: =SUMPRODUCT(D$6:D$17,$AQ$6:$AQ$17)/100 -> 0 | E81: =SUMPRODUCT(E$6:E$17,$AQ$6:$AQ$17)/100 -> 0 | F81: =SUMPRODUCT(F$6:F$17,$AQ$6:$AQ$17)/100 -> 0 | G81: =SUMPRODUCT(G$6:G$17,$AQ$6:$AQ$17)/100 -> 0
